{"text_format":"1","workbook":"xlsx","n_sheets":16,"sheets":["Front Page","Concept","Move","Single Rm","Indoors","Self Protect","Guided","Cane Skill","Sidewalk","Street Cross","Orientation","Public Tran","Atypical","Rural","Vis Spec","Commun"],"not_rendered":{"charts":0,"images":0,"macros":0,"external_links":0,"defined_names":0,"comments":0,"pivot_tables":0},"unopened":[],"bounds":{"document_bytes":16777216,"sheet_cells":100000,"rows_first":2000,"rows_last":500,"rows_between":2000,"halvings":0,"cell_chars":16384,"cell_head_chars":4096},"cells_cut":0,"cells_raw":0,"read":"whole","date_system":"1900"}

{"sheet":"Front Page","index":0,"n_rows":20,"n_cols":13,"rows_kept":20,"cut":false,"hidden":false,"merged":[]}
["Student:","Date","Date","Date","Date","Date","Date","Date","Date","Date","Date","Date","Date"]
[null,"Percent","Percent","Percent","Percent","Percent","Percent","Percent","Percent","Percent","Percent","Percent","Percent"]
["Concepts",{"$f":"Concept!D32","v":0},{"$f":"Concept!F32","v":0},{"$f":"Concept!H32","v":0},{"$f":"Concept!J32","v":0},{"$f":"Concept!L32","v":0},{"$f":"Concept!N32","v":0},{"$f":"Concept!D71","v":0},{"$f":"Concept!F71","v":0},{"$f":"Concept!H71","v":0},{"$f":"Concept!J71","v":0},{"$f":"Concept!L71","v":0},{"$f":"Concept!N71","v":0}]
["Movement",{"$f":"Move!D31","v":0},{"$f":"Move!F31","v":0},{"$f":"Move!H31","v":0},{"$f":"Move!J31","v":0},{"$f":"Move!L31","v":0},{"$f":"Move!N31","v":0},{"$f":"Move!D69","v":0},{"$f":"Move!F69","v":0},{"$f":"Move!H69","v":0},{"$f":"Move!J69","v":0},{"$f":"Move!L69","v":0},{"$f":"Move!N69","v":0}]
["Single Room O&M",{"$f":"'Single Rm'!D35","v":0},{"$f":"'Single Rm'!F35","v":0},{"$f":"'Single Rm'!H35","v":0},{"$f":"'Single Rm'!J35","v":0},{"$f":"'Single Rm'!L35","v":0},{"$f":"'Single Rm'!N35","v":0},{"$f":"'Single Rm'!D77","v":0},{"$f":"'Single Rm'!F77","v":0},{"$f":"'Single Rm'!H77","v":0},{"$f":"'Single Rm'!J77","v":0},{"$f":"'Single Rm'!L77","v":0},{"$f":"'Single Rm'!N77","v":0}]
["Indoor O&M",{"$f":"Indoors!D62","v":0},{"$f":"Indoors!F62","v":0},{"$f":"Indoors!H62","v":0},{"$f":"Indoors!J62","v":0},{"$f":"Indoors!L62","v":0},{"$f":"Indoors!N62","v":0},{"$f":"Indoors!D131","v":0},{"$f":"Indoors!F131","v":0},{"$f":"Indoors!H131","v":0},{"$f":"Indoors!J131","v":0},{"$f":"Indoors!L131","v":0},{"$f":"Indoors!N131","v":0}]
["Self Protection",{"$f":"'Self Protect'!D19","v":0},{"$f":"'Self Protect'!F19","v":0},{"$f":"'Self Protect'!H19","v":0},{"$f":"'Self Protect'!J19","v":0},{"$f":"'Self Protect'!L19","v":0},{"$f":"'Self Protect'!N19","v":0},{"$f":"'Self Protect'!D45","v":0},{"$f":"'Self Protect'!F45","v":0},{"$f":"'Self Protect'!H45","v":0},{"$f":"'Self Protect'!J45","v":0},{"$f":"'Self Protect'!L45","v":0},{"$f":"'Self Protect'!N45","v":0}]
["Guided Travel",{"$f":"Guided!D29","v":0},{"$f":"Guided!F29","v":0},{"$f":"Guided!H29","v":0},{"$f":"Guided!J29","v":0},{"$f":"Guided!L29","v":0},{"$f":"Guided!N29","v":0},{"$f":"Guided!D65","v":0},{"$f":"Guided!F65","v":0},{"$f":"Guided!H65","v":0},{"$f":"Guided!J65","v":0},{"$f":"Guided!L65","v":0},{"$f":"Guided!N65","v":0}]
["Cane Skills",{"$f":"'Cane Skill'!D51","v":0},{"$f":"'Cane Skill'!F51","v":0},{"$f":"'Cane Skill'!H51","v":0},{"$f":"'Cane Skill'!J51","v":0},{"$f":"'Cane Skill'!L51","v":0},{"$f":"'Cane Skill'!JN51","v":0},{"$f":"'Cane Skill'!D109","v":0},{"$f":"'Cane Skill'!F109","v":0},{"$f":"'Cane Skill'!H109","v":0},{"$f":"'Cane Skill'!J109","v":0},{"$f":"'Cane Skill'!L109","v":0},{"$f":"'Cane Skill'!N109","v":0}]
["Sidewalk Travel ",{"$f":"Sidewalk!D30","v":0},{"$f":"Sidewalk!F30","v":0},{"$f":"Sidewalk!H30","v":0},{"$f":"Sidewalk!J30","v":0},{"$f":"Sidewalk!L30","v":0},{"$f":"Sidewalk!N30","v":0},{"$f":"Sidewalk!D67","v":0},{"$f":"Sidewalk!F67","v":0},{"$f":"Sidewalk!H67","v":0},{"$f":"Sidewalk!J67","v":0},{"$f":"Sidewalk!L67","v":0},{"$f":"Sidewalk!N67","v":0}]
["Street Crossings",{"$f":"'Street Cross'!D169","v":0},{"$f":"'Street Cross'!F169","v":0},{"$f":"'Street Cross'!H169","v":0},{"$f":"'Street Cross'!J169","v":0},{"$f":"'Street Cross'!L169","v":0},{"$f":"'Street Cross'!N169","v":0},{"$f":"'Street Cross'!D345","v":0},{"$f":"'Street Cross'!F345","v":0},{"$f":"'Street Cross'!H345","v":0},{"$f":"'Street Cross'!J345","v":0},{"$f":"'Street Cross'!L345","v":0},{"$f":"'Street Cross'!N345","v":0}]
["Orientation Skills & GPS",{"$f":"Orientation!D83","v":0},{"$f":"Orientation!F83","v":0},{"$f":"Orientation!H83","v":0},{"$f":"Orientation!J83","v":0},{"$f":"Orientation!L83","v":0},{"$f":"Orientation!N83","v":0},{"$f":"Orientation!D173","v":0},{"$f":"Orientation!F173","v":0},{"$f":"Orientation!H173","v":0},{"$f":"Orientation!J173","v":0},{"$f":"Orientation!L173","v":0},{"$f":"Orientation!N173","v":0}]
["Public Transportation",{"$f":"'Public Tran'!D82","v":0},{"$f":"'Public Tran'!F82","v":0},{"$f":"'Public Tran'!H82","v":0},{"$f":"'Public Tran'!J82","v":0},{"$f":"'Public Tran'!L82","v":0},{"$f":"'Public Tran'!N82","v":0},{"$f":"'Public Tran'!D171","v":0},{"$f":"'Public Tran'!F171","v":0},{"$f":"'Public Tran'!H171","v":0},{"$f":"'Public Tran'!J171","v":0},{"$f":"'Public Tran'!L171","v":0},{"$f":"'Public Tran'!N171","v":0}]
["Atypical O&M",{"$f":"Atypical!D42","v":0},{"$f":"Atypical!F42","v":0},{"$f":"Atypical!H42","v":0},{"$f":"Atypical!J42","v":0},{"$f":"Atypical!L42","v":0},{"$f":"Atypical!N42","v":0},{"$f":"Atypical!D91","v":0},{"$f":"Atypical!F91","v":0},{"$f":"Atypical!H91","v":0},{"$f":"Atypical!J91","v":0},{"$f":"Atypical!L91","v":0},{"$f":"Atypical!N91","v":0}]
["Rural Travel",{"$f":"Rural!D36","v":0},{"$f":"Rural!F36","v":0},{"$f":"Rural!H36","v":0},{"$f":"Rural!J36","v":0},{"$f":"Rural!L36","v":0},{"$f":"Rural!N36","v":0},{"$f":"Rural!D79","v":0},{"$f":"Rural!F79","v":0},{"$f":"Rural!H79","v":0},{"$f":"Rural!J79","v":0},{"$f":"Rural!L79","v":0},{"$f":"Rural!N79","v":0}]
["Vision Specific O&M Skills",{"$f":"'Vis Spec'!D38","v":0},{"$f":"'Vis Spec'!F38","v":0},{"$f":"'Vis Spec'!H38","v":0},{"$f":"'Vis Spec'!J38","v":0},{"$f":"'Vis Spec'!L38","v":0},{"$f":"'Vis Spec'!N38","v":0},{"$f":"'Vis Spec'!D83","v":0},{"$f":"'Vis Spec'!F83","v":0},{"$f":"'Vis Spec'!H83","v":0},{"$f":"'Vis Spec'!J83","v":0},{"$f":"'Vis Spec'!L83","v":0},{"$f":"'Vis Spec'!N83","v":0}]
["Community ",{"$f":"Commun!D49","v":0},{"$f":"Commun!F49","v":0},{"$f":"Commun!H49","v":0},{"$f":"Commun!J49","v":0},{"$f":"Commun!L49","v":0},{"$f":"Commun!N49","v":0},{"$f":"Commun!D105","v":0},{"$f":"Commun!F105","v":0},{"$f":"Commun!H105","v":0},{"$f":"Commun!J105","v":0},{"$f":"Commun!L105","v":0},{"$f":"Commun!N105","v":0}]
["Totals",{"$f":"SUM(B2:B17)/(COUNTIF(B3:B17,\">0\")+0.00000001)","v":0},0,0,0,0,0,0,0,0,0,0,0]
["Goal",1,1,1,1,1,1,1,1,1,1,1,1]
["Progress To Goal",{"$f":"(B18/B19)*100","v":0},{"$f":"(C18/C19)*100","v":0},0,0,0,0,0,0,0,0,0,0]

{"sheet":"Concept","index":1,"n_rows":109,"n_cols":17,"rows_kept":109,"cut":false,"hidden":false,"merged":[]}
["CONCEPTS (1st Data Set--First 6 Columns On Front Page)",null,"Date",null,"Date",null,"Date",null,"Date",null,"Date",null,"Date",null,"notes"]
[null,null,"Input\nData","Auto\nScore","Input\nData","Auto\nScore","Input\nData","Auto\nScore","Input\nData","Auto\nScore","Input\nData","Auto\nScore","Input\nData","Auto\nScore"]
["1. Vocabulary",null,null,{"$f":"SUM(C4:C8)/(COUNTIF(C4:C8,\">0\")+0.00000001)","v":0},null,{"$f":"SUM(E4:E8)/(COUNTIF(E4:E8,\">0\")+0.00000001)","v":0},null,{"$f":"SUM(G4:G8)/(COUNTIF(G4:G8,\">0\")+0.00000001)","v":0},null,{"$f":"SUM(I4:I8)/(COUNTIF(I4:I8,\">0\")+0.00000001)","v":0},null,{"$f":"SUM(K4:K8)/(COUNTIF(K4:K8,\">0\")+0.00000001)","v":0},null,{"$f":"SUM(M4:M8)/(COUNTIF(M4:M8,\">0\")+0.00000001)","v":0}]
[null,"a. identify body parts relevant to O&M"]
[null,"b. point or hold object up, down, to the side, in front, behind"]
[null,"b. move forward, back, to the side"]
[null,"c. move slow, fast"]
[null,"d. respond to 'stop' quickly and in multiple contexts"]
["2. Laterality",null,null,{"$f":"SUM(C10:C17)/(COUNTIF(C10:C17,\">0\")+0.00000001)","v":0},null,{"$f":"SUM(E10:E17)/(COUNTIF(E10:E17,\">0\")+0.00000001)","v":0},null,{"$f":"SUM(G10:G17)/(COUNTIF(G10:G17,\">0\")+0.00000001)","v":0},null,{"$f":"SUM(I10:I17)/(COUNTIF(I10:I17,\">0\")+0.00000001)","v":0},null,{"$f":"SUM(K10:K17)/(COUNTIF(K10:K17,\">0\")+0.00000001)","v":0},null,{"$f":"SUM(M10:M17)/(COUNTIF(M10:M17,\">0\")+0.00000001)","v":0}]
[null,"a. identify people as having left and right sides"]
[null,"b. consistently identify left/right hand"]
[null,"c. point or hold object to the left/right"]
[null,"d. follow route based on single left/right direction"]
[null,"e. follow route based on several left/right directions"]
[null,"f. put wall or object on left/right (e.g walk with wall on left)"]
[null,"g. identify that left/right changes by making 180 degree turn"]
[null,"h. identify that people facing one another have opposite left/right"]
["3. Parallel/Perpendicular",null,null,{"$f":"SUM(C19:C22)/(COUNTIF(C19:C22,\">0\")+0.00000001)","v":0},null,{"$f":"SUM(E19:E22)/(COUNTIF(E19:E22,\">0\")+0.00000001)","v":0},null,{"$f":"SUM(G19:G22)/(COUNTIF(G19:G22,\">0\")+0.00000001)","v":0},null,{"$f":"SUM(I19:I22)/(COUNTIF(I19:I22,\">0\")+0.00000001)","v":0},null,{"$f":"SUM(K19:K22)/(COUNTIF(K19:K22,\">0\")+0.00000001)","v":0},null,{"$f":"SUM(M19:M22)/(COUNTIF(M19:M22,\">0\")+0.00000001)","v":0}]
[null,"a. identify parallel/perpendicular lines on paper"]
[null,"b. identify parallel/perpendicular lines in environment (e.g. hallway)"]
[null,"c. consistently identify intersecting sidewalks/hallways as perpendicular"]
[null,"d. identify that parallel/perpendicular changes by making a 90 degree turn"]
["4. Time and Distance",null,null,{"$f":"SUM(C24:C29)/(COUNTIF(C24:C29,\">0\")+0.00000001)","v":0},null,{"$f":"SUM(E24:E29)/(COUNTIF(E24:E29,\">0\")+0.00000001)","v":0},null,{"$f":"SUM(G24:G29)/(COUNTIF(G24:G29,\">0\")+0.00000001)","v":0},null,{"$f":"SUM(I24:I29)/(COUNTIF(I24:I29,\">0\")+0.00000001)","v":0},null,{"$f":"SUM(K24:K29)/(COUNTIF(K24:K29,\">0\")+0.00000001)","v":0},null,{"$f":"SUM(M24:M29)/(COUNTIF(M24:M29,\">0\")+0.00000001)","v":0}]
[null,"a. identify common units of length (e.g. inch/centimeter, foot, yard/meter, mile/kilometer)"]
[null,"b. identify most appropriate unit of measurement for common objects (e.g. inch/centimeter for pencil, mile/kilometer for street)"]
[null,"c. identify tie between time and distance as it relates to walking or driving (e.g. 5 minute drive can translate into 30 minute walk)"]
[null,"d. develop an awareness of the amount of time needed to cross quiet residential street"]
[null,"e. develop an awareness of the amount of time needed to cross busy commercial area street"]
[null,"f. develop awareness of the amount of time it takes to walk a block"]
[null,"raw score for domain",null,{"$f":"D3+D9+D18+D23","v":0},null,{"$f":"F3+F9+F18+F23","v":0},null,{"$f":"H3+H9+H18+H23","v":0},null,{"$f":"J3+J9+J18+J23","v":0},null,{"$f":"L3+L9+L18+L23","v":0},null,{"$f":"N3+N9+N18+N23","v":0}]
[null,"average score for domain",null,{"$f":"D30/(COUNTIF(D3:D23,\">0\")+0.00000001)","v":0},null,{"$f":"F30/(COUNTIF(F3:F23,\">0\")+0.00000001)","v":0},null,{"$f":"H30/(COUNTIF(H3:H23,\">0\")+0.00000001)","v":0},null,{"$f":"J30/(COUNTIF(J3:J23,\">0\")+0.00000001)","v":0},null,{"$f":"L30/(COUNTIF(L3:L23,\">0\")+0.00000001)","v":0},null,{"$f":"N30/(COUNTIF(N3:N23,\">0\")+0.00000001)","v":0}]
[null,"percentage score for domain",null,{"$f":"D31/5*100","v":0},null,{"$f":"F31/5*100","v":0},null,{"$f":"H31/5*100","v":0},null,{"$f":"J31/5*100","v":0},null,{"$f":"L31/5*100","v":0},null,{"$f":"N31/5*100","v":0}]
["RATING SCALE"]
["0 = Student not capable of demonstrating skill or does not need skill"]
["1 = Student does not demonstrate skill but may/will learn skill"]
["2 = Student only demonstrates skill with verbal and/or physical prompting"]
["3 = Student sometimes demonstrates skill without verbal and/or physical prompting"]
["4 = Student demonstrates skill and verbal and/or physical prompting are rarely needed"]
["5 = Student has totally mastered skill and does not require verbal and/or physical prompting"]
["CONCEPTS (2nd Data Set--Last 6 Columns On Front Page)",null,"Date",null,"Date",null,"Date",null,"Date",null,"Date",null,"Date",null,"notes"]
[null,null,"Input\nData","Auto\nScore","Input\nData","Auto\nScore","Input\nData","Auto\nScore","Input\nData","Auto\nScore","Input\nData","Auto\nScore","Input\nData","Auto\nScore"]
["1. Vocabulary",null,null,{"$f":"SUM(C43:C47)/(COUNTIF(C43:C47,\">0\")+0.00000001)","v":0},null,{"$f":"SUM(E43:E47)/(COUNTIF(E43:E47,\">0\")+0.00000001)","v":0},null,{"$f":"SUM(G43:G47)/(COUNTIF(G43:G47,\">0\")+0.00000001)","v":0},null,{"$f":"SUM(I43:I47)/(COUNTIF(I43:I47,\">0\")+0.00000001)","v":0},null,{"$f":"SUM(K43:K47)/(COUNTIF(K43:K47,\">0\")+0.00000001)","v":0},null,{"$f":"SUM(M43:M47)/(COUNTIF(M43:M47,\">0\")+0.00000001)","v":0}]
[null,"a. identify body parts relevant to O&M"]
[null,"b. point or hold object up, down, to the side, in front, behind"]
[null,"b. move forward, back, to the side"]
[null,"c. move slow, fast"]
[null,"d. respond to 'stop' quickly and in multiple contexts"]
["2. Laterality",null,null,{"$f":"SUM(C49:C56)/(COUNTIF(C49:C56,\">0\")+0.00000001)","v":0},null,{"$f":"SUM(E49:E56)/(COUNTIF(E49:E56,\">0\")+0.00000001)","v":0},null,{"$f":"SUM(G49:G56)/(COUNTIF(G49:G56,\">0\")+0.00000001)","v":0},null,{"$f":"SUM(I49:I56)/(COUNTIF(I49:I56,\">0\")+0.00000001)","v":0},null,{"$f":"SUM(K49:K56)/(COUNTIF(K49:K56,\">0\")+0.00000001)","v":0},null,{"$f":"SUM(M49:M56)/(COUNTIF(M49:M56,\">0\")+0.00000001)","v":0}]
[null,"a. identify people as having left and right sides"]
[null,"b. consistently identify left/right hand"]
[null,"c. point or hold object to the left/right"]
[null,"d. follow route based on single left/right direction"]
[null,"e. follow route based on several left/right directions"]
[null,"f. put wall or object on left/right (e.g walk with wall on left)"]
[null,"g. identify that left/right changes by making 180 degree turn",null,null,null,null,null,null,null,null,null,null,null,null,null,null,"Date"]
[null,"h. identify that people facing one another have opposite left/right"]
["3. Parallel/Perpendicular",null,null,{"$f":"SUM(C58:C61)/(COUNTIF(C58:C61,\">0\")+0.00000001)","v":0},null,{"$f":"SUM(E58:E61)/(COUNTIF(E58:E61,\">0\")+0.00000001)","v":0},null,{"$f":"SUM(G58:G61)/(COUNTIF(G58:G61,\">0\")+0.00000001)","v":0},null,{"$f":"SUM(I58:I61)/(COUNTIF(I58:I61,\">0\")+0.00000001)","v":0},null,{"$f":"SUM(K58:K61)/(COUNTIF(K58:K61,\">0\")+0.00000001)","v":0},null,{"$f":"SUM(M58:M61)/(COUNTIF(M58:M61,\">0\")+0.00000001)","v":0}]
[null,"a. identify parallel/perpendicular lines on paper"]
[null,"b. identify parallel/perpendicular lines in environment (e.g. hallway)"]
[null,"c. consistently identify intersecting sidewalks/hallways as perpendicular"]
[null,"d. identify that parallel/perpendicular changes by making a 90 degree turn"]
["4. Time and Distance",null,null,{"$f":"SUM(C63:C68)/(COUNTIF(C63:C68,\">0\")+0.00000001)","v":0},null,{"$f":"SUM(E63:E68)/(COUNTIF(E63:E68,\">0\")+0.00000001)","v":0},null,{"$f":"SUM(G63:G68)/(COUNTIF(G63:G68,\">0\")+0.00000001)","v":0},null,{"$f":"SUM(I63:I68)/(COUNTIF(I63:I68,\">0\")+0.00000001)","v":0},null,{"$f":"SUM(K63:K68)/(COUNTIF(K63:K68,\">0\")+0.00000001)","v":0},null,{"$f":"SUM(M63:M68)/(COUNTIF(M63:M68,\">0\")+0.00000001)","v":0}]
[null,"a. identify common units of length (e.g. inch/centimeter, foot, yard/meter, mile/kilometer)"]
[null,"b. identify most appropriate unit of measurement for common objects (e.g. inch/centimeter for pencil, mile/kilometer for street)"]
[null,"c. identify tie between time and distance as it relates to walking or driving (e.g. 5 minute drive can translate into 30 minute walk)"]
[null,"d. develop an awareness of the amount of time needed to cross quiet residential street"]
[null,"e. develop an awareness of the amount of time needed to cross busy commercial area street"]
[null,"f. develop awareness of the amount of time it takes to walk a block"]
[null,"raw score for domain",null,{"$f":"D42+D48+D57+D62","v":0},null,{"$f":"F42+F48+F57+F62","v":0},null,{"$f":"H42+H48+H57+H62","v":0},null,{"$f":"J42+J48+J57+J62","v":0},null,{"$f":"L42+L48+L57+L62","v":0},null,{"$f":"N42+N48+N57+N62","v":0}]
[null,"average score for domain",null,{"$f":"D69/(COUNTIF(D42:D62,\">0\")+0.00000001)","v":0},null,{"$f":"F69/(COUNTIF(F42:F62,\">0\")+0.00000001)","v":0},null,{"$f":"H69/(COUNTIF(H42:H62,\">0\")+0.00000001)","v":0},null,{"$f":"J69/(COUNTIF(J42:J62,\">0\")+0.00000001)","v":0},null,{"$f":"L69/(COUNTIF(L42:L62,\">0\")+0.00000001)","v":0},null,{"$f":"N69/(COUNTIF(N42:N62,\">0\")+0.00000001)","v":0}]
[null,"percentage score for domain",null,{"$f":"D70/5*100","v":0},null,{"$f":"F70/5*100","v":0},null,{"$f":"H70/5*100","v":0},null,{"$f":"J70/5*100","v":0},null,{"$f":"L70/5*100","v":0},null,{"$f":"N70/5*100","v":0}]
["RATING SCALE"]
["0 = Student not capable of demonstrating skill or does not need skill"]
["1 = Student does not demonstrate skill but may/will learn skill"]
["2 = Student only demonstrates skill with verbal and/or physical prompting"]
["3 = Student sometimes demonstrates skill without verbal and/or physical prompting"]
["4 = Student demonstrates skill and verbal and/or physical prompting are rarely needed"]
["5 = Student has totally mastered skill and does not require verbal and/or physical prompting"]
[]
[]
[]
[]
[]
[]
[]
[]
[]
[]
[]
[]
[]
[]
[]
[]
[]
[]
[]
[]
[]
[]
[]
[]
[]
[]
[]
[]
[]
[]
[null,null,null,null,null,null,null,null,null,null,null,null,null,null,null,null,"Date"]

{"sheet":"Move","index":2,"n_rows":76,"n_cols":15,"rows_kept":76,"cut":false,"hidden":false,"merged":[]}
["MOVEMENT (1st Data Set--First 6 Columns On Front Page)",null,"Date",null,"Date",null,"Date",null,"Date",null,"Date",null,"Date",null,"notes"]
[null,null,"Input\nData","Auto\nScore","Input\nData","Auto\nScore","Input\nData","Auto\nScore","Input\nData","Auto\nScore","Input\nData","Auto\nScore","Input\nData","Auto\nScore"]
["1.Walking",null,null,{"$f":"SUM(C4:C8)/(COUNTIF(C4:C8,\">0\")+0.00000001)","v":0},null,{"$f":"SUM(E4:E8)/(COUNTIF(E4:E8,\">0\")+0.00000001)","v":0},null,{"$f":"SUM(G4:G8)/(COUNTIF(G4:G8,\">0\")+0.00000001)","v":0},null,{"$f":"SUM(I4:I8)/(COUNTIF(I4:I8,\">0\")+0.00000001)","v":0},null,{"$f":"SUM(K4:K8)/(COUNTIF(K4:K8,\">0\")+0.00000001)","v":0},null,{"$f":"SUM(M4:M8)/(COUNTIF(M4:M8,\">0\")+0.00000001)","v":0}]
[null,"a. capable of maintaining balance while walking with a pushed device that is stable enough to help with balance (such as a shopping cart - a toy that is weighted or a real one at a store)"]
[null,"b. capable of maintaining balance while walking with a pushed device that is NOT stable enough to help with balance (such as an adaptive mobility device)",null,null,null,null,null,null,null," "]
[null,"c. capable of walking with a hand held device (such as a cane)"]
[null,"d. capable of walking with two different hand held devices (such as a long cane and a support cane or a long cane and a GPS device/compass/sensor)"]
[null,"e. capable of walking with a hand held device (such as a cane) while holding an item in the other hand (such as book/bottle/bag)"]
["2. Maintain Body Alignment While Walking",null,null,{"$f":"SUM(C10:C14)/(COUNTIF(C10:C14,\">0\")+0.00000001)","v":0},null,{"$f":"SUM(E10:E14)/(COUNTIF(E10:E14,\">0\")+0.00000001)","v":0},null,{"$f":"SUM(G10:G14)/(COUNTIF(G10:G14,\">0\")+0.00000001)","v":0},null,{"$f":"SUM(I10:I14)/(COUNTIF(I10:I14,\">0\")+0.00000001)","v":0},null,{"$f":"SUM(K10:K14)/(COUNTIF(K10:K14,\">0\")+0.00000001)","v":0},null,{"$f":"SUM(M10:M14)/(COUNTIF(M10:M14,\">0\")+0.00000001)","v":0}]
[null,"a. walk with slight forward lean"]
[null,"b. walk with heel striking ground before toes"]
[null,"c. walk with head upright and facing straight ahead"]
[null,"d. walk with shoulders and hips aligned with rest of body"]
[null,"e. self correct misaligned body parts with Line Of Travel (L.O.T.)"]
["3. Balance",null,null,{"$f":"SUM(C16:C22)/(COUNTIF(C16:C22,\">0\")+0.00000001)","v":0},null,{"$f":"SUM(E16:E22)/(COUNTIF(E16:E22,\">0\")+0.00000001)","v":0},null,{"$f":"SUM(G16:G22)/(COUNTIF(G16:G22,\">0\")+0.00000001)","v":0},null,{"$f":"SUM(I16:I22)/(COUNTIF(I16:I22,\">0\")+0.00000001)","v":0},null,{"$f":"SUM(K16:K22)/(COUNTIF(K16:K22,\">0\")+0.00000001)","v":0},null,{"$f":"SUM(M16:M22)/(COUNTIF(M16:M22,\">0\")+0.00000001)","v":0}]
[null,"a. maintain balance on level, regularly surfaced terrain"]
[null,"b. maintain balance on level terrain with surface change"]
[null,"c. maintain balance on down sloped, regularly surfaced terrain"]
[null,"d. maintain balance on down sloped terrain with surface change"]
[null,"e. maintain balance on up sloped, regularly surfaced terrain"]
[null,"f. maintain balance on up sloped terrain with surface change"]
[null,"g. maintain balance on ground with slope to side of traveler"]
["4. Turns",null,null,{"$f":"SUM(C24:C28)/(COUNTIF(C24:C28,\">0\")+0.00000001)","v":0},null,{"$f":"SUM(E24:E28)/(COUNTIF(E24:E28,\">0\")+0.00000001)","v":0},null,{"$f":"SUM(G24:G28)/(COUNTIF(G24:G28,\">0\")+0.00000001)","v":0},null,{"$f":"SUM(I24:I28)/(COUNTIF(I24:I28,\">0\")+0.00000001)","v":0},null,{"$f":"SUM(K24:K28)/(COUNTIF(K24:K28,\">0\")+0.00000001)","v":0},null,{"$f":"SUM(M24:M28)/(COUNTIF(M24:M28,\">0\")+0.00000001)","v":0}]
[null,"a. identify that a turn is needed (e.g. hallway ends)"]
[null,"b. identify that a turn has occurred when need is obvious"]
[null,"c. identify that turn has occurred when it was not obvious (e.g. sidewalk gradually turned from heading east to north)"]
[null,"d. identify 90, 180, 270 and 360 degree turns"]
[null,"e. demonstrate relatively sharp 90 degree turns"]
[null,"raw score for domain",null,{"$f":"D3+D9+D15+D23","v":0},null,{"$f":"F3+F9+F15+F23","v":0},null,{"$f":"H3+H9+H15+H23","v":0},null,{"$f":"J3+J9+J15+J23","v":0},null,{"$f":"L3+L9+L15+L23","v":0},null,{"$f":"N3+N9+N15+N23","v":0}]
[null,"average score for domain",null,{"$f":"D29/(COUNTIF(D3:D28,\">0\")+0.00000001)","v":0},null,{"$f":"F29/(COUNTIF(F3:F28,\">0\")+0.00000001)","v":0},null,{"$f":"H29/(COUNTIF(H3:H28,\">0\")+0.00000001)","v":0},null,{"$f":"J29/(COUNTIF(J3:J28,\">0\")+0.00000001)","v":0},null,{"$f":"L29/(COUNTIF(L3:L28,\">0\")+0.00000001)","v":0},null,{"$f":"N29/(COUNTIF(N3:N28,\">0\")+0.00000001)","v":0}]
[null,"percentage score for domain",null,{"$f":"D30/5*100","v":0},null,{"$f":"F30/5*100","v":0},null,{"$f":"H30/5*100","v":0},null,{"$f":"J30/5*100","v":0},null,{"$f":"L30/5*100","v":0},null,{"$f":"N30/5*100","v":0}]
["RATING SCALE"]
["0 = Student not capable of demonstrating skill or does not need skill"]
["1 = Student does not demonstrate skill but may/will learn skill"]
["2 = Student only demonstrates skill with verbal and/or physical prompting"]
["3 = Student sometimes demonstrates skill without verbal and/or physical prompting"]
["4 = Student demonstrates skill and verbal and/or physical prompting are rarely needed"]
["5 = Student has totally mastered skill and does not require verbal and/or physical prompting"]
["MOVEMENT (2nd Data Set--Last 6 Columns On Front Page)",null,"Date",null,"Date",null,"Date",null,"Date",null,"Date",null,"Date",null,"notes"]
[null,null,"Input\nData","Auto\nScore","Input\nData","Auto\nScore","Input\nData","Auto\nScore","Input\nData","Auto\nScore","Input\nData","Auto\nScore","Input\nData","Auto\nScore"]
["1.Walking",null,null,{"$f":"SUM(C42:C46)/(COUNTIF(C42:C46,\">0\")+0.00000001)","v":0},null,{"$f":"SUM(E42:E46)/(COUNTIF(E42:E46,\">0\")+0.00000001)","v":0},null,{"$f":"SUM(G42:G46)/(COUNTIF(G42:G46,\">0\")+0.00000001)","v":0},null,{"$f":"SUM(I42:I46)/(COUNTIF(I42:I46,\">0\")+0.00000001)","v":0},null,{"$f":"SUM(K42:K46)/(COUNTIF(K42:K46,\">0\")+0.00000001)","v":0},null,{"$f":"SUM(M42:M46)/(COUNTIF(M42:M46,\">0\")+0.00000001)","v":0}]
[null,"a. capable of maintaining balance while walking with a pushed device that is stable enough to help with balance (such as a shopping cart - a toy that is weighted or a real one at a store)"]
[null,"b. capable of maintaining balance while walking with a pushed device that is NOT stable enough to help with balance (such as an adaptive mobility device)"]
[null,"c. capable of walking with a hand held device (such as a cane)"]
[null,"d. capable of walking with two different hand held devices (such as a long cane and a support cane or a long cane and a GPS device/compass/sensor)"]
[null,"e. capable of walking with a hand held device (such as a cane) while holding an item in the other hand (such as book/bottle/bag)"]
["2. Maintain Body Alignment While Walking",null,null,{"$f":"SUM(C48:C52)/(COUNTIF(C48:C52,\">0\")+0.00000001)","v":0},null,{"$f":"SUM(E48:E52)/(COUNTIF(E48:E52,\">0\")+0.00000001)","v":0},null,{"$f":"SUM(G48:G52)/(COUNTIF(G48:G52,\">0\")+0.00000001)","v":0},null,{"$f":"SUM(I48:I52)/(COUNTIF(I48:I52,\">0\")+0.00000001)","v":0},null,{"$f":"SUM(K48:K52)/(COUNTIF(K48:K52,\">0\")+0.00000001)","v":0},null,{"$f":"SUM(M48:M52)/(COUNTIF(M48:M52,\">0\")+0.00000001)","v":0}]
[null,"a. walk with slight forward lean"]
[null,"b. walk with heel striking ground before toes"]
[null,"c. walk with head upright and facing straight ahead"]
[null,"d. walk with shoulders and hips aligned with rest of body"]
[null,"e. self correct misaligned body parts with Line Of Travel (L.O.T.)"]
["3. Balance",null,null,{"$f":"SUM(C54:C60)/(COUNTIF(C54:C60,\">0\")+0.00000001)","v":0},null,{"$f":"SUM(E54:E60)/(COUNTIF(E54:E60,\">0\")+0.00000001)","v":0},null,{"$f":"SUM(G54:G60)/(COUNTIF(G54:G60,\">0\")+0.00000001)","v":0},null,{"$f":"SUM(I54:I60)/(COUNTIF(I54:I60,\">0\")+0.00000001)","v":0},null,{"$f":"SUM(K54:K60)/(COUNTIF(K54:K60,\">0\")+0.00000001)","v":0},null,{"$f":"SUM(M54:M60)/(COUNTIF(M54:M60,\">0\")+0.00000001)","v":0}]
[null,"a. maintain balance on level, regularly surfaced terrain"]
[null,"b. maintain balance on level terrain with surface change"]
[null,"c. maintain balance on down sloped, regularly surfaced terrain"]
[null,"d. maintain balance on down sloped terrain with surface change"]
[null,"e. maintain balance on up sloped, regularly surfaced terrain"]
[null,"f. maintain balance on up sloped terrain with surface change"]
[null,"g. maintain balance on ground with slope to side of traveler"]
["4. Turns",null,null,{"$f":"SUM(C62:C66)/(COUNTIF(C62:C66,\">0\")+0.00000001)","v":0},null,{"$f":"SUM(E62:E66)/(COUNTIF(E62:E66,\">0\")+0.00000001)","v":0},null,{"$f":"SUM(G62:G66)/(COUNTIF(G62:G66,\">0\")+0.00000001)","v":0},null,{"$f":"SUM(I62:I66)/(COUNTIF(I62:I66,\">0\")+0.00000001)","v":0},null,{"$f":"SUM(K62:K66)/(COUNTIF(K62:K66,\">0\")+0.00000001)","v":0},null,{"$f":"SUM(M62:M66)/(COUNTIF(M62:M66,\">0\")+0.00000001)","v":0}]
[null,"a. identify that a turn is needed (e.g. hallway ends)"]
[null,"b. identify that a turn has occurred when need is obvious"]
[null,"c. identify that turn has occurred when it was not obvious (e.g. sidewalk gradually turned from heading east to north)"]
[null,"d. identify 90, 180, 270 and 360 degree turns"]
[null,"e. demonstrate relatively sharp 90 degree turns"]
[null,"raw score for domain",null,{"$f":"D41+D47+D53+D61","v":0},null,{"$f":"F41+F47+F53+F61","v":0},null,{"$f":"H41+H47+H53+H61","v":0},null,{"$f":"J41+J47+J53+J61","v":0},null,{"$f":"L41+L47+L53+L61","v":0},null,{"$f":"N41+N47+N53+N61","v":0}]
[null,"average score for domain",null,{"$f":"D67/(COUNTIF(D41:D66,\">0\")+0.00000001)","v":0},null,{"$f":"F67/(COUNTIF(F41:F66,\">0\")+0.00000001)","v":0},null,{"$f":"H67/(COUNTIF(H41:H66,\">0\")+0.00000001)","v":0},null,{"$f":"J67/(COUNTIF(J41:J66,\">0\")+0.00000001)","v":0},null,{"$f":"L67/(COUNTIF(L41:L66,\">0\")+0.00000001)","v":0},null,{"$f":"N67/(COUNTIF(N41:N66,\">0\")+0.00000001)","v":0}]
[null,"percentage score for domain",null,{"$f":"D68/5*100","v":0},null,{"$f":"F68/5*100","v":0},null,{"$f":"H68/5*100","v":0},null,{"$f":"J68/5*100","v":0},null,{"$f":"L68/5*100","v":0},null,{"$f":"N68/5*100","v":0}]
["RATING SCALE"]
["0 = Student not capable of demonstrating skill or does not need skill"]
["1 = Student does not demonstrate skill but may/will learn skill"]
["2 = Student only demonstrates skill with verbal and/or physical prompting"]
["3 = Student sometimes demonstrates skill without verbal and/or physical prompting"]
["4 = Student demonstrates skill and verbal and/or physical prompting are rarely needed"]
["5 = Student has totally mastered skill and does not require verbal and/or physical prompting"]

{"sheet":"Single Rm","index":3,"n_rows":84,"n_cols":15,"rows_kept":84,"cut":false,"hidden":false,"merged":[]}
["SINGLE ROOM O&M (1st Data Set--First 6 Columns On Front Page)",null,"Date",null,"Date",null,"Date",null,"Date",null,"Date",null,"Date",null,"notes"]
[null,null,"Input\nData","Auto\nScore","Input\nData","Auto\nScore","Input\nData","Auto\nScore","Input\nData","Auto\nScore","Input\nData","Auto\nScore","Input\nData","Auto\nScore"]
["1. Familiar Rooms",null,null,{"$f":"SUM(C4:C8)/(COUNTIF(C4:C8,\">0\")+0.00000001)","v":0},null,{"$f":"SUM(E4:E8)/(COUNTIF(E4:E8,\">0\")+0.00000001)","v":0},null,{"$f":"SUM(G4:G8)/(COUNTIF(G4:G8,\">0\")+0.00000001)","v":0},null,{"$f":"SUM(I4:I8)/(COUNTIF(I4:I8,\">0\")+0.00000001)","v":0},null,{"$f":"SUM(K4:K8)/(COUNTIF(K4:K8,\">0\")+0.00000001)","v":0},null,{"$f":"SUM(M4:M8)/(COUNTIF(M4:M8,\">0\")+0.00000001)","v":0}]
[null,"a. demonstrate cardinality"]
[null,"b. identify and use Point Of Reference (P.O.R.)"]
[null,"c. locate parts of room and items in room"]
[null,"d. use location of familiar item in room to find unfamiliar item described as being next to, under, on top of, etc"]
[null,"e. use cane and/or protective techniques as appropriate"]
["2. Unfamiliar Rooms",null,null,{"$f":"SUM(C10:C15)/(COUNTIF(C10:C15,\">0\")+0.00000001)","v":0},null,{"$f":"SUM(E10:E15)/(COUNTIF(E10:E15,\">0\")+0.00000001)","v":0},null,{"$f":"SUM(G10:G15)/(COUNTIF(G10:G15,\">0\")+0.00000001)","v":0},null,{"$f":"SUM(I10:I15)/(COUNTIF(I10:I15,\">0\")+0.00000001)","v":0},null,{"$f":"SUM(K10:K15)/(COUNTIF(K10:K15,\">0\")+0.00000001)","v":0},null,{"$f":"SUM(M10:M15)/(COUNTIF(M10:M15,\">0\")+0.00000001)","v":0}]
[null,"a. establish and maintain cardinality"]
[null,"b. establish P.O.R., either a physical landmark (e.g. door, piece of furniture) or nearly constant clue (e.g. radio, noise in hallway)"]
[null,"c. demonstrate systematic pattern of exploration of room (e.g. grid pattern)"]
[null,"d. identify directional relationships of major features of the room (e.g. the tub is to the left of the sink, the board is on the north side of the room)"]
[null,"e. use location of found item in room to find undiscovered item described as being next to, under, on top of, etc"]
[null,"f. use cane and/or protective techniques as appropriate"]
["3. Seating (Rows Of Desks Or Theater/Stadium Seating)",null,null,{"$f":"SUM(C17:C22)/(COUNTIF(C17:C22,\">0\")+0.00000001)","v":0},null,{"$f":"SUM(E17:E22)/(COUNTIF(E17:E22,\">0\")+0.00000001)","v":0},null,{"$f":"SUM(G17:G22)/(COUNTIF(G17:G22,\">0\")+0.00000001)","v":0},null,{"$f":"SUM(I17:I22)/(COUNTIF(I17:I22,\">0\")+0.00000001)","v":0},null,{"$f":"SUM(K17:K22)/(COUNTIF(K17:K22,\">0\")+0.00000001)","v":0},null,{"$f":"SUM(M17:M22)/(COUNTIF(M17:M22,\">0\")+0.00000001)","v":0}]
[null,"a. identify side(s) of room seating faces"]
[null,"b. identify beginning of row of seats"]
[null,"c. ask if there is available seat if row seems to be occupied"]
[null,"d. enter row of seats, find unoccupied seat"]
[null,"e. confirm (with cane, verbally, etc) seat is indeed unoccupied"]
[null,"f. identify need to minimize space occupied as others may need to pass while getting seated"]
["4. Seating (Tables)",null,null,{"$f":"SUM(C24:C27)/(COUNTIF(C24:C27,\">0\")+0.00000001)","v":0},null,{"$f":"SUM(E24:E27)/(COUNTIF(E24:E27,\">0\")+0.00000001)","v":0},null,{"$f":"SUM(G24:G27)/(COUNTIF(G24:G27,\">0\")+0.00000001)","v":0},null,{"$f":"SUM(I24:I27)/(COUNTIF(I24:I27,\">0\")+0.00000001)","v":0},null,{"$f":"SUM(K24:K27)/(COUNTIF(K24:K27,\">0\")+0.00000001)","v":0},null,{"$f":"SUM(M24:M27)/(COUNTIF(M24:M27,\">0\")+0.00000001)","v":0}]
[null,"a. identify location of table"]
[null,"b. ask if there is available seat if table seems to be occupied"]
[null,"c. confirm (with cane, verbally, etc) seat is indeed unoccupied"]
[null,"d. identify need to pull chair as close to table as possible as others may need to pass behind"]
["5. Locate Dropped Object",null,null,{"$f":"SUM(C29:C32)/(COUNTIF(C29:C32,\">0\")+0.00000001)","v":0},null,{"$f":"SUM(E29:E32)/(COUNTIF(E29:E32,\">0\")+0.00000001)","v":0},null,{"$f":"SUM(G29:G32)/(COUNTIF(G29:G32,\">0\")+0.00000001)","v":0},null,{"$f":"SUM(I29:I32)/(COUNTIF(I29:I32,\">0\")+0.00000001)","v":0},null,{"$f":"SUM(K29:K32)/(COUNTIF(K29:K32,\">0\")+0.00000001)","v":0},null,{"$f":"SUM(M29:M32)/(COUNTIF(M29:M32,\">0\")+0.00000001)","v":0}]
[null,"a. identify that an object has been dropped"]
[null,"b. listen for clues as to where object may have come to rest"]
[null,"c. drop level without bending at waist"]
[null,"d. demonstrate circular or grid pattern search (tactile or visual) to locate object"]
[null,"raw score for domain",null,{"$f":"D3+D9+D16+D23+D28","v":0},null,{"$f":"F3+F9+F16+F23+F28","v":0},null,{"$f":"H3+H9+H16+H23+H28","v":0},null,{"$f":"J3+J9+J16+J23+J28","v":0},null,{"$f":"L3+L9+L16+L23+L28","v":0},null,{"$f":"N3+N9+N16+N23+N28","v":0}]
[null,"average score for domain",null,{"$f":"D33/(COUNTIF(D3:D32,\">0\")+0.00000001)","v":0},null,{"$f":"F33/(COUNTIF(F3:F32,\">0\")+0.00000001)","v":0},null,{"$f":"H33/(COUNTIF(H3:H32,\">0\")+0.00000001)","v":0},null,{"$f":"J33/(COUNTIF(J3:J32,\">0\")+0.00000001)","v":0},null,{"$f":"L33/(COUNTIF(L3:L32,\">0\")+0.00000001)","v":0},null,{"$f":"N33/(COUNTIF(N3:N32,\">0\")+0.00000001)","v":0}]
[null,"percentage score for domain",null,{"$f":"D34/5*100","v":0},null,{"$f":"F34/5*100","v":0},null,{"$f":"H34/5*100","v":0},null,{"$f":"J34/5*100","v":0},null,{"$f":"L34/5*100","v":0},null,{"$f":"N34/5*100","v":0}]
["RATING SCALE"]
["0 = Student not capable of demonstrating skill or does not need skill"]
["1 = Student does not demonstrate skill but may/will learn skill"]
["2 = Student only demonstrates skill with verbal and/or physical prompting"]
["3 = Student sometimes demonstrates skill without verbal and/or physical prompting"]
["4 = Student demonstrates skill and verbal and/or physical prompting are rarely needed"]
["5 = Student has totally mastered skill and does not require verbal and/or physical prompting"]
["SINGLE ROOM O&M (2nd Data Set--Last 6 Columns On Front Page)",null,"Date",null,"Date",null,"Date",null,"Date",null,"Date",null,"Date",null,"notes"]
[null,null,"Input\nData","Auto\nScore","Input\nData","Auto\nScore","Input\nData","Auto\nScore","Input\nData","Auto\nScore","Input\nData","Auto\nScore","Input\nData","Auto\nScore"]
["1. Familiar Rooms",null,null,{"$f":"SUM(C46:C50)/(COUNTIF(C46:C50,\">0\")+0.00000001)","v":0},null,{"$f":"SUM(E46:E50)/(COUNTIF(E46:E50,\">0\")+0.00000001)","v":0},null,{"$f":"SUM(G46:G50)/(COUNTIF(G46:G50,\">0\")+0.00000001)","v":0},null,{"$f":"SUM(I46:I50)/(COUNTIF(I46:I50,\">0\")+0.00000001)","v":0},null,{"$f":"SUM(K46:K50)/(COUNTIF(K46:K50,\">0\")+0.00000001)","v":0},null,{"$f":"SUM(M46:M50)/(COUNTIF(M46:M50,\">0\")+0.00000001)","v":0}]
[null,"a. demonstrate cardinality"]
[null,"b. identify and use Point Of Reference (P.O.R.)"]
[null,"c. locate parts of room and items in room"]
[null,"d. use location of familiar item in room to find unfamiliar item described as being next to, under, on top of, etc"]
[null,"e. use cane and/or protective techniques as appropriate"]
["2. Unfamiliar Rooms",null,null,{"$f":"SUM(C52:C57)/(COUNTIF(C52:C57,\">0\")+0.00000001)","v":0},null,{"$f":"SUM(E52:E57)/(COUNTIF(E52:E57,\">0\")+0.00000001)","v":0},null,{"$f":"SUM(G52:G57)/(COUNTIF(G52:G57,\">0\")+0.00000001)","v":0},null,{"$f":"SUM(I52:I57)/(COUNTIF(I52:I57,\">0\")+0.00000001)","v":0},null,{"$f":"SUM(K52:K57)/(COUNTIF(K52:K57,\">0\")+0.00000001)","v":0},null,{"$f":"SUM(M52:M57)/(COUNTIF(M52:M57,\">0\")+0.00000001)","v":0}]
[null,"a. establish and maintain cardinality"]
[null,"b. establish P.O.R., either a physical landmark (e.g. door, piece of furniture) or nearly constant clue (e.g. radio, noise in hallway)"]
[null,"c. demonstrate systematic pattern of exploration of room (e.g. grid pattern)"]
[null,"d. identify directional relationships of major features of the room (e.g. the tub is to the left of the sink, the board is on the north side of the room)"]
[null,"e. use location of found item in room to find undiscovered item described as being next to, under, on top of, etc"]
[null,"f. use cane and/or protective techniques as appropriate"]
["3. Seating (Rows Of Desks Or Theater/Stadium Seating)",null,null,{"$f":"SUM(C59:C64)/(COUNTIF(C59:C64,\">0\")+0.00000001)","v":0},null,{"$f":"SUM(E59:E64)/(COUNTIF(E59:E64,\">0\")+0.00000001)","v":0},null,{"$f":"SUM(G59:G64)/(COUNTIF(G59:G64,\">0\")+0.00000001)","v":0},null,{"$f":"SUM(I59:I64)/(COUNTIF(I59:I64,\">0\")+0.00000001)","v":0},null,{"$f":"SUM(K59:K64)/(COUNTIF(K59:K64,\">0\")+0.00000001)","v":0},null,{"$f":"SUM(M59:M64)/(COUNTIF(M59:M64,\">0\")+0.00000001)","v":0}]
[null,"a. identify side(s) of room seating faces"]
[null,"b. identify beginning of row of seats"]
[null,"c. ask if there is available seat if row seems to be occupied"]
[null,"d. enter row of seats, find unoccupied seat"]
[null,"e. confirm (with cane, verbally, etc) seat is indeed unoccupied"]
[null,"f. identify need to minimize space occupied as others may need to pass while getting seated"]
["4. Seating (Tables)",null,null,{"$f":"SUM(C66:C69)/(COUNTIF(C66:C69,\">0\")+0.00000001)","v":0},null,{"$f":"SUM(E66:E69)/(COUNTIF(E66:E69,\">0\")+0.00000001)","v":0},null,{"$f":"SUM(G66:G69)/(COUNTIF(G66:G69,\">0\")+0.00000001)","v":0},null,{"$f":"SUM(I66:I69)/(COUNTIF(I66:I69,\">0\")+0.00000001)","v":0},null,{"$f":"SUM(K66:K69)/(COUNTIF(K66:K69,\">0\")+0.00000001)","v":0},null,{"$f":"SUM(M66:M69)/(COUNTIF(M66:M69,\">0\")+0.00000001)","v":0}]
[null,"a. identify location of table"]
[null,"b. ask if there is available seat if table seems to be occupied"]
[null,"c. confirm (with cane, verbally, etc) seat is indeed unoccupied"]
[null,"d. identify need to pull chair as close to table as possible as others may need to pass behind"]
["5. Locate Dropped Object",null,null,{"$f":"SUM(C71:C74)/(COUNTIF(C71:C74,\">0\")+0.00000001)","v":0},null,{"$f":"SUM(E71:E74)/(COUNTIF(E71:E74,\">0\")+0.00000001)","v":0},null,{"$f":"SUM(G71:G74)/(COUNTIF(G71:G74,\">0\")+0.00000001)","v":0},null,{"$f":"SUM(I71:I74)/(COUNTIF(I71:I74,\">0\")+0.00000001)","v":0},null,{"$f":"SUM(K71:K74)/(COUNTIF(K71:K74,\">0\")+0.00000001)","v":0},null,{"$f":"SUM(M71:M74)/(COUNTIF(M71:M74,\">0\")+0.00000001)","v":0}]
[null,"a. identify that an object has been dropped"]
[null,"b. listen for clues as to where object may have come to rest"]
[null,"c. drop level without bending at waist"]
[null,"d. demonstrate circular or grid pattern search (tactile or visual) to locate object"]
[null,"raw score for domain",null,{"$f":"D45+D51+D58+D65+D70","v":0},null,{"$f":"F45+F51+F58+F65+F70","v":0},null,{"$f":"H45+H51+H58+H65+H70","v":0},null,{"$f":"J45+J51+J58+J65+J70","v":0},null,{"$f":"L45+L51+L58+L65+L70","v":0},null,{"$f":"N45+N51+N58+N65+N70","v":0}]
[null,"average score for domain",null,{"$f":"D75/(COUNTIF(D45:D74,\">0\")+0.00000001)","v":0},null,{"$f":"F75/(COUNTIF(F45:F74,\">0\")+0.00000001)","v":0},null,{"$f":"H75/(COUNTIF(H45:H74,\">0\")+0.00000001)","v":0},null,{"$f":"J75/(COUNTIF(J45:J74,\">0\")+0.00000001)","v":0},null,{"$f":"L75/(COUNTIF(L45:L74,\">0\")+0.00000001)","v":0},null,{"$f":"N75/(COUNTIF(N45:N74,\">0\")+0.00000001)","v":0}]
[null,"percentage score for domain",null,{"$f":"D76/5*100","v":0},null,{"$f":"F76/5*100","v":0},null,{"$f":"H76/5*100","v":0},null,{"$f":"J76/5*100","v":0},null,{"$f":"L76/5*100","v":0},null,{"$f":"N76/5*100","v":0}]
["RATING SCALE"]
["0 = Student not capable of demonstrating skill or does not need skill"]
["1 = Student does not demonstrate skill but may/will learn skill"]
["2 = Student only demonstrates skill with verbal and/or physical prompting"]
["3 = Student sometimes demonstrates skill without verbal and/or physical prompting"]
["4 = Student demonstrates skill and verbal and/or physical prompting are rarely needed"]
["5 = Student has totally mastered skill and does not require verbal and/or physical prompting"]

{"sheet":"Indoors","index":4,"n_rows":138,"n_cols":15,"rows_kept":138,"cut":false,"hidden":false,"merged":[]}
["INDOOR O&M (1st Data Set--First 6 Columns On Front Page)",null,"Date",null,"Date",null,"Date",null,"Date",null,"Date",null,"Date",null,"notes"]
[null,null,"Input\nData","Auto\nScore","Input\nData","Auto\nScore","Input\nData","Auto\nScore","Input\nData","Auto\nScore","Input\nData","Auto\nScore","Input\nData","Auto\nScore"]
["1. Hand Trailing",null,null,{"$f":"SUM(C4:C5)/(COUNTIF(C4:C5,\">0\")+0.00000001)","v":0},null,{"$f":"SUM(E4:E5)/(COUNTIF(E4:E5,\">0\")+0.00000001)","v":0},null,{"$f":"SUM(G4:G5)/(COUNTIF(G4:G5,\">0\")+0.00000001)","v":0},null,{"$f":"SUM(I4:I5)/(COUNTIF(I4:I5,\">0\")+0.00000001)","v":0},null,{"$f":"SUM(K4:K5)/(COUNTIF(K4:K5,\">0\")+0.00000001)","v":0},null,{"$f":"SUM(M4:M5)/(COUNTIF(M4:M5,\">0\")+0.00000001)","v":0}]
[null,"a. walk along wall, arm trailing wall bent 45 degrees, only the pinky contacting the wall, hand relaxed with fingers dangling"]
[null,"b. detect doorway, break contact with wall, pass door using clues and time/distance, re-establish contact with wall and continue"]
["2. Navigating Open Spaces",null,null,{"$f":"SUM(C7:C8)/(COUNTIF(C7:C8,\">0\")+0.00000001)","v":0},null,{"$f":"SUM(E7:E8)/(COUNTIF(E7:E8,\">0\")+0.00000001)","v":0},null,{"$f":"SUM(G7:G8)/(COUNTIF(G7:G8,\">0\")+0.00000001)","v":0},null,{"$f":"SUM(I7:I8)/(COUNTIF(I7:I8,\">0\")+0.00000001)","v":0},null,{"$f":"SUM(K7:K8)/(COUNTIF(K7:K8,\">0\")+0.00000001)","v":0},null,{"$f":"SUM(M7:M8)/(COUNTIF(M7:M8,\">0\")+0.00000001)","v":0}]
[null,"a. demonstrate direction taking by aligning 2 or more body parts with desired Line Of Travel (L.O.T.) and projecting straight line"]
[null,"b. demonstrate squaring off by putting back, shoulders and back of legs against wall and moving directly away from it"]
["3. Doors",null,null,{"$f":"SUM(C10:C14)/(COUNTIF(C10:C14,\">0\")+0.00000001)","v":0},null,{"$f":"SUM(E10:E14)/(COUNTIF(E10:E14,\">0\")+0.00000001)","v":0},null,{"$f":"SUM(G10:G14)/(COUNTIF(G10:G14,\">0\")+0.00000001)","v":0},null,{"$f":"SUM(I10:I14)/(COUNTIF(I10:I14,\">0\")+0.00000001)","v":0},null,{"$f":"SUM(K10:K14)/(COUNTIF(K10:K14,\">0\")+0.00000001)","v":0},null,{"$f":"SUM(M10:M14)/(COUNTIF(M10:M14,\">0\")+0.00000001)","v":0}]
[null,"a. identify presence of door"]
[null,"b. identify type of door (push, pull, slide, revolving, single, double) via physical contact, auditory clues, general knowledge of types of doors found in particular buildings (e.g. most doors swing into the room, grocery stores typically have powered sliding doors)"]
[null,"c. demonstrate ability to identify push/pull door, locate handle, open door and step through single or double doors"]
[null,"d. demonstrate ability to identify sliding door, whether door is manual or powered, open door if manual, step through"]
[null,"e. demonstrate ability to identify revolving door, locate entrance to revolving door housing via clues or surface change (e.g. carpet to tile or concrete), determine if door is in motion or still, use free  hand to locate door and time entry into revolving door, use elbow or free hand to trail rounded outside edge of door housing, turn and quickly exit door"]
["4. Stairs (Ascending and Descending)",null,null,{"$f":"SUM(C16:C22)/(COUNTIF(C16:C22,\">0\")+0.00000001)","v":0},null,{"$f":"SUM(E16:E22)/(COUNTIF(E16:E22,\">0\")+0.00000001)","v":0},null,{"$f":"SUM(G16:G22)/(COUNTIF(G16:G22,\">0\")+0.00000001)","v":0},null,{"$f":"SUM(I16:I22)/(COUNTIF(I16:I22,\">0\")+0.00000001)","v":0},null,{"$f":"SUM(K16:K22)/(COUNTIF(K16:K22,\">0\")+0.00000001)","v":0},null,{"$f":"SUM(M16:M22)/(COUNTIF(M16:M22,\">0\")+0.00000001)","v":0}]
[null,"a. detect presence of ascending stairs"]
[null,"b. locate and use rail if convenient"]
[null,"c. \"A\" anchor cane at base of stairs"]
[null,"d. \"B\" bring toes up to edge of stairs"]
[null,"e. \"C\" clear to ensure nothing on stair and confirm width of stair"]
[null,"f. \"D\" diagonal angle of cane across body with the cane tip on the second stair, elbow locked and pressure exerted to cane ascends one stair for each step taken (cane and feet never on same step) OR  \"D\" diagonal angle of cane across body with the cane tip on the second stair, cane either slides down each step or is tapped if stair surface doesn’t allow cane to slide"]
[null,"g. \"E\" end of staircase reached by cane tip causes cane to swing freely instead of hitting next step alerting traveler end of stair case is imminent OR \"E\" end of staircase reached by cane tip causes cane angle to flatten out alerting traveler end of stair case is imminent"]
["5. Escalators (Ascending and descending)",null,null,{"$f":"SUM(C24:C34)/(COUNTIF(C24:C34,\">0\")+0.00000001)","v":0},null,{"$f":"SUM(E24:E34)/(COUNTIF(E24:E34,\">0\")+0.00000001)","v":0},null,{"$f":"SUM(G24:G34)/(COUNTIF(G24:G34,\">0\")+0.00000001)","v":0},null,{"$f":"SUM(I24:I34)/(COUNTIF(I24:I34,\">0\")+0.00000001)","v":0},null,{"$f":"SUM(K24:K34)/(COUNTIF(K24:K34,\">0\")+0.00000001)","v":0},null,{"$f":"SUM(M24:M34)/(COUNTIF(M24:M34,\">0\")+0.00000001)","v":0}]
[null,"a. identify presence of escalator"]
[null,"b. determine if at entry or exit of escalator (handrail moves toward traveler if at exit and away from traveler if at entry)"]
[null,"c. determine whether escalator ascends or descends"]
[null,"d. \"A\" anchor cane at edge of stairs of escalator "]
[null,"e. \"B\" bring toes up to edge of stairs"]
[null,"f. \"C\" clear to confirm width of stair"]
[null,"g. extend cane, step when cane 'drops off' (ascending) or 'kicks up' (descending)"]
[null,"h. hold rail with free hand"]
[null,"i. \"D\" diagonal angle of cane across body with the cane tip on the next stair"]
[null,"j. \"E\" end is reached when angle flattens out, hits edge of ramp or is pushed back towards traveler, lift cane and step onto ramp"]
[null,"k. clear ramp quickly and re-establish orientation"]
["6. Elevators",null,null,{"$f":"SUM(C36:C43)/(COUNTIF(C36:C43,\">0\")+0.00000001)","v":0},null,{"$f":"SUM(E36:E43)/(COUNTIF(E36:E43,\">0\")+0.00000001)","v":0},null,{"$f":"SUM(G36:G43)/(COUNTIF(G36:G43,\">0\")+0.00000001)","v":0},null,{"$f":"SUM(I36:I43)/(COUNTIF(I36:I43,\">0\")+0.00000001)","v":0},null,{"$f":"SUM(K36:K43)/(COUNTIF(K36:K43,\">0\")+0.00000001)","v":0},null,{"$f":"SUM(M36:M43)/(COUNTIF(M36:M43,\">0\")+0.00000001)","v":0}]
[null,"a. identify presence of elevator"]
[null,"b. determine whether elevator door is open or closed"]
[null,"c. locate button to summon elevator"]
[null,"d. ask others if elevator is heading up or down if no signal"]
[null,"e. enter elevator, locate buttons to indicate desired floor"]
[null,"f. determine whether elevator is heading up or down"]
[null,"g. count beeps if floor is not announced"]
[null,"h. exit elevator and confirm floor number"]
["7. Moving Sidewalks",null,null,{"$f":"SUM(C45:C53)/(COUNTIF(C45:C53,\">0\")+0.00000001)","v":0},null,{"$f":"SUM(E45:E53)/(COUNTIF(E45:E53,\">0\")+0.00000001)","v":0},null,{"$f":"SUM(G45:G53)/(COUNTIF(G45:G53,\">0\")+0.00000001)","v":0},null,{"$f":"SUM(I45:I53)/(COUNTIF(I45:I53,\">0\")+0.00000001)","v":0},null,{"$f":"SUM(K45:K53)/(COUNTIF(K45:K53,\">0\")+0.00000001)","v":0},null,{"$f":"SUM(M45:M53)/(COUNTIF(M45:M53,\">0\")+0.00000001)","v":0}]
[null,"a. identify presence of moving sidewalk"]
[null,"b. determine if at entry or exit of moving sidewalk (handrail moves toward traveler if at exit and away from traveler if at entry) "]
[null,"c. \"A\" anchor cane at edge of moving sidewalk "]
[null,"d. \"B\" bring toes up to edge of moving sidewalk"]
[null,"e. \"C\" clear to confirm width of moving sidewalk"]
[null,"f. \"D\" diagonal angle of cane across body"]
[null,"g. hold rail with free hand"]
[null,"h. \"E\" end is reached when cane hits exit ramp and slides over ramp or is pushed back towards the traveler"]
[null,"i. clear ramp quickly and re-establish orientation"]
["8. Turnstiles",null,null,{"$f":"SUM(C55:C59)/(COUNTIF(C55:C59,\">0\")+0.00000001)","v":0},null,{"$f":"SUM(E55:E59)/(COUNTIF(E55:E59,\">0\")+0.00000001)","v":0},null,{"$f":"SUM(G55:G59)/(COUNTIF(G55:G59,\">0\")+0.00000001)","v":0},null,{"$f":"SUM(I55:I59)/(COUNTIF(I55:I59,\">0\")+0.00000001)","v":0},null,{"$f":"SUM(K55:K59)/(COUNTIF(K55:K59,\">0\")+0.00000001)","v":0},null,{"$f":"SUM(M55:M59)/(COUNTIF(M55:M59,\">0\")+0.00000001)","v":0}]
[null,"a. determine presence of turnstile "]
[null,"b. locate entry to turnstile"]
[null,"c. locate payment slot (if present)"]
[null,"d. press through turnstile"]
[null,"e. clear turnstile exit quickly and re-establish orientation"]
[null,"raw score for domain",null,{"$f":"D3+D6+D9+D15+D23+D35+D44+D54","v":0},null,{"$f":"F3+F6+F9+F15+F23+F35+F44+F54","v":0},null,{"$f":"H3+H6+H9+H15+H23+H35+H44+H54","v":0},null,{"$f":"J3+J6+J9+J15+J23+J35+J44+J54","v":0},null,{"$f":"L3+L6+L9+L15+L23+L35+L44+L54","v":0},null,{"$f":"N3+N6+N9+N15+N23+N35+N44+N54","v":0}]
[null,"average score for domain",null,{"$f":"D60/(COUNTIF(D3:D59,\">0\")+0.00000001)","v":0},null,{"$f":"F60/(COUNTIF(F3:F59,\">0\")+0.00000001)","v":0},null,{"$f":"H60/(COUNTIF(H3:H59,\">0\")+0.00000001)","v":0},null,{"$f":"J60/(COUNTIF(J3:J59,\">0\")+0.00000001)","v":0},null,{"$f":"L60/(COUNTIF(L3:L59,\">0\")+0.00000001)","v":0},null,{"$f":"N60/(COUNTIF(N3:N59,\">0\")+0.00000001)","v":0}]
[null,"percentage score for domain",null,{"$f":"D61/5*100","v":0},null,{"$f":"F61/5*100","v":0},null,{"$f":"H61/5*100","v":0},null,{"$f":"J61/5*100","v":0},null,{"$f":"L61/5*100","v":0},null,{"$f":"N61/5*100","v":0}]
["RATING SCALE"]
["0 = Student not capable of demonstrating skill or does not need skill"]
["1 = Student does not demonstrate skill but may/will learn skill"]
["2 = Student only demonstrates skill with verbal and/or physical prompting"]
["3 = Student sometimes demonstrates skill without verbal and/or physical prompting"]
["4 = Student demonstrates skill and verbal and/or physical prompting are rarely needed"]
["5 = Student has totally mastered skill and does not require verbal and/or physical prompting"]
["INDOOR O&M (2nd Data Set--Last 6 Columns On Front Page)",null,"Date",null,"Date",null,"Date",null,"Date",null,"Date",null,"Date",null,"notes"]
[null,null,"Input\nData","Auto\nScore","Input\nData","Auto\nScore","Input\nData","Auto\nScore","Input\nData","Auto\nScore","Input\nData","Auto\nScore","Input\nData","Auto\nScore"]
["1. Hand Trailing",null,null,{"$f":"SUM(C73:C74)/(COUNTIF(C73:C74,\">0\")+0.00000001)","v":0},null,{"$f":"SUM(E73:E74)/(COUNTIF(E73:E74,\">0\")+0.00000001)","v":0},null,{"$f":"SUM(G73:G74)/(COUNTIF(G73:G74,\">0\")+0.00000001)","v":0},null,{"$f":"SUM(I73:I74)/(COUNTIF(I73:I74,\">0\")+0.00000001)","v":0},null,{"$f":"SUM(K73:K74)/(COUNTIF(K73:K74,\">0\")+0.00000001)","v":0},null,{"$f":"SUM(M73:M74)/(COUNTIF(M73:M74,\">0\")+0.00000001)","v":0}]
[null,"a. walk along wall, arm trailing wall bent 45 degrees, only the pinky contacting the wall, hand relaxed with fingers dangling"]
[null,"b. detect doorway, break contact with wall, pass door using clues and time/distance, re-establish contact with wall and continue"]
["2. Navigating Open Spaces",null,null,{"$f":"SUM(C76:C77)/(COUNTIF(C76:C77,\">0\")+0.00000001)","v":0},null,{"$f":"SUM(E76:E77)/(COUNTIF(E76:E77,\">0\")+0.00000001)","v":0},null,{"$f":"SUM(G76:G77)/(COUNTIF(G76:G77,\">0\")+0.00000001)","v":0},null,{"$f":"SUM(I76:I77)/(COUNTIF(I76:I77,\">0\")+0.00000001)","v":0},null,{"$f":"SUM(K76:K77)/(COUNTIF(K76:K77,\">0\")+0.00000001)","v":0},null,{"$f":"SUM(M76:M77)/(COUNTIF(M76:M77,\">0\")+0.00000001)","v":0}]
[null,"a. demonstrate direction taking by aligning 2 or more body parts with desired Line Of Travel (L.O.T.) and projecting straight line"]
[null,"b. demonstrate squaring off by putting back, shoulders and back of legs against wall and moving directly away from it"]
["3. Doors",null,null,{"$f":"SUM(C79:C83)/(COUNTIF(C79:C83,\">0\")+0.00000001)","v":0},null,{"$f":"SUM(E79:E83)/(COUNTIF(E79:E83,\">0\")+0.00000001)","v":0},null,{"$f":"SUM(G79:G83)/(COUNTIF(G79:G83,\">0\")+0.00000001)","v":0},null,{"$f":"SUM(I79:I83)/(COUNTIF(I79:I83,\">0\")+0.00000001)","v":0},null,{"$f":"SUM(K79:K83)/(COUNTIF(K79:K83,\">0\")+0.00000001)","v":0},null,{"$f":"SUM(M79:M83)/(COUNTIF(M79:M83,\">0\")+0.00000001)","v":0}]
[null,"a. identify presence of door"]
[null,"b. identify type of door (push, pull, slide, revolving, single, double) via physical contact, auditory clues, general knowledge of types of doors found in particular buildings (e.g. most doors swing into the room, grocery stores typically have powered sliding doors)"]
[null,"c. demonstrate ability to identify push/pull door, locate handle, open door and step through single or double doors"]
[null,"d. demonstrate ability to identify sliding door, whether door is manual or powered, open door if manual, step through"]
[null,"e. demonstrate ability to identify revolving door, locate entrance to revolving door housing via clues or surface change (e.g. carpet to tile or concrete), determine if door is in motion or still, use free  hand to locate door and time entry into revolving door, use elbow or free hand to trail rounded outside edge of door housing, turn and quickly exit door"]
["4. Stairs (Ascending and Descending)",null,null,{"$f":"SUM(C85:C91)/(COUNTIF(C85:C91,\">0\")+0.00000001)","v":0},null,{"$f":"SUM(E85:E91)/(COUNTIF(E85:E91,\">0\")+0.00000001)","v":0},null,{"$f":"SUM(G85:G91)/(COUNTIF(G85:G91,\">0\")+0.00000001)","v":0},null,{"$f":"SUM(I85:I91)/(COUNTIF(I85:I91,\">0\")+0.00000001)","v":0},null,{"$f":"SUM(K85:K91)/(COUNTIF(K85:K91,\">0\")+0.00000001)","v":0},null,{"$f":"SUM(M85:M91)/(COUNTIF(M85:M91,\">0\")+0.00000001)","v":0}]
[null,"a. detect presence of ascending stairs"]
[null,"b. locate and use rail if convenient"]
[null,"c. \"A\" anchor cane at base of stairs"]
[null,"d. \"B\" bring toes up to edge of stairs"]
[null,"e. \"C\" clear to ensure nothing on stair and confirm width of stair"]
[null,"f. \"D\" diagonal angle of cane across body with the cane tip on the second stair, elbow locked and pressure exerted to cane ascends one stair for each step taken (cane and feet never on same step) OR  \"D\" diagonal angle of cane across body with the cane tip on the second stair, cane either slides down each step or is tapped if stair surface doesn’t allow cane to slide"]
[null,"g. \"E\" end of staircase reached by cane tip causes cane to swing freely instead of hitting next step alerting traveler end of stair case is imminent OR \"E\" end of staircase reached by cane tip causes cane angle to flatten out alerting traveler end of stair case is imminent"]
["5. Escalators (Ascending and descending)",null,null,{"$f":"SUM(C93:C103)/(COUNTIF(C93:C103,\">0\")+0.00000001)","v":0},null,{"$f":"SUM(E93:E103)/(COUNTIF(E93:E103,\">0\")+0.00000001)","v":0},null,{"$f":"SUM(G93:G103)/(COUNTIF(G93:G103,\">0\")+0.00000001)","v":0},null,{"$f":"SUM(I93:I103)/(COUNTIF(I93:I103,\">0\")+0.00000001)","v":0},null,{"$f":"SUM(K93:K103)/(COUNTIF(K93:K103,\">0\")+0.00000001)","v":0},null,{"$f":"SUM(M93:M103)/(COUNTIF(M93:M103,\">0\")+0.00000001)","v":0}]
[null,"a. identify presence of escalator"]
[null,"b. determine if at entry or exit of escalator (handrail moves toward traveler if at exit and away from traveler if at entry)"]
[null,"c. determine whether escalator ascends or descends"]
[null,"d. \"A\" anchor cane at edge of stairs of escalator "]
[null,"e. \"B\" bring toes up to edge of stairs"]
[null,"f. \"C\" clear to confirm width of stair"]
[null,"g. extend cane, step when cane 'drops off' (ascending) or 'kicks up' (descending)"]
[null,"h. hold rail with free hand"]
[null,"i. \"D\" diagonal angle of cane across body with the cane tip on the next stair"]
[null,"j. \"E\" end is reached when angle flattens out, hits edge of ramp or is pushed back towards traveler, lift cane and step onto ramp"]
[null,"k. clear ramp quickly and re-establish orientation"]
["6. Elevators",null,null,{"$f":"SUM(C105:C112)/(COUNTIF(C105:C112,\">0\")+0.00000001)","v":0},null,{"$f":"SUM(E105:E112)/(COUNTIF(E105:E112,\">0\")+0.00000001)","v":0},null,{"$f":"SUM(G105:G112)/(COUNTIF(G105:G112,\">0\")+0.00000001)","v":0},null,{"$f":"SUM(I105:I112)/(COUNTIF(I105:I112,\">0\")+0.00000001)","v":0},null,{"$f":"SUM(K105:K112)/(COUNTIF(K105:K112,\">0\")+0.00000001)","v":0},null,{"$f":"SUM(M105:M112)/(COUNTIF(M105:M112,\">0\")+0.00000001)","v":0}]
[null,"a. identify presence of elevator"]
[null,"b. determine whether elevator door is open or closed"]
[null,"c. locate button to summon elevator"]
[null,"d. ask others if elevator is heading up or down if no signal"]
[null,"e. enter elevator, locate buttons to indicate desired floor"]
[null,"f. determine whether elevator is heading up or down"]
[null,"g. count beeps if floor is not announced"]
[null,"h. exit elevator and confirm floor number"]
["7. Moving Sidewalks",null,null,{"$f":"SUM(C114:C122)/(COUNTIF(C114:C122,\">0\")+0.00000001)","v":0},null,{"$f":"SUM(E114:E122)/(COUNTIF(E114:E122,\">0\")+0.00000001)","v":0},null,{"$f":"SUM(G114:G122)/(COUNTIF(G114:G122,\">0\")+0.00000001)","v":0},null,{"$f":"SUM(I114:I122)/(COUNTIF(I114:I122,\">0\")+0.00000001)","v":0},null,{"$f":"SUM(K114:K122)/(COUNTIF(K114:K122,\">0\")+0.00000001)","v":0},null,{"$f":"SUM(M114:M122)/(COUNTIF(M114:M122,\">0\")+0.00000001)","v":0}]
[null,"a. identify presence of moving sidewalk"]
[null,"b. determine if at entry or exit of moving sidewalk (handrail moves toward traveler if at exit and away from traveler if at entry) "]
[null,"c. \"A\" anchor cane at edge of moving sidewalk "]
[null,"d. \"B\" bring toes up to edge of moving sidewalk"]
[null,"e. \"C\" clear to confirm width of moving sidewalk"]
[null,"f. \"D\" diagonal angle of cane across body"]
[null,"g. hold rail with free hand"]
[null,"h. \"E\" end is reached when cane hits exit ramp and slides over ramp or is pushed back towards the traveler"]
[null,"i. clear ramp quickly and re-establish orientation"]
["8. Turnstiles",null,null,{"$f":"SUM(C124:C128)/(COUNTIF(C124:C128,\">0\")+0.00000001)","v":0},null,{"$f":"SUM(E124:E128)/(COUNTIF(E124:E128,\">0\")+0.00000001)","v":0},null,{"$f":"SUM(G124:G128)/(COUNTIF(G124:G128,\">0\")+0.00000001)","v":0},null,{"$f":"SUM(I124:I128)/(COUNTIF(I124:I128,\">0\")+0.00000001)","v":0},null,{"$f":"SUM(K124:K128)/(COUNTIF(K124:K128,\">0\")+0.00000001)","v":0},null,{"$f":"SUM(M124:M128)/(COUNTIF(M124:M128,\">0\")+0.00000001)","v":0}]
[null,"a. determine presence of turnstile "]
[null,"b. locate entry to turnstile"]
[null,"c. locate payment slot (if present)"]
[null,"d. press through turnstile"]
[null,"e. clear turnstile exit quickly and re-establish orientation"]
[null,"raw score for domain",null,{"$f":"D72+D75+D78+D84+D92+D104+D113+D123","v":0},null,{"$f":"F72+F75+F78+F84+F92+F104+F113+F123","v":0},null,{"$f":"H72+H75+H78+H84+H92+H104+H113+H123","v":0},null,{"$f":"J72+J75+J78+J84+J92+J104+J113+J123","v":0},null,{"$f":"L72+L75+L78+L84+L92+L104+L113+L123","v":0},null,{"$f":"N72+N75+N78+N84+N92+N104+N113+N123","v":0}]
[null,"average score for domain",null,{"$f":"D129/(COUNTIF(D72:D128,\">0\")+0.00000001)","v":0},null,{"$f":"F129/(COUNTIF(F72:F128,\">0\")+0.00000001)","v":0},null,{"$f":"H129/(COUNTIF(H72:H128,\">0\")+0.00000001)","v":0},null,{"$f":"J129/(COUNTIF(J72:J128,\">0\")+0.00000001)","v":0},null,{"$f":"L129/(COUNTIF(L72:L128,\">0\")+0.00000001)","v":0},null,{"$f":"N129/(COUNTIF(N72:N128,\">0\")+0.00000001)","v":0}]
[null,"percentage score for domain",null,{"$f":"D130/5*100","v":0},null,{"$f":"F130/5*100","v":0},null,{"$f":"H130/5*100","v":0},null,{"$f":"J130/5*100","v":0},null,{"$f":"L130/5*100","v":0},null,{"$f":"N130/5*100","v":0}]
["RATING SCALE"]
["0 = Student not capable of demonstrating skill or does not need skill"]
["1 = Student does not demonstrate skill but may/will learn skill"]
["2 = Student only demonstrates skill with verbal and/or physical prompting"]
["3 = Student sometimes demonstrates skill without verbal and/or physical prompting"]
["4 = Student demonstrates skill and verbal and/or physical prompting are rarely needed"]
["5 = Student has totally mastered skill and does not require verbal and/or physical prompting"]

{"sheet":"Self Protect","index":5,"n_rows":53,"n_cols":15,"rows_kept":53,"cut":false,"hidden":false,"merged":[]}
["SELF PROTECTION (1st Data Set--First 6 Columns On Front Page)",null,null,"Date",null,"Date",null,"Date",null,"Date",null,"Date",null,"Date","notes"]
[null,null,"Input\nData","Auto\nScore","Input\nData","Auto\nScore","Input\nData","Auto\nScore","Input\nData","Auto\nScore","Input\nData","Auto\nScore","Input\nData","Auto\nScore"]
["1. Upper Hand Protective Technique",null,null,{"$f":"SUM(C4:C7)/(COUNTIF(C4:C7,\">0\")+0.00000001)","v":0},null,{"$f":"SUM(E4:E7)/(COUNTIF(E4:E7,\">0\")+0.00000001)","v":0},null,{"$f":"SUM(G4:G7)/(COUNTIF(G4:G7,\">0\")+0.00000001)","v":0},null,{"$f":"SUM(I4:I7)/(COUNTIF(I4:I7,\">0\")+0.00000001)","v":0},null,{"$f":"SUM(K4:K7)/(COUNTIF(K4:K7,\">0\")+0.00000001)","v":0},null,{"$f":"SUM(M4:M7)/(COUNTIF(M4:M7,\">0\")+0.00000001)","v":0}]
[null,"a. arm held just above shoulder level, parallel to ground"]
[null,"b. elbow bent about 120 degrees away from body"]
[null,"c. hand turned out and fingers relaxed"]
[null,"d. identify times when upper hand might be needed"]
["2. Lower Forearm Protective Technique",null,null,{"$f":"SUM(C9:C11)/(COUNTIF(C9:C11,\">0\")+0.00000001)","v":0},null,{"$f":"SUM(E9:E11)/(COUNTIF(E9:E11,\">0\")+0.00000001)","v":0},null,{"$f":"SUM(G9:G11)/(COUNTIF(G9:G11,\">0\")+0.00000001)","v":0},null,{"$f":"SUM(I9:I11)/(COUNTIF(I9:I11,\">0\")+0.00000001)","v":0},null,{"$f":"SUM(K9:K11)/(COUNTIF(K9:K11,\">0\")+0.00000001)","v":0},null,{"$f":"SUM(M9:M11)/(COUNTIF(M9:M11,\">0\")+0.00000001)","v":0}]
[null,"a. arm held at midline, elbow straight but not locked"]
[null,"b. arm held about a foot in front of body, hand relaxed"]
[null,"c. identify times when lower forearm protective technique might be needed"]
["3. Protective Clothing",null,null,{"$f":"SUM(C14:C16)/(COUNTIF(C14:C16,\">0\")+0.00000001)","v":0},null,{"$f":"SUM(E14:E16)/(COUNTIF(E14:E16,\">0\")+0.00000001)","v":0},null,{"$f":"SUM(G14:G16)/(COUNTIF(G14:G16,\">0\")+0.00000001)","v":0},null,{"$f":"SUM(I14:I16)/(COUNTIF(I14:I16,\">0\")+0.00000001)","v":0},null,{"$f":"SUM(K14:K16)/(COUNTIF(K14:K16,\">0\")+0.00000001)","v":0},null,{"$f":"SUM(M14:M16)/(COUNTIF(M14:M16,\">0\")+0.00000001)","v":0}]
[null,"a. dress for the weather"]
[null,"b. wear hat with 3\" brim to protect against branches"]
[null,"c. wear sunglasses to protect against branches "]
[null,"d. identify need for light/reflective clothing at night"]
[null,"raw score for domain",null,{"$f":"D3+D8+D12","v":0},null,{"$f":"F3+F8+F12","v":0},null,{"$f":"H3+H8+H12","v":0},null,{"$f":"J3+J8+J12","v":0},null,{"$f":"L3+L8+L12","v":0},null,{"$f":"N3+N8+N12","v":0}]
[null,"average score for domain",null,{"$f":"D17/(COUNTIF(D3:D16,\">0\")+0.00000001)","v":0},null,{"$f":"F17/(COUNTIF(F3:F16,\">0\")+0.00000001)","v":0},null,{"$f":"H17/(COUNTIF(H3:H16,\">0\")+0.00000001)","v":0},null,{"$f":"J17/(COUNTIF(J3:J16,\">0\")+0.00000001)","v":0},null,{"$f":"L17/(COUNTIF(L3:L16,\">0\")+0.00000001)","v":0},null,{"$f":"N17/(COUNTIF(N3:N16,\">0\")+0.00000001)","v":0}]
[null,"percentage score for domain",null,{"$f":"D18/5*100","v":0},null,{"$f":"F18/5*100","v":0},null,{"$f":"H18/5*100","v":0},null,{"$f":"J18/5*100","v":0},null,{"$f":"L18/5*100","v":0},null,{"$f":"N18/5*100","v":0}]
["RATING SCALE"]
["0 = Student not capable of demonstrating skill or does not need skill"]
["1 = Student does not demonstrate skill but may/will learn skill"]
["2 = Student only demonstrates skill with verbal and/or physical prompting"]
["3 = Student sometimes demonstrates skill without verbal and/or physical prompting"]
["4 = Student demonstrates skill and verbal and/or physical prompting are rarely needed"]
["5 = Student has totally mastered skill and does not require verbal and/or physical prompting"]
["SELF PROTECTION (2nd Data Set--Last 6 Columns On Front Page)",null,null,"Date",null,"Date",null,"Date",null,"Date",null,"Date",null,"Date","notes"]
[null,null,"Input\nData","Auto\nScore","Input\nData","Auto\nScore","Input\nData","Auto\nScore","Input\nData","Auto\nScore","Input\nData","Auto\nScore","Input\nData","Auto\nScore"]
["1. Upper Hand Protective Technique",null,null,{"$f":"SUM(C30:C33)/(COUNTIF(C30:C33,\">0\")+0.00000001)","v":0},null,{"$f":"SUM(E30:E33)/(COUNTIF(E30:E33,\">0\")+0.00000001)","v":0},null,{"$f":"SUM(G30:G33)/(COUNTIF(G30:G33,\">0\")+0.00000001)","v":0},null,{"$f":"SUM(I30:I33)/(COUNTIF(I30:I33,\">0\")+0.00000001)","v":0},null,{"$f":"SUM(K30:K33)/(COUNTIF(K30:K33,\">0\")+0.00000001)","v":0},null,{"$f":"SUM(M30:M33)/(COUNTIF(M30:M33,\">0\")+0.00000001)","v":0}]
[null,"a. arm held just above shoulder level, parallel to ground"]
[null,"b. elbow bent about 120 degrees away from body"]
[null,"c. hand turned out and fingers relaxed"]
[null,"d. identify times when upper hand might be needed"]
["2. Lower Forearm Protective Technique",null,null,{"$f":"SUM(C35:C37)/(COUNTIF(C35:C37,\">0\")+0.00000001)","v":0},null,{"$f":"SUM(E35:E37)/(COUNTIF(E35:E37,\">0\")+0.00000001)","v":0},null,{"$f":"SUM(G35:G37)/(COUNTIF(G35:G37,\">0\")+0.00000001)","v":0},null,{"$f":"SUM(I35:I37)/(COUNTIF(I35:I37,\">0\")+0.00000001)","v":0},null,{"$f":"SUM(K35:K37)/(COUNTIF(K35:K37,\">0\")+0.00000001)","v":0},null,{"$f":"SUM(M35:M37)/(COUNTIF(M35:M37,\">0\")+0.00000001)","v":0}]
[null,"a. arm held at midline, elbow straight but not locked"]
[null,"b. arm held about a foot in front of body, hand relaxed"]
[null,"c. identify times when lower forearm protective technique might be needed"]
["3. Protective Clothing",null,null,{"$f":"SUM(C40:C42)/(COUNTIF(C40:C42,\">0\")+0.00000001)","v":0},null,{"$f":"SUM(E40:E42)/(COUNTIF(E40:E42,\">0\")+0.00000001)","v":0},null,{"$f":"SUM(G40:G42)/(COUNTIF(G40:G42,\">0\")+0.00000001)","v":0},null,{"$f":"SUM(I40:I42)/(COUNTIF(I40:I42,\">0\")+0.00000001)","v":0},null,{"$f":"SUM(K40:K42)/(COUNTIF(K40:K42,\">0\")+0.00000001)","v":0},null,{"$f":"SUM(M40:M42)/(COUNTIF(M40:M42,\">0\")+0.00000001)","v":0}]
[null,"a. dress for the weather"]
[null,"b. wear hat with 3\" brim to protect against branches"]
[null,"c. wear sunglasses to protect against branches "]
[null,"d. identify need for light/reflective clothing at night"]
[null,"raw score for domain",null,{"$f":"D29+D34+D38","v":0},null,{"$f":"F29+F34+F38","v":0},null,{"$f":"H29+H34+H38","v":0},null,{"$f":"J29+J34+J38","v":0},null,{"$f":"L29+L34+L38","v":0},null,{"$f":"N29+N34+N38","v":0}]
[null,"average score for domain",null,{"$f":"D43/(COUNTIF(D29:D42,\">0\")+0.00000001)","v":0},null,{"$f":"F43/(COUNTIF(F29:F42,\">0\")+0.00000001)","v":0},null,{"$f":"H43/(COUNTIF(H29:H42,\">0\")+0.00000001)","v":0},null,{"$f":"J43/(COUNTIF(J29:J42,\">0\")+0.00000001)","v":0},null,{"$f":"L43/(COUNTIF(L29:L42,\">0\")+0.00000001)","v":0},null,{"$f":"N43/(COUNTIF(N29:N42,\">0\")+0.00000001)","v":0}]
[null,"percentage score for domain",null,{"$f":"D44/5*100","v":0},null,{"$f":"F44/5*100","v":0},null,{"$f":"H44/5*100","v":0},null,{"$f":"J44/5*100","v":0},null,{"$f":"L44/5*100","v":0},null,{"$f":"N44/5*100","v":0}]
["RATING SCALE"]
["0 = Student not capable of demonstrating skill or does not need skill"]
["1 = Student does not demonstrate skill but may/will learn skill"]
["2 = Student only demonstrates skill with verbal and/or physical prompting"]
["3 = Student sometimes demonstrates skill without verbal and/or physical prompting"]
["4 = Student demonstrates skill and verbal and/or physical prompting are rarely needed"]
["5 = Student has totally mastered skill and does not require verbal and/or physical prompting"]
["5 = Student has totally mastered skill and does not require verbal and/or physical prompting"]

{"sheet":"Guided","index":6,"n_rows":72,"n_cols":15,"rows_kept":72,"cut":false,"hidden":false,"merged":[]}
["GUIDED SKILLS (1st Data Set--First 6 Columns On Front Page)",null,"Date",null,"Date",null,"Date",null,"Date",null,"Date",null,"Date",null,"notes"]
[null,null,"Input\nData","Auto\nScore","Input\nData","Auto\nScore","Input\nData","Auto\nScore","Input\nData","Auto\nScore","Input\nData","Auto\nScore","Input\nData","Auto\nScore"]
["1. Human Guide",null,null,{"$f":"SUM(C4:C10)/(COUNTIF(C4:C10,\">0\")+0.00000001)","v":0},null,{"$f":"SUM(E4:E10)/(COUNTIF(E4:E10,\">0\")+0.00000001)","v":0},null,{"$f":"SUM(G4:G10)/(COUNTIF(G4:G10,\">0\")+0.00000001)","v":0},null,{"$f":"SUM(I4:I10)/(COUNTIF(I4:I10,\">0\")+0.00000001)","v":0},null,{"$f":"SUM(K4:K10)/(COUNTIF(K4:K10,\">0\")+0.00000001)","v":0},null,{"$f":"SUM(M4:M10)/(COUNTIF(M4:M10,\">0\")+0.00000001)","v":0}]
[null,"a. appropriately solicit or decline human guide"]
[null,"b. find area just above elbow without groping guide"]
[null,"c. attain 'C' grip and maintain sufficient pressure to hold arm"]
[null,"d. walk with shoulder behind guide's shoulder"]
[null,"e. walk half step behind guide "]
[null,"f. move behind guide when guide moves arm to his/her back"]
[null,"g. react to changes in the height of the guide's elbow (e.g. guide elbow lowering indicates step, drop off or slope)"]
["2. Walking With Another (No Direct Contact)",null,null,{"$f":"SUM(C12:C15)/(COUNTIF(C12:C15,\">0\")+0.00000001)","v":0},null,{"$f":"SUM(E12:E15)/(COUNTIF(E12:E15,\">0\")+0.00000001)","v":0},null,{"$f":"SUM(G12:G15)/(COUNTIF(G12:G15,\">0\")+0.00000001)","v":0},null,{"$f":"SUM(I12:I15)/(COUNTIF(I12:I15,\">0\")+0.00000001)","v":0},null,{"$f":"SUM(K12:K15)/(COUNTIF(K12:K15,\">0\")+0.00000001)","v":0},null,{"$f":"SUM(M12:M15)/(COUNTIF(M12:M15,\">0\")+0.00000001)","v":0}]
[null,"a. maintain same pace as other person/people"]
[null,"b. stay with other person/people instead of trailing behind"]
[null,"c. maintain running conversation to keep track of pace and any turns other person/people make"]
[null,"d. in crowded areas or areas with lots of turns (e.g. stores) minimize utterances while drawing more verbosity from other/others to keep track of other/others"]
["3. Menus",null,null,{"$f":"SUM(C17:C19)/(COUNTIF(C17:C19,\">0\")+0.00000001)","v":0},null,{"$f":"SUM(E17:E19)/(COUNTIF(E17:E19,\">0\")+0.00000001)","v":0},null,{"$f":"SUM(G17:G19)/(COUNTIF(G17:G19,\">0\")+0.00000001)","v":0},null,{"$f":"SUM(I17:I19)/(COUNTIF(I17:I19,\">0\")+0.00000001)","v":0},null,{"$f":"SUM(K17:K19)/(COUNTIF(K17:K19,\">0\")+0.00000001)","v":0},null,{"$f":"SUM(M17:M19)/(COUNTIF(M17:M19,\">0\")+0.00000001)","v":0}]
[null,"a. check menu online before going out to eat"]
[null,"b. understand dining companions don't want to read entire menu aloud"]
[null,"c. ask about general menu categories and narrow selection"]
["4. Getting Rides",null,null,{"$f":"SUM(C21:C26)/(COUNTIF(C21:C26,\">0\")+0.00000001)","v":0},null,{"$f":"SUM(E21:E26)/(COUNTIF(E21:E26,\">0\")+0.00000001)","v":0},null,{"$f":"SUM(G21:G26)/(COUNTIF(G21:G26,\">0\")+0.00000001)","v":0},null,{"$f":"SUM(I21:I26)/(COUNTIF(I21:I26,\">0\")+0.00000001)","v":0},null,{"$f":"SUM(K21:K26)/(COUNTIF(K21:K26,\">0\")+0.00000001)","v":0},null,{"$f":"SUM(M21:M26)/(COUNTIF(M21:M26,\">0\")+0.00000001)","v":0}]
[null,"a. identify friends/family who are available to give rides"]
[null,"b. identify costs (e.g. gas, time, tolls) involved in giving rides"]
[null,"c. identify need to offer to help with driving expenses"]
[null,"d. understand some drivers will refuse cash"]
[null,"e. identify barter options (e.g. sit for their kids for rides)"]
[null,"f. identify need to synchronize schedule with drivers particularly when rides are needed with regularity"]
[null,"raw score for domain",null,{"$f":"D3+D11+D16+D20","v":0},null,{"$f":"F3+F11+F16+F20","v":0},null,{"$f":"H3+H11+H16+H20","v":0},null,{"$f":"J3+J11+J16+J20","v":0},null,{"$f":"L3+L11+L16+L20","v":0},null,{"$f":"N3+N11+N16+N20","v":0}]
[null,"average score for domain",null,{"$f":"D27/(COUNTIF(D3:D26,\">0\")+0.00000001)","v":0},null,{"$f":"F27/(COUNTIF(F3:F26,\">0\")+0.00000001)","v":0},null,{"$f":"H27/(COUNTIF(H3:H26,\">0\")+0.00000001)","v":0},null,{"$f":"J27/(COUNTIF(J3:J26,\">0\")+0.00000001)","v":0},null,{"$f":"L27/(COUNTIF(L3:L26,\">0\")+0.00000001)","v":0},null,{"$f":"N27/(COUNTIF(N3:N26,\">0\")+0.00000001)","v":0}]
[null,"percentage score for domain",null,{"$f":"D28/5*100","v":0},null,{"$f":"F28/5*100","v":0},null,{"$f":"H28/5*100","v":0},null,{"$f":"J28/5*100","v":0},null,{"$f":"L28/5*100","v":0},null,{"$f":"N28/5*100","v":0}]
["RATING SCALE"]
["0 = Student not capable of demonstrating skill or does not need skill"]
["1 = Student does not demonstrate skill but may/will learn skill"]
["2 = Student only demonstrates skill with verbal and/or physical prompting"]
["3 = Student sometimes demonstrates skill without verbal and/or physical prompting"]
["4 = Student demonstrates skill and verbal and/or physical prompting are rarely needed"]
["5 = Student has totally mastered skill and does not require verbal and/or physical prompting"]
["GUIDED SKILLS (2nd Data Set--Last 6 Columns On Front Page)",null,"Date",null,"Date",null,"Date",null,"Date",null,"Date",null,"Date",null,"notes"]
[null,null,"Input\nData","Auto\nScore","Input\nData","Auto\nScore","Input\nData","Auto\nScore","Input\nData","Auto\nScore","Input\nData","Auto\nScore","Input\nData","Auto\nScore"]
["1. Human Guide",null,null,{"$f":"SUM(C40:C46)/(COUNTIF(C40:C46,\">0\")+0.00000001)","v":0},null,{"$f":"SUM(E40:E46)/(COUNTIF(E40:E46,\">0\")+0.00000001)","v":0},null,{"$f":"SUM(G40:G46)/(COUNTIF(G40:G46,\">0\")+0.00000001)","v":0},null,{"$f":"SUM(I40:I46)/(COUNTIF(I40:I46,\">0\")+0.00000001)","v":0},null,{"$f":"SUM(K40:K46)/(COUNTIF(K40:K46,\">0\")+0.00000001)","v":0},null,{"$f":"SUM(M40:M46)/(COUNTIF(M40:M46,\">0\")+0.00000001)","v":0}]
[null,"a. appropriately solicit or decline human guide"]
[null,"b. find area just above elbow without groping guide"]
[null,"c. attain 'C' grip and maintain sufficient pressure to hold arm"]
[null,"d. walk with shoulder behind guide's shoulder"]
[null,"e. walk half step behind guide "]
[null,"f. move behind guide when guide moves arm to his/her back"]
[null,"g. react to changes in the height of the guide's elbow (e.g. guide elbow lowering indicates step, drop off or slope)"]
["2. Walking With Another (No Direct Contact)",null,null,{"$f":"SUM(C48:C51)/(COUNTIF(C48:C51,\">0\")+0.00000001)","v":0},null,{"$f":"SUM(E48:E51)/(COUNTIF(E48:E51,\">0\")+0.00000001)","v":0},null,{"$f":"SUM(G48:G51)/(COUNTIF(G48:G51,\">0\")+0.00000001)","v":0},null,{"$f":"SUM(I48:I51)/(COUNTIF(I48:I51,\">0\")+0.00000001)","v":0},null,{"$f":"SUM(K48:K51)/(COUNTIF(K48:K51,\">0\")+0.00000001)","v":0},null,{"$f":"SUM(M48:M51)/(COUNTIF(M48:M51,\">0\")+0.00000001)","v":0}]
[null,"a. maintain same pace as other person/people"]
[null,"b. stay with other person/people instead of trailing behind"]
[null,"c. maintain running conversation to keep track of pace and any turns other person/people make"]
[null,"d. in crowded areas or areas with lots of turns (e.g. stores) minimize utterances while drawing more verbosity from other/others to keep track of other/others"]
["3. Menus",null,null,{"$f":"SUM(C53:C55)/(COUNTIF(C53:C55,\">0\")+0.00000001)","v":0},null,{"$f":"SUM(E53:E55)/(COUNTIF(E53:E55,\">0\")+0.00000001)","v":0},null,{"$f":"SUM(G53:G55)/(COUNTIF(G53:G55,\">0\")+0.00000001)","v":0},null,{"$f":"SUM(I53:I55)/(COUNTIF(I53:I55,\">0\")+0.00000001)","v":0},null,{"$f":"SUM(K53:K55)/(COUNTIF(K53:K55,\">0\")+0.00000001)","v":0},null,{"$f":"SUM(M53:M55)/(COUNTIF(M53:M55,\">0\")+0.00000001)","v":0}]
[null,"a. check menu online before going out to eat"]
[null,"b. understand dining companions don't want to read entire menu aloud"]
[null,"c. ask about general menu categories and narrow selection"]
["4. Getting Rides",null,null,{"$f":"SUM(C57:C62)/(COUNTIF(C57:C62,\">0\")+0.00000001)","v":0},null,{"$f":"SUM(E57:E62)/(COUNTIF(E57:E62,\">0\")+0.00000001)","v":0},null,{"$f":"SUM(G57:G62)/(COUNTIF(G57:G62,\">0\")+0.00000001)","v":0},null,{"$f":"SUM(I57:I62)/(COUNTIF(I57:I62,\">0\")+0.00000001)","v":0},null,{"$f":"SUM(K57:K62)/(COUNTIF(K57:K62,\">0\")+0.00000001)","v":0},null,{"$f":"SUM(M57:M62)/(COUNTIF(M57:M62,\">0\")+0.00000001)","v":0}]
[null,"a. identify friends/family who are available to give rides"]
[null,"b. identify costs (e.g. gas, time, tolls) involved in giving rides"]
[null,"c. identify need to offer to help with driving expenses"]
[null,"d. understand some drivers will refuse cash"]
[null,"e. identify barter options (e.g. sit for their kids for rides)"]
[null,"f. identify need to synchronize schedule with drivers particularly when rides are needed with regularity"]
[null,"raw score for domain",null,{"$f":"D39+D47+D52+D56","v":0},null,{"$f":"F39+F47+F52+F56","v":0},null,{"$f":"H39+H47+H52+H56","v":0},null,{"$f":"J39+J47+J52+J56","v":0},null,{"$f":"L39+L47+L52+L56","v":0},null,{"$f":"N39+N47+N52+N56","v":0}]
[null,"average score for domain",null,{"$f":"D63/(COUNTIF(D39:D62,\">0\")+0.00000001)","v":0},null,{"$f":"F63/(COUNTIF(F39:F62,\">0\")+0.00000001)","v":0},null,{"$f":"H63/(COUNTIF(H39:H62,\">0\")+0.00000001)","v":0},null,{"$f":"J63/(COUNTIF(J39:J62,\">0\")+0.00000001)","v":0},null,{"$f":"L63/(COUNTIF(L39:L62,\">0\")+0.00000001)","v":0},null,{"$f":"N63/(COUNTIF(N39:N62,\">0\")+0.00000001)","v":0}]
[null,"percentage score for domain",null,{"$f":"D64/5*100","v":0},null,{"$f":"F64/5*100","v":0},null,{"$f":"H64/5*100","v":0},null,{"$f":"J64/5*100","v":0},null,{"$f":"L64/5*100","v":0},null,{"$f":"N64/5*100","v":0}]
["RATING SCALE"]
["0 = Student not capable of demonstrating skill or does not need skill"]
["1 = Student does not demonstrate skill but may/will learn skill"]
["2 = Student only demonstrates skill with verbal and/or physical prompting"]
["3 = Student sometimes demonstrates skill without verbal and/or physical prompting"]
["4 = Student demonstrates skill and verbal and/or physical prompting are rarely needed"]
["5 = Student has totally mastered skill and does not require verbal and/or physical prompting"]

{"sheet":"Cane Skill","index":7,"n_rows":116,"n_cols":15,"rows_kept":116,"cut":false,"hidden":false,"merged":[]}
["CANE SKILLS (1st Data Set--First 6 Columns On Front Page)",null,"Date",null,"Date",null,"Date",null,"Date",null,"Date",null,"Date",null,"notes"]
[null,null,"Input\nData","Auto\nScore","Input\nData","Auto\nScore","Input\nData","Auto\nScore","Input\nData","Auto\nScore","Input\nData","Auto\nScore","Input\nData","Auto\nScore"]
["1. Basic Skills",null,null,{"$f":"SUM(C4:C9)/(COUNTIF(C4:C9,\">0\")+0.00000001)","v":0},null,{"$f":"SUM(E4:E9)/(COUNTIF(E4:E9,\">0\")+0.00000001)","v":0},null,{"$f":"SUM(G4:G9)/(COUNTIF(G4:G9,\">0\")+0.00000001)","v":0},null,{"$f":"SUM(I4:I9)/(COUNTIF(I4:I9,\">0\")+0.00000001)","v":0},null,{"$f":"SUM(K4:K9)/(COUNTIF(K4:K9,\">0\")+0.00000001)","v":0},null,{"$f":"SUM(M4:M9)/(COUNTIF(M4:M9,\">0\")+0.00000001)","v":0}]
[null,"a. grasp cane handle firmly enough to keep from dropping"]
[null,"b. maintain grip on cane while walking"]
[null,"c. maintain grip when cane encounters object"]
[null,"d. identify when cane has contacted object"]
[null,"e. identify when cane has encountered drop off or curb"]
[null,"f. identify when cane has encountered change in terrain"]
["2. Types Of Grips",null,null,{"$f":"SUM(C11:C15)/(COUNTIF(C11:C15,\">0\")+0.00000001)","v":0},null,{"$f":"SUM(E11:E15)/(COUNTIF(E11:E15,\">0\")+0.00000001)","v":0},null,{"$f":"SUM(G11:G15)/(COUNTIF(G11:G15,\">0\")+0.00000001)","v":0},null,{"$f":"SUM(I11:I15)/(COUNTIF(I11:I15,\">0\")+0.00000001)","v":0},null,{"$f":"SUM(K11:K15)/(COUNTIF(K11:K15,\">0\")+0.00000001)","v":0},null,{"$f":"SUM(M11:M15)/(COUNTIF(M11:M15,\">0\")+0.00000001)","v":0}]
[null,"a. demonstrate centered/above waist handshake grip"]
[null,"b. demonstrate centered pencil grip"]
[null,"c. demonstrate handshake grip held to the side near hip"]
[null,"d. identify benefits/limitations of each grip type"]
[null,"e. identify situations where various cane grips are beneficial"]
["3. Constant Contact",null,null,{"$f":"SUM(C17:C21)/(COUNTIF(C17:C21,\">0\")+0.00000001)","v":0},null,{"$f":"SUM(E17:E21)/(COUNTIF(E17:E21,\">0\")+0.00000001)","v":0},null,{"$f":"SUM(G17:G21)/(COUNTIF(G17:G21,\">0\")+0.00000001)","v":0},null,{"$f":"SUM(I17:I21)/(COUNTIF(I17:I21,\">0\")+0.00000001)","v":0},null,{"$f":"SUM(K17:K21)/(COUNTIF(K17:K21,\">0\")+0.00000001)","v":0},null,{"$f":"SUM(M17:M21)/(COUNTIF(M17:M21,\">0\")+0.00000001)","v":0}]
[null,"a. identify situations where constant contact is appropriate"]
[null,"b. keep cane in front of body at all times"]
[null,"c. keep cane on the ground at all times"]
[null,"d. move cane in a constant arc slightly wider than shoulders"]
[null,"e. remain 'in step' to maximize protection"]
["4. Diagonal/Diagonal Trail",null,null,{"$f":"SUM(C23:C27)/(COUNTIF(C23:C27,\">0\")+0.00000001)","v":0},null,{"$f":"SUM(E23:E27)/(COUNTIF(E23:E27,\">0\")+0.00000001)","v":0},null,{"$f":"SUM(G23:G27)/(COUNTIF(G23:G27,\">0\")+0.00000001)","v":0},null,{"$f":"SUM(I23:I27)/(COUNTIF(I23:I27,\">0\")+0.00000001)","v":0},null,{"$f":"SUM(K23:K27)/(COUNTIF(K23:K27,\">0\")+0.00000001)","v":0},null,{"$f":"SUM(M23:M27)/(COUNTIF(M23:M27,\">0\")+0.00000001)","v":0}]
[null,"a. identify situations where diagonal is appropriate"]
[null,"b. keep cane in front of body at all times"]
[null,"c. keep cane on the ground at all times"]
[null,"d. keep cane at diagonal across body, covering both shoulders"]
[null,"e. count doors/intersecting hallways when trailing"]
["5. Two Point Touch/Touch Trail",null,null,{"$f":"SUM(C29:C34)/(COUNTIF(C29:C34,\">0\")+0.00000001)","v":0},null,{"$f":"SUM(E29:E34)/(COUNTIF(E29:E34,\">0\")+0.00000001)","v":0},null,{"$f":"SUM(G29:G34)/(COUNTIF(G29:G34,\">0\")+0.00000001)","v":0},null,{"$f":"SUM(I29:I34)/(COUNTIF(I29:I34,\">0\")+0.00000001)","v":0},null,{"$f":"SUM(K29:K34)/(COUNTIF(K29:K34,\">0\")+0.00000001)","v":0},null,{"$f":"SUM(M29:M34)/(COUNTIF(M29:M34,\">0\")+0.00000001)","v":0}]
[null,"a. identify situations where two point touch is appropriate"]
[null,"b. keep cane in front of body at all times"]
[null,"c. lift cane slightly off ground, maintaining low arc"]
[null,"d. tap cane slightly outside of each shoulder (arc width)"]
[null,"e. when trailing, tap a bit farther to the side to locate intersecting sidewalk"]
[null,"f. remain 'in step' to maximize protection"]
["6. Touch And Drag",null,null,{"$f":"SUM(C36:C41)/(COUNTIF(C36:C41,\">0\")+0.00000001)","v":0},null,{"$f":"SUM(E36:E41)/(COUNTIF(E36:E41,\">0\")+0.00000001)","v":0},null,{"$f":"SUM(G36:G41)/(COUNTIF(G36:G41,\">0\")+0.00000001)","v":0},null,{"$f":"SUM(I36:I41)/(COUNTIF(I36:I41,\">0\")+0.00000001)","v":0},null,{"$f":"SUM(K36:K41)/(COUNTIF(K36:K41,\">0\")+0.00000001)","v":0},null,{"$f":"SUM(M36:M41)/(COUNTIF(M36:M41,\">0\")+0.00000001)","v":0}]
[null,"a. identify situations were touch and drag is appropriate"]
[null,"b. keep cane in front of body at all times"]
[null,"c. lift cane slightly off ground, maintaining low arc"]
[null,"d. tap outside of shoulder opposite of line being trailed"]
[null,"e. drag cane in constant contact arc across body, contact surface being trailed"]
[null,"f. remain as 'in step' as possible to maximize protection"]
["7. Three Point Touch",null,null,{"$f":"SUM(C43:C48)/(COUNTIF(C43:C48,\">0\")+0.00000001)","v":0},null,{"$f":"SUM(E43:E48)/(COUNTIF(E43:E48,\">0\")+0.00000001)","v":0},null,{"$f":"SUM(G43:G48)/(COUNTIF(G43:G48,\">0\")+0.00000001)","v":0},null,{"$f":"SUM(I43:I48)/(COUNTIF(I43:I48,\">0\")+0.00000001)","v":0},null,{"$f":"SUM(K43:K48)/(COUNTIF(K43:K48,\">0\")+0.00000001)","v":0},null,{"$f":"SUM(M43:M48)/(COUNTIF(M43:M48,\">0\")+0.00000001)","v":0}]
[null,"a. identify situations where three point touch is appropriate"]
[null,"b. keep cane in front of body at all times"]
[null,"c. lift cane slightly off ground, maintaining low arc"]
[null,"d. tap cane slightly outside of each shoulder (arc width)"]
[null,"e. tap cane on surface being trailed well outside of shoulder to locate intersecting sidewalk"]
[null,"f. remain as 'in step' as possible to maximize protection"]
[null,"raw score for domain",null,{"$f":"D3+D10+D16+D22+D28+D35+D42","v":0},null,{"$f":"F3+F10+F16+F22+F28+F35+F42","v":0},null,{"$f":"H3+H10+H16+H22+H28+H35+H42","v":0},null,{"$f":"J3+J10+J16+J22+J28+J35+J42","v":0},null,{"$f":"L3+L10+L16+L22+L28+L35+L42","v":0},null,{"$f":"N3+N10+N16+N22+N28+N35+N42","v":0}]
[null,"average score for domain",null,{"$f":"D49/(COUNTIF(D3:D48,\">0\")+0.00000001)","v":0},null,{"$f":"F49/(COUNTIF(F3:F48,\">0\")+0.00000001)","v":0},null,{"$f":"H49/(COUNTIF(H3:H48,\">0\")+0.00000001)","v":0},null,{"$f":"J49/(COUNTIF(J3:J48,\">0\")+0.00000001)","v":0},null,{"$f":"L49/(COUNTIF(L3:L48,\">0\")+0.00000001)","v":0},null,{"$f":"N49/(COUNTIF(N3:N48,\">0\")+0.00000001)","v":0}]
[null,"percentage score for domain",null,{"$f":"D50/5*100","v":0},null,{"$f":"F50/5*100","v":0},null,{"$f":"H50/5*100","v":0},null,{"$f":"J50/5*100","v":0},null,{"$f":"L50/5*100","v":0},null,{"$f":"N50/5*100","v":0}]
["RATING SCALE"]
["0 = Student not capable of demonstrating skill or does not need skill"]
["1 = Student does not demonstrate skill but may/will learn skill"]
["2 = Student only demonstrates skill with verbal and/or physical prompting"]
["3 = Student sometimes demonstrates skill without verbal and/or physical prompting"]
["4 = Student demonstrates skill and verbal and/or physical prompting are rarely needed"]
["5 = Student has totally mastered skill and does not require verbal and/or physical prompting"]
["CANE SKILLS (2nd Data Set--Last 6 Columns On Front Page)",null,"Date",null,"Date",null,"Date",null,"Date",null,"Date",null,"Date",null,"notes"]
[null,null,"Input\nData","Auto\nScore","Input\nData","Auto\nScore","Input\nData","Auto\nScore","Input\nData","Auto\nScore","Input\nData","Auto\nScore","Input\nData","Auto\nScore"]
["1. Basic Skills",null,null,{"$f":"SUM(C62:C67)/(COUNTIF(C62:C67,\">0\")+0.00000001)","v":0},null,{"$f":"SUM(E62:E67)/(COUNTIF(E62:E67,\">0\")+0.00000001)","v":0},null,{"$f":"SUM(G62:G67)/(COUNTIF(G62:G67,\">0\")+0.00000001)","v":0},null,{"$f":"SUM(I62:I67)/(COUNTIF(I62:I67,\">0\")+0.00000001)","v":0},null,{"$f":"SUM(K62:K67)/(COUNTIF(K62:K67,\">0\")+0.00000001)","v":0},null,{"$f":"SUM(M62:M67)/(COUNTIF(M62:M67,\">0\")+0.00000001)","v":0}]
[null,"a. grasp cane handle firmly enough to keep from dropping"]
[null,"b. maintain grip on cane while walking"]
[null,"c. maintain grip when cane encounters object"]
[null,"d. identify when cane has contacted object"]
[null,"e. identify when cane has encountered drop off or curb"]
[null,"f. identify when cane has encountered change in terrain"]
["2. Types Of Grips",null,null,{"$f":"SUM(C69:C73)/(COUNTIF(C69:C73,\">0\")+0.00000001)","v":0},null,{"$f":"SUM(E69:E73)/(COUNTIF(E69:E73,\">0\")+0.00000001)","v":0},null,{"$f":"SUM(G69:G73)/(COUNTIF(G69:G73,\">0\")+0.00000001)","v":0},null,{"$f":"SUM(I69:I73)/(COUNTIF(I69:I73,\">0\")+0.00000001)","v":0},null,{"$f":"SUM(K69:K73)/(COUNTIF(K69:K73,\">0\")+0.00000001)","v":0},null,{"$f":"SUM(M69:M73)/(COUNTIF(M69:M73,\">0\")+0.00000001)","v":0}]
[null,"a. demonstrate centered/above waist handshake grip"]
[null,"b. demonstrate centered pencil grip"]
[null,"c. demonstrate handshake grip held to the side near hip"]
[null,"d. identify benefits/limitations of each grip type"]
[null,"e. identify situations where various cane grips are beneficial"]
["3. Constant Contact",null,null,{"$f":"SUM(C75:C79)/(COUNTIF(C75:C79,\">0\")+0.00000001)","v":0},null,{"$f":"SUM(E75:E79)/(COUNTIF(E75:E79,\">0\")+0.00000001)","v":0},null,{"$f":"SUM(G75:G79)/(COUNTIF(G75:G79,\">0\")+0.00000001)","v":0},null,{"$f":"SUM(I75:I79)/(COUNTIF(I75:I79,\">0\")+0.00000001)","v":0},null,{"$f":"SUM(K75:K79)/(COUNTIF(K75:K79,\">0\")+0.00000001)","v":0},null,{"$f":"SUM(M75:M79)/(COUNTIF(M75:M79,\">0\")+0.00000001)","v":0}]
[null,"a. identify situations where constant contact is appropriate"]
[null,"b. keep cane in front of body at all times"]
[null,"c. keep cane on the ground at all times"]
[null,"d. move cane in a constant arc slightly wider than shoulders"]
[null,"e. remain 'in step' to maximize protection"]
["4. Diagonal/Diagonal Trail",null,null,{"$f":"SUM(C81:C85)/(COUNTIF(C81:C85,\">0\")+0.00000001)","v":0},null,{"$f":"SUM(E81:E85)/(COUNTIF(E81:E85,\">0\")+0.00000001)","v":0},null,{"$f":"SUM(G81:G85)/(COUNTIF(G81:G85,\">0\")+0.00000001)","v":0},null,{"$f":"SUM(I81:I85)/(COUNTIF(I81:I85,\">0\")+0.00000001)","v":0},null,{"$f":"SUM(K81:K85)/(COUNTIF(K81:K85,\">0\")+0.00000001)","v":0},null,{"$f":"SUM(M81:M85)/(COUNTIF(M81:M85,\">0\")+0.00000001)","v":0}]
[null,"a. identify situations where diagonal is appropriate"]
[null,"b. keep cane in front of body at all times"]
[null,"c. keep cane on the ground at all times"]
[null,"d. keep cane at diagonal across body, covering both shoulders"]
[null,"e. count doors/intersecting hallways when trailing"]
["5. Two Point Touch/Touch Trail",null,null,{"$f":"SUM(C87:C92)/(COUNTIF(C87:C92,\">0\")+0.00000001)","v":0},null,{"$f":"SUM(E87:E92)/(COUNTIF(E87:E92,\">0\")+0.00000001)","v":0},null,{"$f":"SUM(G87:G92)/(COUNTIF(G87:G92,\">0\")+0.00000001)","v":0},null,{"$f":"SUM(I87:I92)/(COUNTIF(I87:I92,\">0\")+0.00000001)","v":0},null,{"$f":"SUM(K87:K92)/(COUNTIF(K87:K92,\">0\")+0.00000001)","v":0},null,{"$f":"SUM(M87:M92)/(COUNTIF(M87:M92,\">0\")+0.00000001)","v":0}]
[null,"a. identify situations where two point touch is appropriate"]
[null,"b. keep cane in front of body at all times"]
[null,"c. lift cane slightly off ground, maintaining low arc"]
[null,"d. tap cane slightly outside of each shoulder (arc width)"]
[null,"e. when trailing, tap a bit farther to the side to locate intersecting sidewalk"]
[null,"f. remain 'in step' to maximize protection"]
["6. Touch And Drag",null,null,{"$f":"SUM(C94:C99)/(COUNTIF(C94:C99,\">0\")+0.00000001)","v":0},null,{"$f":"SUM(E94:E99)/(COUNTIF(E94:E99,\">0\")+0.00000001)","v":0},null,{"$f":"SUM(G94:G99)/(COUNTIF(G94:G99,\">0\")+0.00000001)","v":0},null,{"$f":"SUM(I94:I99)/(COUNTIF(I94:I99,\">0\")+0.00000001)","v":0},null,{"$f":"SUM(K94:K99)/(COUNTIF(K94:K99,\">0\")+0.00000001)","v":0},null,{"$f":"SUM(M94:M99)/(COUNTIF(M94:M99,\">0\")+0.00000001)","v":0}]
[null,"a. identify situations were touch and drag is appropriate"]
[null,"b. keep cane in front of body at all times"]
[null,"c. lift cane slightly off ground, maintaining low arc"]
[null,"d. tap outside of shoulder opposite of line being trailed"]
[null,"e. drag cane in constant contact arc across body, contact surface being trailed"]
[null,"f. remain as 'in step' as possible to maximize protection"]
["7. Three Point Touch",null,null,{"$f":"SUM(C101:C106)/(COUNTIF(C101:C106,\">0\")+0.00000001)","v":0},null,{"$f":"SUM(E101:E106)/(COUNTIF(E101:E106,\">0\")+0.00000001)","v":0},null,{"$f":"SUM(G101:G106)/(COUNTIF(G101:G106,\">0\")+0.00000001)","v":0},null,{"$f":"SUM(I101:I106)/(COUNTIF(I101:I106,\">0\")+0.00000001)","v":0},null,{"$f":"SUM(K101:K106)/(COUNTIF(K101:K106,\">0\")+0.00000001)","v":0},null,{"$f":"SUM(M101:M106)/(COUNTIF(M101:M106,\">0\")+0.00000001)","v":0}]
[null,"a. identify situations where three point touch is appropriate"]
[null,"b. keep cane in front of body at all times"]
[null,"c. lift cane slightly off ground, maintaining low arc"]
[null,"d. tap cane slightly outside of each shoulder (arc width)"]
[null,"e. tap cane on surface being trailed well outside of shoulder to locate intersecting sidewalk"]
[null,"f. remain as 'in step' as possible to maximize protection"]
[null,"raw score for domain",null,{"$f":"D61+D68+D74+D80+D86+D93+D100","v":0},null,{"$f":"F61+F68+F74+F80+F86+F93+F100","v":0},null,{"$f":"H61+H68+H74+H80+H86+H93+H100","v":0},null,{"$f":"J61+J68+J74+J80+J86+J93+J100","v":0},null,{"$f":"L61+L68+L74+L80+L86+L93+L100","v":0},null,{"$f":"N61+N68+N74+N80+N86+N93+N100","v":0}]
[null,"average score for domain",null,{"$f":"D107/(COUNTIF(D61:D106,\">0\")+0.00000001)","v":0},null,{"$f":"F107/(COUNTIF(F61:F106,\">0\")+0.00000001)","v":0},null,{"$f":"H107/(COUNTIF(H61:H106,\">0\")+0.00000001)","v":0},null,{"$f":"J107/(COUNTIF(J61:J106,\">0\")+0.00000001)","v":0},null,{"$f":"L107/(COUNTIF(L61:L106,\">0\")+0.00000001)","v":0},null,{"$f":"N107/(COUNTIF(N61:N106,\">0\")+0.00000001)","v":0}]
[null,"percentage score for domain",null,{"$f":"D108/5*100","v":0},null,{"$f":"F108/5*100","v":0},null,{"$f":"H108/5*100","v":0},null,{"$f":"J108/5*100","v":0},null,{"$f":"L108/5*100","v":0},null,{"$f":"N108/5*100","v":0}]
["RATING SCALE"]
["0 = Student not capable of demonstrating skill or does not need skill"]
["1 = Student does not demonstrate skill but may/will learn skill"]
["2 = Student only demonstrates skill with verbal and/or physical prompting"]
["3 = Student sometimes demonstrates skill without verbal and/or physical prompting"]
["4 = Student demonstrates skill and verbal and/or physical prompting are rarely needed"]
["5 = Student has totally mastered skill and does not require verbal and/or physical prompting"]

{"sheet":"Sidewalk","index":8,"n_rows":74,"n_cols":15,"rows_kept":74,"cut":false,"hidden":false,"merged":[]}
["SIDEWALK TRAVEL (1st Data Set--First 6 Columns On Front Page)",null,"Date",null,"Date",null,"Date",null,"Date",null,"Date",null,"Date",null,"notes"]
[null,null,"Input\nData","Auto\nScore","Input\nData","Auto\nScore","Input\nData","Auto\nScore","Input\nData","Auto\nScore","Input\nData","Auto\nScore","Input\nData","Auto\nScore"]
["1. Walk On Sidewalks",null,null,{"$f":"SUM(C4:C14)/(COUNTIF(C4:C14,\">0\")+0.00000001)","v":0},null,{"$f":"SUM(E4:E14)/(COUNTIF(E4:E14,\">0\")+0.00000001)","v":0},null,{"$f":"SUM(G4:G14)/(COUNTIF(G4:G14,\">0\")+0.00000001)","v":0},null,{"$f":"SUM(I4:I14)/(COUNTIF(I4:I14,\">0\")+0.00000001)","v":0},null,{"$f":"SUM(K4:K14)/(COUNTIF(K4:K14,\">0\")+0.00000001)","v":0},null,{"$f":"SUM(M4:M14)/(COUNTIF(M4:M14,\">0\")+0.00000001)","v":0}]
[null,"a. walk without continual veering"]
[null,"b. detect intersecting sidewalks"]
[null,"c. detect curbs at end of block"]
[null,"d. maintain balance on driveway cuts"]
[null,"e. go around vehicles parked over sidewalk (towards street)"]
[null,"f. detect and go around or close open gates"]
[null,"g. detect and identify sidewalk blockages due to construction (e.g. caution tape, barrels)"]
[null,"h. use protective technique to deal with low hanging branches "]
[null,"i. detect and go around street hardware (e.g. mailbox, pole)"]
[null,"j. identify useful street hardware (e.g. post office mailbox)"]
[null,"k. detect and go around other pedestrians on sidewalk"]
["2. Walk On Irregular Sidewalks",null,null,{"$f":"SUM(C16:C20)/(COUNTIF(C16:C20,\">0\")+0.00000001)","v":0},null,{"$f":"SUM(E16:E20)/(COUNTIF(E16:E20,\">0\")+0.00000001)","v":0},null,{"$f":"SUM(G16:G20)/(COUNTIF(G16:G20,\">0\")+0.00000001)","v":0},null,{"$f":"SUM(I16:I20)/(COUNTIF(I16:I20,\">0\")+0.00000001)","v":0},null,{"$f":"SUM(K16:K20)/(COUNTIF(K16:K20,\">0\")+0.00000001)","v":0},null,{"$f":"SUM(M16:M20)/(COUNTIF(M16:M20,\">0\")+0.00000001)","v":0}]
[null,"a. maintain balance on broken sidewalk"]
[null,"b. maintain Line Of Travel (L.O.T.) on broken sidewalk"]
[null,"c. maintain L.O.T. briefly when sidewalk is covered by dirt, rocks, grass or gravel"]
[null,"d. detect curb at end of block with irregular sidewalk"]
[null,"e. transition to street if sidewalk becomes impassable"]
["3. Correct For Veer On Sidewalks",null,null,{"$f":"SUM(C22:C27)/(COUNTIF(C22:C27,\">0\")+0.00000001)","v":0},null,{"$f":"SUM(E22:E27)/(COUNTIF(E22:E27,\">0\")+0.00000001)","v":0},null,{"$f":"SUM(G22:G27)/(COUNTIF(G22:G27,\">0\")+0.00000001)","v":0},null,{"$f":"SUM(I22:I27)/(COUNTIF(I22:I27,\">0\")+0.00000001)","v":0},null,{"$f":"SUM(K22:K27)/(COUNTIF(K22:K27,\">0\")+0.00000001)","v":0},null,{"$f":"SUM(M22:M27)/(COUNTIF(M22:M27,\">0\")+0.00000001)","v":0}]
[null,"a. stop walking when feet encounter surface other than sidewalk"]
[null,"b. without turning, sweep cane in 180 arc to find sidewalk"]
[null,"c. take sidewalk that allows continuation of L.O.T."]
[null,"d. if no sidewalk found, move first towards the parallel street while checking for sidewalk, resume L.O.T. if found"]
[null,"e. if no sidewalk found, move next away from parallel street while checking for sidewalk, resume L.O.T. if found"]
[null,"f. if sidewalk ended, transition to street"]
[null,"raw score for domain",null,{"$f":"D3+D15+D21","v":0},null,{"$f":"F3+F15+F21","v":0},null,{"$f":"H3+H15+H21","v":0},null,{"$f":"J3+J15+J21","v":0},null,{"$f":"L3+L15+L21","v":0},null,{"$f":"N3+N15+N21","v":0}]
[null,"average score for domain",null,{"$f":"D28/(COUNTIF(D3:D21,\">0\")+0.00000001)","v":0},null,{"$f":"F28/(COUNTIF(F3:F21,\">0\")+0.00000001)","v":0},null,{"$f":"H28/(COUNTIF(H3:H21,\">0\")+0.00000001)","v":0},null,{"$f":"J28/(COUNTIF(J3:J21,\">0\")+0.00000001)","v":0},null,{"$f":"L28/(COUNTIF(L3:L21,\">0\")+0.00000001)","v":0},null,{"$f":"N28/(COUNTIF(N3:N21,\">0\")+0.00000001)","v":0}]
[null,"percentage score for domain",null,{"$f":"D29/5*100","v":0},null,{"$f":"F29/5*100","v":0},null,{"$f":"H29/5*100","v":0},null,{"$f":"J29/5*100","v":0},null,{"$f":"L29/5*100","v":0},null,{"$f":"N29/5*100","v":0}]
["RATING SCALE"]
["0 = Student not capable of demonstrating skill or does not need skill"]
["1 = Student does not demonstrate skill but may/will learn skill"]
["2 = Student only demonstrates skill with verbal and/or physical prompting"]
["3 = Student sometimes demonstrates skill without verbal and/or physical prompting"]
["4 = Student demonstrates skill and verbal and/or physical prompting are rarely needed"]
["5 = Student has totally mastered skill and does not require verbal and/or physical prompting"]
["SIDEWALK TRAVEL (2nd Data Set--Last 6 Columns On Front Page)",null,"Date",null,"Date",null,"Date",null,"Date",null,"Date",null,"Date",null,"notes"]
[null,null,"Input\nData","Auto\nScore","Input\nData","Auto\nScore","Input\nData","Auto\nScore","Input\nData","Auto\nScore","Input\nData","Auto\nScore","Input\nData","Auto\nScore"]
["1. Walk On Sidewalks",null,null,{"$f":"SUM(C41:C51)/(COUNTIF(C41:C51,\">0\")+0.00000001)","v":0},null,{"$f":"SUM(E41:E51)/(COUNTIF(E41:E51,\">0\")+0.00000001)","v":0},null,{"$f":"SUM(G41:G51)/(COUNTIF(G41:G51,\">0\")+0.00000001)","v":0},null,{"$f":"SUM(I41:I51)/(COUNTIF(I41:I51,\">0\")+0.00000001)","v":0},null,{"$f":"SUM(K41:K51)/(COUNTIF(K41:K51,\">0\")+0.00000001)","v":0},null,{"$f":"SUM(M41:M51)/(COUNTIF(M41:M51,\">0\")+0.00000001)","v":0}]
[null,"a. walk without continual veering"]
[null,"b. detect intersecting sidewalks"]
[null,"c. detect curbs at end of block"]
[null,"d. maintain balance on driveway cuts"]
[null,"e. go around vehicles parked over sidewalk (towards street)"]
[null,"f. detect and go around or close open gates"]
[null,"g. detect and identify sidewalk blockages due to construction (e.g. caution tape, barrels)"]
[null,"h. use protective technique to deal with low hanging branches "]
[null,"i. detect and go around street hardware (e.g. mailbox, pole)"]
[null,"j. identify useful street hardware (e.g. post office mailbox)"]
[null,"k. detect and go around other pedestrians on sidewalk"]
["2. Walk On Irregular Sidewalks",null,null,{"$f":"SUM(C53:C57)/(COUNTIF(C53:C57,\">0\")+0.00000001)","v":0},null,{"$f":"SUM(E53:E57)/(COUNTIF(E53:E57,\">0\")+0.00000001)","v":0},null,{"$f":"SUM(G53:G57)/(COUNTIF(G53:G57,\">0\")+0.00000001)","v":0},null,{"$f":"SUM(I53:I57)/(COUNTIF(I53:I57,\">0\")+0.00000001)","v":0},null,{"$f":"SUM(K53:K57)/(COUNTIF(K53:K57,\">0\")+0.00000001)","v":0},null,{"$f":"SUM(M53:M57)/(COUNTIF(M53:M57,\">0\")+0.00000001)","v":0}]
[null,"a. maintain balance on broken sidewalk"]
[null,"b. maintain Line Of Travel (L.O.T.) on broken sidewalk"]
[null,"c. maintain L.O.T. briefly when sidewalk is covered by dirt, rocks, grass or gravel"]
[null,"d. detect curb at end of block with irregular sidewalk"]
[null,"e. transition to street if sidewalk becomes impassable"]
["3. Correct For Veer On Sidewalks",null,null,{"$f":"SUM(C59:C64)/(COUNTIF(C59:C64,\">0\")+0.00000001)","v":0},null,{"$f":"SUM(E59:E64)/(COUNTIF(E59:E64,\">0\")+0.00000001)","v":0},null,{"$f":"SUM(G59:G64)/(COUNTIF(G59:G64,\">0\")+0.00000001)","v":0},null,{"$f":"SUM(I59:I64)/(COUNTIF(I59:I64,\">0\")+0.00000001)","v":0},null,{"$f":"SUM(K59:K64)/(COUNTIF(K59:K64,\">0\")+0.00000001)","v":0},null,{"$f":"SUM(M59:M64)/(COUNTIF(M59:M64,\">0\")+0.00000001)","v":0}]
[null,"a. stop walking when feet encounter surface other than sidewalk"]
[null,"b. without turning, sweep cane in 180 arc to find sidewalk"]
[null,"c. take sidewalk that allows continuation of L.O.T."]
[null,"d. if no sidewalk found, move first towards the parallel street while checking for sidewalk, resume L.O.T. if found"]
[null,"e. if no sidewalk found, move next away from parallel street while checking for sidewalk, resume L.O.T. if found"]
[null,"f. if sidewalk ended, transition to street"]
[null,"raw score for domain",null,{"$f":"D40+D52+D58","v":0},null,{"$f":"F40+F52+F58","v":0},null,{"$f":"H40+H52+H58","v":0},null,{"$f":"J40+J52+J58","v":0},null,{"$f":"L40+L52+L58","v":0},null,{"$f":"N40+N52+N58","v":0}]
[null,"average score for domain",null,{"$f":"D65/(COUNTIF(D40:D58,\">0\")+0.00000001)","v":0},null,{"$f":"F65/(COUNTIF(F40:F58,\">0\")+0.00000001)","v":0},null,{"$f":"H65/(COUNTIF(H40:H58,\">0\")+0.00000001)","v":0},null,{"$f":"J65/(COUNTIF(J40:J58,\">0\")+0.00000001)","v":0},null,{"$f":"L65/(COUNTIF(L40:L58,\">0\")+0.00000001)","v":0},null,{"$f":"N65/(COUNTIF(N40:N58,\">0\")+0.00000001)","v":0}]
[null,"percentage score for domain",null,{"$f":"D66/5*100","v":0},null,{"$f":"F66/5*100","v":0},null,{"$f":"H66/5*100","v":0},null,{"$f":"J66/5*100","v":0},null,{"$f":"L66/5*100","v":0},null,{"$f":"N66/5*100","v":0}]
["RATING SCALE"]
["0 = Student not capable of demonstrating skill or does not need skill"]
["1 = Student does not demonstrate skill but may/will learn skill"]
["2 = Student only demonstrates skill with verbal and/or physical prompting"]
["3 = Student sometimes demonstrates skill without verbal and/or physical prompting"]
["4 = Student demonstrates skill and verbal and/or physical prompting are rarely needed"]
["5 = Student has totally mastered skill and does not require verbal and/or physical prompting"]

{"sheet":"Street Cross","index":9,"n_rows":352,"n_cols":15,"rows_kept":352,"cut":false,"hidden":false,"merged":[]}
["STREET CROSSINGS (1st Data Set--First 6 Columns On Front Page)",null,"Date",null,"Date",null,"Date",null,"Date",null,"Date",null,"Date",null,"Notes"]
[null,null,"Input\nData","Auto\nScore","Input\nData","Auto\nScore","Input\nData","Auto\nScore","Input\nData","Auto\nScore","Input\nData","Auto\nScore","Input\nData","Auto\nScore"]
["1. Anticipate Upcoming Street Crossing",null,null,{"$f":"SUM(C4:C8)/(COUNTIF(C4:C8,\">0\")+0.00000001)","v":0},null,{"$f":"SUM(E4:E8)/(COUNTIF(E4:E8,\">0\")+0.00000001)","v":0},null,{"$f":"SUM(G4:G8)/(COUNTIF(G4:G8,\">0\")+0.00000001)","v":0},null,{"$f":"SUM(I4:I8)/(COUNTIF(I4:I8,\">0\")+0.00000001)","v":0},null,{"$f":"SUM(K4:K8)/(COUNTIF(K4:K8,\">0\")+0.00000001)","v":0},null,{"$f":"SUM(M4:M8)/(COUNTIF(M4:M8,\">0\")+0.00000001)","v":0}]
[null,"a. via time and distance"]
[null,"b. via environmental cues"]
[null,"c. locate curb (visually or with cane)"]
[null,"d. changes in wind or 'open' feeling"]
[null,"e. traffic sounds"]
["2. Maintain Line Of Travel (L.O.T.)",null,null,{"$f":"C9","v":0},null,{"$f":"E9","v":0},null,{"$f":"G9","v":0},null,{"$f":"I9","v":0},null,{"$f":"K9","v":0},null,{"$f":"M9","v":0}]
["3. Maintain total body alignment",null,null,{"$f":"SUM(C11:C13)/(COUNTIF(C11:C13,\">0\")+0.00000001)","v":0},null,{"$f":"SUM(E11:E13)/(COUNTIF(E11:E13,\">0\")+0.00000001)","v":0},null,{"$f":"SUM(G11:G13)/(COUNTIF(G11:G13,\">0\")+0.00000001)","v":0},null,{"$f":"SUM(I11:I13)/(COUNTIF(I11:I13,\">0\")+0.00000001)","v":0},null,{"$f":"SUM(K11:K13)/(COUNTIF(K11:K13,\">0\")+0.00000001)","v":0},null,{"$f":"SUM(M11:M13)/(COUNTIF(M11:M13,\">0\")+0.00000001)","v":0}]
[null,"a. keep head aligned with L.O.T."]
[null,"b. keep shoulders aligned with L.O.T."]
[null,"c. keep toes aligned with L.O.T. "]
["4. Re-establish total body alignment (due to turn or misalign)",null,null,{"$f":"SUM(C15:C17)/(COUNTIF(C15:C17,\">0\")+0.00000001)","v":0},null,{"$f":"SUM(E15:E17)/(COUNTIF(E15:E17,\">0\")+0.00000001)","v":0},null,{"$f":"SUM(G15:G17)/(COUNTIF(G15:G17,\">0\")+0.00000001)","v":0},null,{"$f":"SUM(I15:I17)/(COUNTIF(I15:I17,\">0\")+0.00000001)","v":0},null,{"$f":"SUM(K15:K17)/(COUNTIF(K15:K17,\">0\")+0.00000001)","v":0},null,{"$f":"SUM(M15:M17)/(COUNTIF(M15:M17,\">0\")+0.00000001)","v":0}]
[null,"a. position head parallel to parallel street"]
[null,"b. position shoulders parallel to perpendicular street"]
[null,"c. align toes with shoulders/head"]
["5. Analyze Intersection",null,null,{"$f":"SUM(C19:C32)/(COUNTIF(C19:C32,\">0\")+0.00000001)","v":0},null,{"$f":"SUM(E19:E32)/(COUNTIF(E19:E32,\">0\")+0.00000001)","v":0},null,{"$f":"SUM(G19:G32)/(COUNTIF(G19:G32,\">0\")+0.00000001)","v":0},null,{"$f":"SUM(I19:I32)/(COUNTIF(I19:I32,\">0\")+0.00000001)","v":0},null,{"$f":"SUM(K19:K32)/(COUNTIF(K19:K32,\">0\")+0.00000001)","v":0},null,{"$f":"SUM(M19:M32)/(COUNTIF(M19:M32,\">0\")+0.00000001)","v":0}]
[null,"a. identify location of parallel street"]
[null,"b. identify location of perpendicular street"]
[null,"c. identify crossing as clockwise or counterclockwise"]
[null,"d. identify parallel traffic in the near lane as being 'right across' the intersection when making clockwise crossings"]
[null,"e. identify parallel traffic in the near lane as being 'left behind' the intersection when making counterclockwise crossings"]
[null,"f. identify dangers posed by perpendicular traffic & turning vehicles"]
[null,"g. identify masking sounds (e.g. construction, loud car)"]
[null,"h. identify sound shadows (e.g. sounds blocked by parked van)"]
[null,"i. identify 'plus' intersection"]
[null,"j. identify 'T' intersection"]
[null,"k. identify 'Y' intersection"]
[null,"l. identify roundabout"]
[null,"m. identify  significantly offset intersection"]
[null,"n. identify atypical intersection"]
["6. 'Plus' Intersections",null,null,{"$f":"SUM(C34:C51)/(COUNTIF(C34:C51,\">0\")+0.00000001)","v":0},null,{"$f":"SUM(E34:E51)/(COUNTIF(E34:E51,\">0\")+0.00000001)","v":0},null,{"$f":"SUM(G34:G51)/(COUNTIF(G34:G51,\">0\")+0.00000001)","v":0},null,{"$f":"SUM(I34:I51)/(COUNTIF(I34:I51,\">0\")+0.00000001)","v":0},null,{"$f":"SUM(K34:K51)/(COUNTIF(K34:K51,\">0\")+0.00000001)","v":0},null,{"$f":"SUM(M34:M51)/(COUNTIF(M34:M51,\">0\")+0.00000001)","v":0}]
[null,"a. identify 'plus' intersection with all way stop"]
[null,"b. identify 'plus' intersection with parallel street stopped"]
[null,"c. identify 'plus' intersection with perpendicular street stopped"]
[null,"d. identify 'plus' intersection with traffic signal"]
["All Way Stop","e. cross 'plus' intersection with all way stop plan A: cross at a lull"]
[null,"f. cross 'plus' intersection with all way stop plan B: when no traffic in intersection"]
[null,"g.  cross 'plus' intersection with all way stop plan C: cross with parallel traffic in near lane"]
[null,"h. cross 'plus' intersection with all way stop plan D: cross with parallel traffic in far lane"]
[null,"i. cross 'plus' intersection with all way stop plan E: implement alternatives if Situation Of Uncertainty (S.O.U.)"]
["Parallel Stopped","j. cross 'plus' intersection with parallel street stopped Plan A: determine if gaps are long enough to permit safe crossing"]
[null,"k. cross 'plus' intersection with parallel street stopped Plan B: implement alternatives if S.O.U."]
["Perpendicular Stopped","l. cross 'plus' intersection with perpendicular street stopped Plan A: cross at a lull"]
[null,"m. cross 'plus' intersection with perpendicular street stopped Plan B: cross with parallel traffic in near lane"]
[null,"n. cross 'plus' intersection with perpendicular street stopped Plan C: cross with parallel traffic in far lane"]
[null,"o. cross 'plus' intersection with perpendicular street stopped Plan D: implement alternatives if S.O.U."]
["Traffic Signal","p. cross 'plus' intersection with traffic signal Plan A: cross with surge of parallel traffic in near lane"]
[null,"q. cross 'plus' intersection with traffic signal Plan B: cross with surge of parallel traffic in far lane"]
[null,"r. cross 'plus' intersection with traffic signal Plan C: implement alternatives if S.O.U."]
["7. 'T' Intersections",null,null,{"$f":"SUM(C53:C73)/(COUNTIF(C53:C73,\">0\")+0.00000001)","v":0},null,{"$f":"SUM(E53:E73)/(COUNTIF(E53:E73,\">0\")+0.00000001)","v":0},null,{"$f":"SUM(G53:G73)/(COUNTIF(G53:G73,\">0\")+0.00000001)","v":0},null,{"$f":"SUM(I53:I73)/(COUNTIF(I53:I73,\">0\")+0.00000001)","v":0},null,{"$f":"SUM(K53:K73)/(COUNTIF(K53:K73,\">0\")+0.00000001)","v":0},null,{"$f":"SUM(M53:M73)/(COUNTIF(M53:M73,\">0\")+0.00000001)","v":0}]
[null,"a. identify 'T' intersection with all way stop"]
[null,"b. identify 'T' intersection with parallel street stopped"]
[null,"c. identify 'T' intersection with perpendicular street stopped"]
[null,"d. identify 'T' intersection with traffic signal"]
["All Way Stop","e. cross base or top of 'T' intersection with all way stop plan A: cross at a lull"]
[null,"f. cross base or top of 'T' intersection with all way stop plan B: when no traffic in intersection"]
[null,"g.  Cross base of 'T' intersection with all way stop plan C: cross with parallel traffic in near lane"]
[null,"h. cross base of 'T' intersection with all way stop plan D: cross with parallel traffic in far lane"]
[null,"i. cross base or top of 'T' intersection with all way stop plan E: implement alternatives if Situation Of Uncertainty (S.O.U.)"]
["One Street Stopped","j. cross 'T' intersection with parallel street stopped (crossing top of 'T') Plan A: determine if gaps are long enough to permit safe crossing"]
[null,"k. cross 'T' intersection with parallel street stopped (crossing top of 'T') Plan B: implement alternatives if S.O.U."]
[null,"l. cross 'T' intersection with perpendicular street stopped (crossing base of 'T') Plan A: cross at a lull"]
[null,"m. cross 'T' intersection with perpendicular street stopped (crossing base of 'T') Plan B: cross with parallel traffic in near lane"]
[null,"n. cross 'T' intersection with perpendicular street stopped (crossing base of 'T') Plan C: cross with parallel traffic in far lane"]
[null,"o. cross 'T' intersection with perpendicular street stopped (crossing base of 'T') Plan D: implement alternatives if S.O.U."]
["Traffic Signal","p. cross 'T' intersection with traffic signal (crossing top of 'T') Plan A: clockwise: cross with traffic surge in parallel street and identify left turners will cross L.O.T."]
[null,"q. cross 'T' intersection with traffic signal (crossing top of 'T') Plan B: counterclockwise: cross with traffic surge in parallel street and identify right turners will cross L.O.T."]
[null,"r. cross 'T' intersection with traffic signal (crossing top of 'T') Plan C: implement alternatives if S.O.U."]
[null,"s. cross 'T' intersection with traffic signal (crossing base of 'T') Plan A: clockwise or counter: cross with surge of parallel traffic in near lane"]
[null,"t. cross 'T' intersection with traffic signal (crossing base of 'T') Plan B: clockwise or counter: cross with surge of parallel traffic in far in far lane"]
[null,"u. cross 'T' intersection with traffic signal (crossing base of 'T') Plan C: clockwise or counter: implement alternatives if S.O.U."]
["8. 'Y' Intersections",null,null,{"$f":"SUM(C75:C98)/(COUNTIF(C75:C98,\">0\")+0.00000001)","v":0},null,{"$f":"SUM(E75:E98)/(COUNTIF(E75:E98,\">0\")+0.00000001)","v":0},null,{"$f":"SUM(G75:G98)/(COUNTIF(G75:G98,\">0\")+0.00000001)","v":0},null,{"$f":"SUM(I75:I98)/(COUNTIF(I75:I98,\">0\")+0.00000001)","v":0},null,{"$f":"SUM(K75:K98)/(COUNTIF(K75:K98,\">0\")+0.00000001)","v":0},null,{"$f":"SUM(M75:M98)/(COUNTIF(M75:M98,\">0\")+0.00000001)","v":0}]
[null,"a. 'Y' intersection with all way stop"]
[null,"b. 'Y' intersection with arm or base of Y stopped"]
[null,"c. 'Y' intersection with trafic signal"]
[null,"d. identify whether 'arm' or base of 'Y' is being crossed"]
["All Way Stop","e. 'Y' intersection with all way stop (cross an 'arm') Plan A: cross at a lull"]
[null,"f. 'Y' intersection with all way stop (cross an 'arm') Plan B: cross when no traffic in intersection"]
[null,"g. 'Y' intersection with all way stop (cross an 'arm') Plan C: cross with parallel traffic in near lane"]
[null,"h. 'Y' intersection with all way stop (cross an 'arm') Plan D: cross with parallel traffic in far lane"]
[null,"i. 'Y' intersection with all way stop (cross an 'arm') Plan E:  implement alternatives if S.O.U."]
[null,"j. 'Y' intersection with all way stop (cross base of 'Y') Plan A: cross at a lull"]
[null,"k. 'Y' intersection with all way stop (cross base of 'Y') Plan B: cross when no traffic in intersection"]
[null,"l. 'Y' intersection with all way stop (cross base of 'Y') Plan C:  seek alternate intersection if S.O.U."]
["One Street Stopped","m. 'Y' intersection with one 'arm' stopped (cross stopped 'arm') Plan A: cross at a lull"]
[null,"n. 'Y' intersection with one 'arm' stopped (cross stopped 'arm') Plan B: cross with parallel traffic in near lane"]
[null,"o. 'Y' intersection with one 'arm' stopped (cross stopped 'arm') Plan C: cross with parallel traffic in far lane and identify danger of fast moving vehicles potentially crossing L.O.T."]
[null,"p. 'Y' intersection with one 'arm' stopped (cross stopped 'arm') Plan D:  implement alternatives if S.O.U."]
[null,"r. 'Y' intersection with one 'arm' stopped (cross 'arm' with right of way) Plan A: determine if gaps are long enough to permit safe crossing"]
[null,"s. 'Y' intersection with one 'arm' stopped (cross 'arm' with right of way) Plan B: implement alternatives if S.O.U."]
["Traffic Signal","t. 'Y' intersection with traffic signal (cross an 'arm') Plan A: clockwise: cross with traffic surge in parallel street & identify potential danger posed by left turning vehicles"]
[null,"u. 'Y' intersection with traffic signal (cross an 'arm') Plan B: counterclockwise: cross with parallel traffic surge & identify potential danger posed by right turning vehicles"]
[null,"v. 'Y' intersection with traffic signal (cross an 'arm') Plan C: implement alternatives if S.O.U."]
[null,"w. 'Y' intersection with traffic signal (cross base of 'Y') Plan A: identify lack of useful parallel traffic"]
[null,"x. 'Y' intersection with traffic signal (cross base of 'Y') Plan B: cross 'arm' of 'Y' instead, making multiple crossings if necessary"]
[null,"y. 'Y' intersection with traffic signal (cross base of 'Y') Plan C: implement alternatives if S.O.U."]
["9. Roundabouts",null,null,{"$f":"SUM(C100:C113)/(COUNTIF(C100:C113,\">0\")+0.00000001)","v":0},null,{"$f":"SUM(E100:E113)/(COUNTIF(E100:E113,\">0\")+0.00000001)","v":0},null,{"$f":"SUM(G100:G113)/(COUNTIF(G100:G113,\">0\")+0.00000001)","v":0},null,{"$f":"SUM(I100:I113)/(COUNTIF(I100:I113,\">0\")+0.00000001)","v":0},null,{"$f":"SUM(K100:K113)/(COUNTIF(K100:K113,\">0\")+0.00000001)","v":0},null,{"$f":"SUM(M100:M113)/(COUNTIF(M100:M113,\">0\")+0.00000001)","v":0}]
[null,"a. identify that roundabout crosswalks are typically farther from the intersection (instead of right at the intersection as is typical with other types of intersections) specifically to enhance pedestrian safety"]
[null,"b. consistently locate roundabout crosswalks"]
["clockwise","c. identify traffic will come from the left as it enters the roundabout and that traffic 'right across' can be parallel traffic or exit via perpendicular street without slowing down"]
[null,"d. identify that a car that stops for a pedestrian while the car is exiting the roundabout may be struck from behind and pushed into the pedestrian as other drivers are not anticipating that vehicles will stop in the roundabout"]
[null,"e. identify that roundabout vehicle speeds (20+ mph) require 100'+  reaction/braking distance"]
[null,"f. identify drivers entering the roundabout will focus their attention  to the drivers' left and may not see pedestrian attempting to cross"]
[null,"g. determine if gaps are long enough to permit safe crossing"]
[null,"h. implement alternatives if S.O.U."]
["counterclockwise","i. identify traffic will come from the right as it enters the roundabout and that traffic 'left behind' can be parallel traffic or exit via perpendicular street without slowing down"]
[null,"j. identify that a car that stops for a pedestrian while the car is exiting the roundabout may be struck from behind and pushed into the pedestrian as other drivers are not anticipating that vehicles will stop in the roundabout"]
[null,"k. identify that roundabout vehicle speeds (20+ mph) require 100'+  reaction/braking distance"]
[null,"l. determine if gaps are long enough to permit safe crossing"]
[null,"m. implement alternatives if S.O.U."]
[null,"n. maintain orientation and resume route after crossing"]
["10. Significantly offset intersection",null,null,{"$f":"SUM(C115:C118)/(COUNTIF(C115:C118,\">0\")+0.00000001)","v":0},null,{"$f":"SUM(E115:E118)/(COUNTIF(E115:E118,\">0\")+0.00000001)","v":0},null,{"$f":"SUM(G115:G118)/(COUNTIF(G115:G118,\">0\")+0.00000001)","v":0},null,{"$f":"SUM(I115:I118)/(COUNTIF(I115:I118,\">0\")+0.00000001)","v":0},null,{"$f":"SUM(K115:K118)/(COUNTIF(K115:K118,\">0\")+0.00000001)","v":0},null,{"$f":"SUM(M115:M118)/(COUNTIF(M115:M118,\">0\")+0.00000001)","v":0}]
[null,"a. identify presence of offset intersection via traffic pattern"]
[null,"b. treat as 'T' intersections"]
[null,"c. identify that traffic control can be different at each part of the significantly offset intersection"]
[null,"d. implement alternatives if S.O.U. (e.g. cross elsewhere)"]
["11. Atypical intersection (ex: convergence 5 or 6 streets)",null,null,{"$f":"SUM(C120:C128)/(COUNTIF(C120:C128,\">0\")+0.00000001)","v":0},null,{"$f":"SUM(E120:E128)/(COUNTIF(E120:E128,\">0\")+0.00000001)","v":0},null,{"$f":"SUM(G120:G128)/(COUNTIF(G120:G128,\">0\")+0.00000001)","v":0},null,{"$f":"SUM(I120:I128)/(COUNTIF(I120:I128,\">0\")+0.00000001)","v":0},null,{"$f":"SUM(K120:K128)/(COUNTIF(K120:K128,\">0\")+0.00000001)","v":0},null,{"$f":"SUM(M120:M128)/(COUNTIF(M120:M128,\">0\")+0.00000001)","v":0}]
[null,"a. recognize presence of atypical intersection via traffic pattern"]
[null,"b. determine if there is a safe time to cross intended street (may not be depending on traffic pattern)"]
[null,"c. identify barriers placed by traffic engineers to prevent pedestrians from crossing such as hedges or concrete obstructions and identify need to cross elsewhere"]
[null,"d. align to cross intended street at intersection if permitted by traffic engineer design and also safe"]
["All Way Stop","e. atypical intersection with all way stop Plan A: cross with a lull"]
[null,"f. atypical intersection with all way stop Plan B: cross with parallel traffic in near lane"]
[null,"g. atypical intersection with all way stop Plan C: implement alternatives if S.O.U."]
["Traffic Signal","h. atypical intersection with traffic light Plan A: cross with parallel traffic in near lane"]
[null,"i. atypical intersection with traffic light Plan B: implement alternatives if S.O.U."]
["12. Channelized right turn lanes (all intersection types)",null,null,{"$f":"SUM(C130:C138)/(COUNTIF(C130:C138,\">0\")+0.00000001)","v":0},null,{"$f":"SUM(E130:E138)/(COUNTIF(E130:E138,\">0\")+0.00000001)","v":0},null,{"$f":"SUM(G130:G138)/(COUNTIF(G130:G138,\">0\")+0.00000001)","v":0},null,{"$f":"SUM(I130:I138)/(COUNTIF(I130:I138,\">0\")+0.00000001)","v":0},null,{"$f":"SUM(K130:K138)/(COUNTIF(K130:K138,\">0\")+0.00000001)","v":0},null,{"$f":"SUM(M130:M138)/(COUNTIF(M130:M138,\">0\")+0.00000001)","v":0}]
[null,"a. recognize presence of channelized turn lane via distance from perpendicular street and traffic pattern"]
[null,"b. identify that channelized turn lane vehicle speeds (20+ mph) require 100'+  reaction/braking distance"]
[null,"c. cross channelized right turn lane Plan A: cross with lull "]
[null,"d. cross channelized right turn lane Plan B: cross with absence of traffic in street that feeds into channelized lane"]
[null,"e. cross channelized right turn lane Plan C: cross when traffic build up at light prevents lane use by vehicles"]
[null,"f. locate traffic island"]
[null,"g. locate perpendicular street"]
[null,"h. re-establish alignment"]
[null,"i. cross perpendicular street from traffic island"]
["13. Veering",null,null,{"$f":"SUM(C140:C152)/(COUNTIF(C140:C152,\">0\")+0.00000001)","v":0},null,{"$f":"SUM(E140:E152)/(COUNTIF(E140:E152,\">0\")+0.00000001)","v":0},null,{"$f":"SUM(G140:G152)/(COUNTIF(G140:G152,\">0\")+0.00000001)","v":0},null,{"$f":"SUM(I140:I152)/(COUNTIF(I140:I152,\">0\")+0.00000001)","v":0},null,{"$f":"SUM(K140:K152)/(COUNTIF(K140:K152,\">0\")+0.00000001)","v":0},null,{"$f":"SUM(M140:M152)/(COUNTIF(M140:M152,\">0\")+0.00000001)","v":0}]
[null,"a. Set up to recover quickly from veering while crossing Step 1: place cane in hand opposite parallel street to be ready to make 90 degree turn towards hand holding cane if veer is detected without need to remember what side parallel street was on"]
[null,"b. Set up to recover quickly from veering while crossing Step 2: identify current directional corner of intersection"]
[null,"c. Set up to recover quickly from veering while crossing Step 3: Identify desired directional corner of intersection"]
[null,"d. Detect veer while crossing Step 1: time and distance--crossing taking too  long for estimated street width"]
[null,"e. Detect veer while crossing Step 2:  traffic no longer sounds parallel and perpendicular"]
[null,"f. Detect veer while crossing Step 3: crown of street not sensed rising then falling"]
[null,"g. Detect veer while crossing Step 4: other environmental cues out of kilter (e.g. dog barking on desired corner no longer sounds straight ahead)"]
[null,"h. Correct for veer while crossing Step 1: make 90 degree turn away from parallel street"]
[null,"i. Correct for veer while crossing Step 2: increase pace"]
[null,"j. Correct for veer while crossing Step 3: locate curb, clear, step out of street"]
[null,"k. Recover from veer once out of street Step 1: determine current directional corner of intersection"]
[null,"l. Recover from veer once out of street Step 2: if needed return to intersection and cross again to reach desired directional corner"]
[null,"m. Recover from veer once out of street Step 3: re-establish L.O.T. and resume route"]
["14. Understanding Drivers' Perspectives",null,null,{"$f":"SUM(C154:C161)/(COUNTIF(C154:C161,\">0\")+0.00000001)","v":0},null,{"$f":"SUM(E154:E161)/(COUNTIF(E154:E161,\">0\")+0.00000001)","v":0},null,{"$f":"SUM(G154:G161)/(COUNTIF(G154:G161,\">0\")+0.00000001)","v":0},null,{"$f":"SUM(I154:I161)/(COUNTIF(I154:I161,\">0\")+0.00000001)","v":0},null,{"$f":"SUM(K154:K161)/(COUNTIF(K154:K161,\">0\")+0.00000001)","v":0},null,{"$f":"SUM(M154:M161)/(COUNTIF(M154:M161,\">0\")+0.00000001)","v":0}]
[null,"a. Identify that drivers can be inattentive/distracted"]
[null,"b. Identify that drivers are most concerned about collisions with other vehicles and not as concerned with pedestrians"]
[null,"c. Identify that driver making a right turn may direct his attention to his left and not to a pedestrian in the crosswalk"]
[null,"d. Identify that driver making a left turn may direct her attention to parallel traffic in the opposite lane and not to pedestrian in the crosswalk"]
[null,"e. Identify that a driver may attempt to shoot between gaps in traffic (turning or going straight) and that the driver may face a choice between hitting an unexpected pedestrian and being hit by another vehicle"]
[null,"f. Identify that some drivers will turn in front of or behind pedestrian in the crosswalk when parallel traffic in the near lane has either passed the pedestrian there is a gap in the parallel traffic"]
[null,"g. Identify that drivers may not be able to see pedestrians who are obscured by large vehicle serving as parallel traffic in the near lane"]
[null,"h. Identify that the driver of a tall vehicle (e.g. semi) may have difficulty seeing pedestrain, and will have a progressively harder time seeing pedestrian as vehicle nears pedestrian"]
["15. Use of Pedestrian Signals",null,null,{"$f":"SUM(C163:C166)/(COUNTIF(C163:C166,\">0\")+0.00000001)","v":0},null,{"$f":"SUM(E163:E166)/(COUNTIF(E163:E166,\">0\")+0.00000001)","v":0},null,{"$f":"SUM(G163:G166)/(COUNTIF(G163:G166,\">0\")+0.00000001)","v":0},null,{"$f":"SUM(I163:I166)/(COUNTIF(I163:I166,\">0\")+0.00000001)","v":0},null,{"$f":"SUM(K163:K166)/(COUNTIF(K163:K166,\">0\")+0.00000001)","v":0},null,{"$f":"SUM(M163:M166)/(COUNTIF(M163:M166,\">0\")+0.00000001)","v":0}]
[null,"a. identify purpose of pedestrian signals (gain more time to cross, ensure parallel traffic in near lane has a green light instead of just a green arrow for left turning vehicles)"]
[null,"b. identify that some intersections cannot be safely crossed without use of the pedestrian signal."]
[null,"c. locate pedestrian signal while maintaining orientation and quickly re-establishing L.O.T."]
[null,"d. wait by pedestrian signal, face perpendicular street, activate signal when perpendicular traffic surges to allow enough time to re-establish orientation and alignment after activating pedestrian signal to use the parallel traffic surge"]
[null,"raw score for section",null,{"$f":"D3+D9+D10+D14+D18+D33+D52+D74+D99+D114+D119+D129+D139+D153+D162","v":0},null,{"$f":"F3+F9+F10+F14+F18+F33+F52+F74+F99+F114+F119+F129+F139+F153+F162","v":0},null,{"$f":"H3+H9+H10+H14+H18+H33+H52+H74+H99+H114+H119+H129+H139+H153+H162","v":0},null,{"$f":"J3+J9+J10+J14+J18+J33+J52+J74+J99+J114+J119+J129+J139+J153+J162","v":0},null,{"$f":"L3+L9+L10+L14+L18+L33+L52+L74+L99+L114+L119+L129+L139+L153+L162","v":0},null,{"$f":"N3+N9+N10+N14+N18+N33+N52+N74+N99+N114+N119+N129+N139+N153+N162","v":0}]
[null,"average score for section",null,{"$f":"D167/(COUNTIF(D3:D166,\">0\")+0.00000001)","v":0},null,{"$f":"F167/(COUNTIF(F3:F166,\">0\")+0.00000001)","v":0},null,{"$f":"H167/(COUNTIF(H3:H166,\">0\")+0.00000001)","v":0},null,{"$f":"J167/(COUNTIF(J3:J166,\">0\")+0.00000001)","v":0},null,{"$f":"L167/(COUNTIF(L3:L166,\">0\")+0.00000001)","v":0},null,{"$f":"N167/(COUNTIF(N3:N166,\">0\")+0.00000001)","v":0}]
[null,"percentage score for section",null,{"$f":"D168/5*100","v":0},null,{"$f":"F168/5*100","v":0},null,{"$f":"H168/5*100","v":0},null,{"$f":"J168/5*100","v":0},null,{"$f":"L168/5*100","v":0},null,{"$f":"N168/5*100","v":0}]
["RATING SCALE"]
["0 = Student not capable of demonstrating skill or does not need skill"]
["1 = Student does not demonstrate skill but may/will learn skill"]
["2 = Student only demonstrates skill with verbal and/or physical prompting"]
["3 = Student sometimes demonstrates skill without verbal and/or physical prompting"]
["4 = Student demonstrates skill and verbal and/or physical prompting are rarely needed"]
["5 = Student has totally mastered skill and does not require verbal and/or physical prompting"]
["STREET CROSSINGS (2st Data Set--Last 6 Columns On Front Page)",null,"Date",null,"Date",null,"Date",null,"Date",null,"Date",null,"Date",null,"Notes"]
[null,null,"Input\nData","Auto\nScore","Input\nData","Auto\nScore","Input\nData","Auto\nScore","Input\nData","Auto\nScore","Input\nData","Auto\nScore","Input\nData","Auto\nScore"]
["1. Anticipate Upcoming Street Crossing",null,null,{"$f":"SUM(C180:C184)/(COUNTIF(C180:C184,\">0\")+0.00000001)","v":0},null,{"$f":"SUM(E180:E184)/(COUNTIF(E180:E184,\">0\")+0.00000001)","v":0},null,{"$f":"SUM(G180:G184)/(COUNTIF(G180:G184,\">0\")+0.00000001)","v":0},null,{"$f":"SUM(I180:I184)/(COUNTIF(I180:I184,\">0\")+0.00000001)","v":0},null,{"$f":"SUM(K180:K184)/(COUNTIF(K180:K184,\">0\")+0.00000001)","v":0},null,{"$f":"SUM(M180:M184)/(COUNTIF(M180:M184,\">0\")+0.00000001)","v":0}]
[null,"a. via time and distance"]
[null,"b. via environmental cues"]
[null,"c. locate curb (visually or with cane)"]
[null,"d. changes in wind or 'open' feeling"]
[null,"e. traffic sounds"]
["2. Maintain Line Of Travel (L.O.T.)",null,null,{"$f":"C185","v":0},null,{"$f":"E185","v":0},null,{"$f":"G185","v":0},null,{"$f":"I185","v":0},null,{"$f":"K185","v":0},null,{"$f":"M185","v":0}]
["3. Maintain total body alignment",null,null,{"$f":"SUM(C187:C189)/(COUNTIF(C187:C189,\">0\")+0.00000001)","v":0},null,{"$f":"SUM(E187:E189)/(COUNTIF(E187:E189,\">0\")+0.00000001)","v":0},null,{"$f":"SUM(G187:G189)/(COUNTIF(G187:G189,\">0\")+0.00000001)","v":0},null,{"$f":"SUM(I187:I189)/(COUNTIF(I187:I189,\">0\")+0.00000001)","v":0},null,{"$f":"SUM(K187:K189)/(COUNTIF(K187:K189,\">0\")+0.00000001)","v":0},null,{"$f":"SUM(M187:M189)/(COUNTIF(M187:M189,\">0\")+0.00000001)","v":0}]
[null,"a. keep head aligned with L.O.T."]
[null,"b. keep shoulders aligned with L.O.T."]
[null,"c. keep toes aligned with L.O.T. "]
["4. Re-establish total body alignment (due to turn or misalign)",null,null,{"$f":"SUM(C191:C193)/(COUNTIF(C191:C193,\">0\")+0.00000001)","v":0},null,{"$f":"SUM(E191:E193)/(COUNTIF(E191:E193,\">0\")+0.00000001)","v":0},null,{"$f":"SUM(G191:G193)/(COUNTIF(G191:G193,\">0\")+0.00000001)","v":0},null,{"$f":"SUM(I191:I193)/(COUNTIF(I191:I193,\">0\")+0.00000001)","v":0},null,{"$f":"SUM(K191:K193)/(COUNTIF(K191:K193,\">0\")+0.00000001)","v":0},null,{"$f":"SUM(M191:M193)/(COUNTIF(M191:M193,\">0\")+0.00000001)","v":0}]
[null,"a. position head parallel to parallel street"]
[null,"b. position shoulders parallel to perpendicular street"]
[null,"c. align toes with shoulders/head"]
["5. Analyze Intersection",null,null,{"$f":"SUM(C195:C208)/(COUNTIF(C195:C208,\">0\")+0.00000001)","v":0},null,{"$f":"SUM(E195:E208)/(COUNTIF(E195:E208,\">0\")+0.00000001)","v":0},null,{"$f":"SUM(G195:G208)/(COUNTIF(G195:G208,\">0\")+0.00000001)","v":0},null,{"$f":"SUM(I195:I208)/(COUNTIF(I195:I208,\">0\")+0.00000001)","v":0},null,{"$f":"SUM(K195:K208)/(COUNTIF(K195:K208,\">0\")+0.00000001)","v":0},null,{"$f":"SUM(M195:M208)/(COUNTIF(M195:M208,\">0\")+0.00000001)","v":0}]
[null,"a. identify location of parallel street"]
[null,"b. identify location of perpendicular street"]
[null,"c. identify crossing as clockwise or counterclockwise"]
[null,"d. identify parallel traffic in the near lane as being 'right across' the intersection when making clockwise crossings"]
[null,"e. identify parallel traffic in the near lane as being 'left behind' the intersection when making counterclockwise crossings"]
[null,"f. identify dangers posed by perpendicular traffic & turning vehicles"]
[null,"g. identify masking sounds (e.g. construction, loud car)"]
[null,"h. identify sound shadows (e.g. sounds blocked by parked van)"]
[null,"i. identify 'plus' intersection"]
[null,"j. identify 'T' intersection"]
[null,"k. identify 'Y' intersection"]
[null,"l. identify roundabout"]
[null,"m. identify  significantly offset intersection"]
[null,"n. identify atypical intersection"]
["6. 'Plus' Intersections",null,null,{"$f":"SUM(C210:C227)/(COUNTIF(C210:C227,\">0\")+0.00000001)","v":0},null,{"$f":"SUM(E210:E227)/(COUNTIF(E210:E227,\">0\")+0.00000001)","v":0},null,{"$f":"SUM(G210:G227)/(COUNTIF(G210:G227,\">0\")+0.00000001)","v":0},null,{"$f":"SUM(I210:I227)/(COUNTIF(I210:I227,\">0\")+0.00000001)","v":0},null,{"$f":"SUM(K210:K227)/(COUNTIF(K210:K227,\">0\")+0.00000001)","v":0},null,{"$f":"SUM(M210:M227)/(COUNTIF(M210:M227,\">0\")+0.00000001)","v":0}]
[null,"a. identify 'plus' intersection with all way stop"]
[null,"b. identify 'plus' intersection with parallel street stopped"]
[null,"c. identify 'plus' intersection with perpendicular street stopped"]
[null,"d. identify 'plus' intersection with traffic signal"]
["All Way Stop","e. cross 'plus' intersection with all way stop plan A: cross at a lull"]
[null,"f. cross 'plus' intersection with all way stop plan B: when no traffic in intersection"]
[null,"g.  cross 'plus' intersection with all way stop plan C: cross with parallel traffic in near lane"]
[null,"h. cross 'plus' intersection with all way stop plan D: cross with parallel traffic in far lane"]
[null,"i. cross 'plus' intersection with all way stop plan E: implement alternatives if Situation Of Uncertainty (S.O.U.)"]
["Parallel Stopped","j. cross 'plus' intersection with parallel street stopped Plan A: determine if gaps are long enough to permit safe crossing"]
[null,"k. cross 'plus' intersection with parallel street stopped Plan B: implement alternatives if S.O.U."]
["Perpendicular Stopped","l. cross 'plus' intersection with perpendicular street stopped Plan A: cross at a lull"]
[null,"m. cross 'plus' intersection with perpendicular street stopped Plan B: cross with parallel traffic in near lane"]
[null,"n. cross 'plus' intersection with perpendicular street stopped Plan C: cross with parallel traffic in far lane"]
[null,"o. cross 'plus' intersection with perpendicular street stopped Plan D: implement alternatives if S.O.U."]
["Traffic Signal","p. cross 'plus' intersection with traffic signal Plan A: cross with surge of parallel traffic in near lane"]
[null,"q. cross 'plus' intersection with traffic signal Plan B: cross with surge of parallel traffic in far lane"]
[null,"r. cross 'plus' intersection with traffic signal Plan C: implement alternatives if S.O.U."]
["7. 'T' Intersections",null,null,{"$f":"SUM(C229:C249)/(COUNTIF(C229:C249,\">0\")+0.00000001)","v":0},null,{"$f":"SUM(E229:E249)/(COUNTIF(E229:E249,\">0\")+0.00000001)","v":0},null,{"$f":"SUM(G229:G249)/(COUNTIF(G229:G249,\">0\")+0.00000001)","v":0},null,{"$f":"SUM(I229:I249)/(COUNTIF(I229:I249,\">0\")+0.00000001)","v":0},null,{"$f":"SUM(K229:K249)/(COUNTIF(K229:K249,\">0\")+0.00000001)","v":0},null,{"$f":"SUM(M229:M249)/(COUNTIF(M229:M249,\">0\")+0.00000001)","v":0}]
[null,"a. identify 'T' intersection with all way stop"]
[null,"b. identify 'T' intersection with parallel street stopped"]
[null,"c. identify 'T' intersection with perpendicular street stopped"]
[null,"d. identify 'T' intersection with traffic signal"]
["All Way Stop","e. cross base or top of 'T' intersection with all way stop plan A: cross at a lull"]
[null,"f. cross base or top of 'T' intersection with all way stop plan B: when no traffic in intersection"]
[null,"g.  Cross base of 'T' intersection with all way stop plan C: cross with parallel traffic in near lane"]
[null,"h. cross base of 'T' intersection with all way stop plan D: cross with parallel traffic in far lane"]
[null,"i. cross base or top of 'T' intersection with all way stop plan E: implement alternatives if Situation Of Uncertainty (S.O.U.)"]
["One Street Stopped","j. cross 'T' intersection with parallel street stopped (crossing top of 'T') Plan A: determine if gaps are long enough to permit safe crossing"]
[null,"k. cross 'T' intersection with parallel street stopped (crossing top of 'T') Plan B: implement alternatives if S.O.U."]
[null,"l. cross 'T' intersection with perpendicular street stopped (crossing base of 'T') Plan A: cross at a lull"]
[null,"m. cross 'T' intersection with perpendicular street stopped (crossing base of 'T') Plan B: cross with parallel traffic in near lane"]
[null,"n. cross 'T' intersection with perpendicular street stopped (crossing base of 'T') Plan C: cross with parallel traffic in far lane"]
[null,"o. cross 'T' intersection with perpendicular street stopped (crossing base of 'T') Plan D: implement alternatives if S.O.U."]
["Traffic Signal","p. cross 'T' intersection with traffic signal (crossing top of 'T') Plan A: clockwise: cross with traffic surge in parallel street and identify left turners will cross L.O.T."]
[null,"q. cross 'T' intersection with traffic signal (crossing top of 'T') Plan B: counterclockwise: cross with traffic surge in parallel street and identify right turners will cross L.O.T."]
[null,"r. cross 'T' intersection with traffic signal (crossing top of 'T') Plan C: implement alternatives if S.O.U."]
[null,"s. cross 'T' intersection with traffic signal (crossing base of 'T') Plan A: clockwise or counter: cross with surge of parallel traffic in near lane"]
[null,"t. cross 'T' intersection with traffic signal (crossing base of 'T') Plan B: clockwise or counter: cross with surge of parallel traffic in far in far lane"]
[null,"u. cross 'T' intersection with traffic signal (crossing base of 'T') Plan C: clockwise or counter: implement alternatives if S.O.U."]
["8. 'Y' Intersections",null,null,{"$f":"SUM(C251:C274)/(COUNTIF(C251:C274,\">0\")+0.00000001)","v":0},null,{"$f":"SUM(E251:E274)/(COUNTIF(E251:E274,\">0\")+0.00000001)","v":0},null,{"$f":"SUM(G251:G274)/(COUNTIF(G251:G274,\">0\")+0.00000001)","v":0},null,{"$f":"SUM(I251:I274)/(COUNTIF(I251:I274,\">0\")+0.00000001)","v":0},null,{"$f":"SUM(K251:K274)/(COUNTIF(K251:K274,\">0\")+0.00000001)","v":0},null,{"$f":"SUM(M251:M274)/(COUNTIF(M251:M274,\">0\")+0.00000001)","v":0}]
[null,"a. 'Y' intersection with all way stop"]
[null,"b. 'Y' intersection with arm or base of Y stopped"]
[null,"c. 'Y' intersection with trafic signal"]
[null,"d. identify whether 'arm' or base of 'Y' is being crossed"]
["All Way Stop","e. 'Y' intersection with all way stop (cross an 'arm') Plan A: cross at a lull"]
[null,"f. 'Y' intersection with all way stop (cross an 'arm') Plan B: cross when no traffic in intersection"]
[null,"g. 'Y' intersection with all way stop (cross an 'arm') Plan C: cross with parallel traffic in near lane"]
[null,"h. 'Y' intersection with all way stop (cross an 'arm') Plan D: cross with parallel traffic in far lane"]
[null,"i. 'Y' intersection with all way stop (cross an 'arm') Plan E:  implement alternatives if S.O.U."]
[null,"j. 'Y' intersection with all way stop (cross base of 'Y') Plan A: cross at a lull"]
[null,"k. 'Y' intersection with all way stop (cross base of 'Y') Plan B: cross when no traffic in intersection"]
[null,"l. 'Y' intersection with all way stop (cross base of 'Y') Plan C:  seek alternate intersection if S.O.U."]
["One Street Stopped","m. 'Y' intersection with one 'arm' stopped (cross stopped 'arm') Plan A: cross at a lull"]
[null,"n. 'Y' intersection with one 'arm' stopped (cross stopped 'arm') Plan B: cross with parallel traffic in near lane"]
[null,"o. 'Y' intersection with one 'arm' stopped (cross stopped 'arm') Plan C: cross with parallel traffic in far lane and identify danger of fast moving vehicles potentially crossing L.O.T."]
[null,"p. 'Y' intersection with one 'arm' stopped (cross stopped 'arm') Plan D:  implement alternatives if S.O.U."]
[null,"r. 'Y' intersection with one 'arm' stopped (cross 'arm' with right of way) Plan A: determine if gaps are long enough to permit safe crossing"]
[null,"s. 'Y' intersection with one 'arm' stopped (cross 'arm' with right of way) Plan B: implement alternatives if S.O.U."]
["Traffic Signal","t. 'Y' intersection with traffic signal (cross an 'arm') Plan A: clockwise: cross with traffic surge in parallel street & identify potential danger posed by left turning vehicles"]
[null,"u. 'Y' intersection with traffic signal (cross an 'arm') Plan B: counterclockwise: cross with parallel traffic surge & identify potential danger posed by right turning vehicles"]
[null,"v. 'Y' intersection with traffic signal (cross an 'arm') Plan C: implement alternatives if S.O.U."]
[null,"w. 'Y' intersection with traffic signal (cross base of 'Y') Plan A: identify lack of useful parallel traffic"]
[null,"x. 'Y' intersection with traffic signal (cross base of 'Y') Plan B: cross 'arm' of 'Y' instead, making multiple crossings if necessary"]
[null,"y. 'Y' intersection with traffic signal (cross base of 'Y') Plan C: implement alternatives if S.O.U."]
["9. Roundabouts",null,null,{"$f":"SUM(C276:C289)/(COUNTIF(C276:C289,\">0\")+0.00000001)","v":0},null,{"$f":"SUM(E276:E289)/(COUNTIF(E276:E289,\">0\")+0.00000001)","v":0},null,{"$f":"SUM(G276:G289)/(COUNTIF(G276:G289,\">0\")+0.00000001)","v":0},null,{"$f":"SUM(I276:I289)/(COUNTIF(I276:I289,\">0\")+0.00000001)","v":0},null,{"$f":"SUM(K276:K289)/(COUNTIF(K276:K289,\">0\")+0.00000001)","v":0},null,{"$f":"SUM(M276:M289)/(COUNTIF(M276:M289,\">0\")+0.00000001)","v":0}]
[null,"a. identify that roundabout crosswalks are typically farther from the intersection (instead of right at the intersection as is typical with other types of intersections) specifically to enhance pedestrian safety"]
[null,"b. consistently locate roundabout crosswalks"]
["clockwise","c. identify traffic will come from the left as it enters the roundabout and that traffic 'right across' can be parallel traffic or exit via perpendicular street without slowing down"]
[null,"d. identify that a car that stops for a pedestrian while the car is exiting the roundabout may be struck from behind and pushed into the pedestrian as other drivers are not anticipating that vehicles will stop in the roundabout"]
[null,"e. identify that roundabout vehicle speeds (20+ mph) require 100'+  reaction/braking distance"]
[null,"f. identify drivers entering the roundabout will focus their attention  to the drivers' left and may not see pedestrian attempting to cross"]
[null,"g. determine if gaps are long enough to permit safe crossing"]
[null,"h. implement alternatives if S.O.U."]
["counterclockwise","i. identify traffic will come from the right as it enters the roundabout and that traffic 'left behind' can be parallel traffic or exit via perpendicular street without slowing down"]
[null,"j. identify that a car that stops for a pedestrian while the car is exiting the roundabout may be struck from behind and pushed into the pedestrian as other drivers are not anticipating that vehicles will stop in the roundabout"]
[null,"k. identify that roundabout vehicle speeds (20+ mph) require 100'+  reaction/braking distance"]
[null,"l. determine if gaps are long enough to permit safe crossing"]
[null,"m. implement alternatives if S.O.U."]
[null,"n. maintain orientation and resume route after crossing"]
["10. Significantly offset intersection",null,null,{"$f":"SUM(C291:C294)/(COUNTIF(C291:C294,\">0\")+0.00000001)","v":0},null,{"$f":"SUM(E291:E294)/(COUNTIF(E291:E294,\">0\")+0.00000001)","v":0},null,{"$f":"SUM(G291:G294)/(COUNTIF(G291:G294,\">0\")+0.00000001)","v":0},null,{"$f":"SUM(I291:I294)/(COUNTIF(I291:I294,\">0\")+0.00000001)","v":0},null,{"$f":"SUM(K291:K294)/(COUNTIF(K291:K294,\">0\")+0.00000001)","v":0},null,{"$f":"SUM(M291:M294)/(COUNTIF(M291:M294,\">0\")+0.00000001)","v":0}]
[null,"a. identify presence of offset intersection via traffic pattern"]
[null,"b. treat as 'T' intersections"]
[null,"c. identify that traffic control can be different at each part of the significantly offset intersection"]
[null,"d. implement alternatives if S.O.U. (e.g. cross elsewhere)"]
["11. Atypical intersection (ex: convergence 5 or 6 streets)",null,null,{"$f":"SUM(C296:C304)/(COUNTIF(C296:C304,\">0\")+0.00000001)","v":0},null,{"$f":"SUM(E296:E304)/(COUNTIF(E296:E304,\">0\")+0.00000001)","v":0},null,{"$f":"SUM(G296:G304)/(COUNTIF(G296:G304,\">0\")+0.00000001)","v":0},null,{"$f":"SUM(I296:I304)/(COUNTIF(I296:I304,\">0\")+0.00000001)","v":0},null,{"$f":"SUM(K296:K304)/(COUNTIF(K296:K304,\">0\")+0.00000001)","v":0},null,{"$f":"SUM(M296:M304)/(COUNTIF(M296:M304,\">0\")+0.00000001)","v":0}]
[null,"a. recognize presence of atypical intersection via traffic pattern"]
[null,"b. determine if there is a safe time to cross intended street (may not be depending on traffic pattern)"]
[null,"c. identify barriers placed by traffic engineers to prevent pedestrians from crossing such as hedges or concrete obstructions and identify need to cross elsewhere"]
[null,"d. align to cross intended street at intersection if permitted by traffic engineer design and also safe"]
["All Way Stop","e. atypical intersection with all way stop Plan A: cross with a lull"]
[null,"f. atypical intersection with all way stop Plan B: cross with parallel traffic in near lane"]
[null,"g. atypical intersection with all way stop Plan C: implement alternatives if S.O.U."]
["Traffic Signal","h. atypical intersection with traffic light Plan A: cross with parallel traffic in near lane"]
[null,"i. atypical intersection with traffic light Plan B: implement alternatives if S.O.U."]
["12. Channelized right turn lanes (all intersection types)",null,null,{"$f":"SUM(C306:C314)/(COUNTIF(C306:C314,\">0\")+0.00000001)","v":0},null,{"$f":"SUM(E306:E314)/(COUNTIF(E306:E314,\">0\")+0.00000001)","v":0},null,{"$f":"SUM(G306:G314)/(COUNTIF(G306:G314,\">0\")+0.00000001)","v":0},null,{"$f":"SUM(I306:I314)/(COUNTIF(I306:I314,\">0\")+0.00000001)","v":0},null,{"$f":"SUM(K306:K314)/(COUNTIF(K306:K314,\">0\")+0.00000001)","v":0},null,{"$f":"SUM(M306:M314)/(COUNTIF(M306:M314,\">0\")+0.00000001)","v":0}]
[null,"a. recognize presence of channelized turn lane via distance from perpendicular street and traffic pattern"]
[null,"b. identify that channelized turn lane vehicle speeds (20+ mph) require 100'+  reaction/braking distance"]
[null,"c. cross channelized right turn lane Plan A: cross with lull "]
[null,"d. cross channelized right turn lane Plan B: cross with absence of traffic in street that feeds into channelized lane"]
[null,"e. cross channelized right turn lane Plan C: cross when traffic build up at light prevents lane use by vehicles"]
[null,"f. locate traffic island"]
[null,"g. locate perpendicular street"]
[null,"h. re-establish alignment"]
[null,"i. cross perpendicular street from traffic island"]
["13. Veering",null,null,{"$f":"SUM(C316:C328)/(COUNTIF(C316:C328,\">0\")+0.00000001)","v":0},null,{"$f":"SUM(E316:E328)/(COUNTIF(E316:E328,\">0\")+0.00000001)","v":0},null,{"$f":"SUM(G316:G328)/(COUNTIF(G316:G328,\">0\")+0.00000001)","v":0},null,{"$f":"SUM(I316:I328)/(COUNTIF(I316:I328,\">0\")+0.00000001)","v":0},null,{"$f":"SUM(K316:K328)/(COUNTIF(K316:K328,\">0\")+0.00000001)","v":0},null,{"$f":"SUM(M316:M328)/(COUNTIF(M316:M328,\">0\")+0.00000001)","v":0}]
[null,"a. Set up to recover quickly from veering while crossing Step 1: place cane in hand opposite parallel street to be ready to make 90 degree turn towards hand holding cane if veer is detected without need to remember what side parallel street was on"]
[null,"b. Set up to recover quickly from veering while crossing Step 2: identify current directional corner of intersection"]
[null,"c. Set up to recover quickly from veering while crossing Step 3: Identify desired directional corner of intersection"]
[null,"d. Detect veer while crossing Step 1: time and distance--crossing taking too  long for estimated street width"]
[null,"e. Detect veer while crossing Step 2:  traffic no longer sounds parallel and perpendicular"]
[null,"f. Detect veer while crossing Step 3: crown of street not sensed rising then falling"]
[null,"g. Detect veer while crossing Step 4: other environmental cues out of kilter (e.g. dog barking on desired corner no longer sounds straight ahead)"]
[null,"h. Correct for veer while crossing Step 1: make 90 degree turn away from parallel street"]
[null,"i. Correct for veer while crossing Step 2: increase pace"]
[null,"j. Correct for veer while crossing Step 3: locate curb, clear, step out of street"]
[null,"k. Recover from veer once out of street Step 1: determine current directional corner of intersection"]
[null,"l. Recover from veer once out of street Step 2: if needed return to intersection and cross again to reach desired directional corner"]
[null,"m. Recover from veer once out of street Step 3: re-establish L.O.T. and resume route"]
["14. Understanding Drivers' Perspectives",null,null,{"$f":"SUM(C330:C337)/(COUNTIF(C330:C337,\">0\")+0.00000001)","v":0},null,{"$f":"SUM(E330:E337)/(COUNTIF(E330:E337,\">0\")+0.00000001)","v":0},null,{"$f":"SUM(G330:G337)/(COUNTIF(G330:G337,\">0\")+0.00000001)","v":0},null,{"$f":"SUM(I330:I337)/(COUNTIF(I330:I337,\">0\")+0.00000001)","v":0},null,{"$f":"SUM(K330:K337)/(COUNTIF(K330:K337,\">0\")+0.00000001)","v":0},null,{"$f":"SUM(M330:M337)/(COUNTIF(M330:M337,\">0\")+0.00000001)","v":0}]
[null,"a. Identify that drivers can be inattentive/distracted"]
[null,"b. Identify that drivers are most concerned about collisions with other vehicles and not as concerned with pedestrians"]
[null,"c. Identify that driver making a right turn may direct his attention to his left and not to a pedestrian in the crosswalk"]
[null,"d. Identify that driver making a left turn may direct her attention to parallel traffic in the opposite lane and not to pedestrian in the crosswalk"]
[null,"e. Identify that a driver may attempt to shoot between gaps in traffic (turning or going straight) and that the driver may face a choice between hitting an unexpected pedestrian and being hit by another vehicle"]
[null,"f. Identify that some drivers will turn in front of or behind pedestrian in the crosswalk when parallel traffic in the near lane has either passed the pedestrian there is a gap in the parallel traffic"]
[null,"g. Identify that drivers may not be able to see pedestrians who are obscured by large vehicle serving as parallel traffic in the near lane"]
[null,"h. Identify that the driver of a tall vehicle (e.g. semi) may have difficulty seeing pedestrain, and will have a progressively harder time seeing pedestrian as vehicle nears pedestrian"]
["15. Use of Pedestrian Signals",null,null,{"$f":"SUM(C339:C342)/(COUNTIF(C339:C342,\">0\")+0.00000001)","v":0},null,{"$f":"SUM(E339:E342)/(COUNTIF(E339:E342,\">0\")+0.00000001)","v":0},null,{"$f":"SUM(G339:G342)/(COUNTIF(G339:G342,\">0\")+0.00000001)","v":0},null,{"$f":"SUM(I339:I342)/(COUNTIF(I339:I342,\">0\")+0.00000001)","v":0},null,{"$f":"SUM(K339:K342)/(COUNTIF(K339:K342,\">0\")+0.00000001)","v":0},null,{"$f":"SUM(M339:M342)/(COUNTIF(M339:M342,\">0\")+0.00000001)","v":0}]
[null,"a. identify purpose of pedestrian signals (gain more time to cross, ensure parallel traffic in near lane has a green light instead of just a green arrow for left turning vehicles)"]
[null,"b. identify that some intersections cannot be safely crossed without use of the pedestrian signal."]
[null,"c. locate pedestrian signal while maintaining orientation and quickly re-establishing L.O.T."]
[null,"d. wait by pedestrian signal, face perpendicular street, activate signal when perpendicular traffic surges to allow enough time to re-establish orientation and alignment after activating pedestrian signal to use the parallel traffic surge"]
[null,"raw score for section",null,{"$f":"D179+D185+D186+D190+D194+D209+D228+D250+D275+D290+D295+D305+D315+D329+D338","v":0},null,{"$f":"F179+F185+F186+F190+F194+F209+F228+F250+F275+F290+F295+F305+F315+F329+F338","v":0},null,{"$f":"H179+H185+H186+H190+H194+H209+H228+H250+H275+H290+H295+H305+H315+H329+H338","v":0},null,{"$f":"J179+J185+J186+J190+J194+J209+J228+J250+J275+J290+J295+J305+J315+J329+J338","v":0},null,{"$f":"L179+L185+L186+L190+L194+L209+L228+L250+L275+L290+L295+L305+L315+L329+L338","v":0},null,{"$f":"N179+N185+N186+N190+N194+N209+N228+N250+N275+N290+N295+N305+N315+N329+N338","v":0}]
[null,"average score for section",null,{"$f":"D343/(COUNTIF(D179:D342,\">0\")+0.00000001)","v":0},null,{"$f":"F343/(COUNTIF(F179:F342,\">0\")+0.00000001)","v":0},null,{"$f":"H343/(COUNTIF(H179:H342,\">0\")+0.00000001)","v":0},null,{"$f":"J343/(COUNTIF(J179:J342,\">0\")+0.00000001)","v":0},null,{"$f":"L343/(COUNTIF(L179:L342,\">0\")+0.00000001)","v":0},null,{"$f":"N343/(COUNTIF(N179:N342,\">0\")+0.00000001)","v":0}]
[null,"percentage score for section",null,{"$f":"D344/5*100","v":0},null,{"$f":"F344/5*100","v":0},null,{"$f":"H344/5*100","v":0},null,{"$f":"J344/5*100","v":0},null,{"$f":"L344/5*100","v":0},null,{"$f":"N344/5*100","v":0}]
["RATING SCALE"]
["0 = Student not capable of demonstrating skill or does not need skill"]
["1 = Student does not demonstrate skill but may/will learn skill"]
["2 = Student only demonstrates skill with verbal and/or physical prompting"]
["3 = Student sometimes demonstrates skill without verbal and/or physical prompting"]
["4 = Student demonstrates skill and verbal and/or physical prompting are rarely needed"]
["5 = Student has totally mastered skill and does not require verbal and/or physical prompting"]

{"sheet":"Orientation","index":10,"n_rows":180,"n_cols":15,"rows_kept":180,"cut":false,"hidden":false,"merged":[]}
["ORIENTATION SKILLS (First 6 Columns On Front Page)",null,"Date",null,"Date",null,"Date",null,"Date",null,"Date",null,"Date",null,"notes"]
[null,null,"Input\nData","Auto\nScore","Input\nData","Auto\nScore","Input\nData","Auto\nScore","Input\nData","Auto\nScore","Input\nData","Auto\nScore","Input\nData","Auto\nScore"]
["1. Cardinality",null,null,{"$f":"SUM(C4:C17)/(COUNTIF(C4:C17,\">0\")+0.00000001)","v":0},null,{"$f":"SUM(E4:E17)/(COUNTIF(E4:E17,\">0\")+0.00000001)","v":0},null,{"$f":"SUM(G4:G17)/(COUNTIF(G4:G17,\">0\")+0.00000001)","v":0},null,{"$f":"SUM(I4:I17)/(COUNTIF(I4:I17,\">0\")+0.00000001)","v":0},null,{"$f":"SUM(K4:K17)/(COUNTIF(K4:K17,\">0\")+0.00000001)","v":0},null,{"$f":"SUM(M4:M17)/(COUNTIF(M4:M17,\">0\")+0.00000001)","v":0}]
[null,"a. identify names of cardinal directions"]
[null,"b. identify east opposite west, north opposite south"]
[null,"c. use clue (e.g. position of sun, noise from passing train) or landmark (e.g. mountains) to determine one direction"]
[null,"d. use one known direction to extrapolate other three"]
[null,"e. identify SE, SW, NE, NW"]
[null,"f. identify direction while walking indoors including turns"]
[null,"g. identify direction while walking outdoors including turns"]
[null,"h. identify direction to object or building"]
[null,"i. identify directional relationship to object or building (e.g. the building is to east, we are west of building)"]
[null,"j. identify directional relationship to parallel street"]
[null,"k, identify directional corner of intersection"]
[null,"l. complete single turn route using cardinal directions"]
[null,"m. complete two turn route using cardinal directions"]
[null,"n. complete multi-turn route using cardinal directions"]
["2. Landmarks",null,null,{"$f":"SUM(C19:C23)/(COUNTIF(C19:C23,\">0\")+0.00000001)","v":0},null,{"$f":"SUM(E19:E23)/(COUNTIF(E19:E23,\">0\")+0.00000001)","v":0},null,{"$f":"SUM(G19:G23)/(COUNTIF(G19:G23,\">0\")+0.00000001)","v":0},null,{"$f":"SUM(I19:I23)/(COUNTIF(I19:I23,\">0\")+0.00000001)","v":0},null,{"$f":"SUM(K19:K23)/(COUNTIF(K19:K23,\">0\")+0.00000001)","v":0},null,{"$f":"SUM(M19:M23)/(COUNTIF(M19:M23,\">0\")+0.00000001)","v":0}]
[null,"a. identify landmarks as permanent fixtures in environment"]
[null,"b. identify landmarks unique to commonly used routes"]
[null,"c. complete single turn using landmark "]
[null,"d. complete two turn route using landmarks"]
[null,"e. complete multi-turn route using landmarks"]
["3. Clues",null,null,{"$f":"SUM(C25:C29)/(COUNTIF(C25:C29,\">0\")+0.00000001)","v":0},null,{"$f":"SUM(E25:E29)/(COUNTIF(E25:E29,\">0\")+0.00000001)","v":0},null,{"$f":"SUM(G25:G29)/(COUNTIF(G25:G29,\">0\")+0.00000001)","v":0},null,{"$f":"SUM(I25:I29)/(COUNTIF(I25:I29,\">0\")+0.00000001)","v":0},null,{"$f":"SUM(K25:K29)/(COUNTIF(K25:K29,\">0\")+0.00000001)","v":0},null,{"$f":"SUM(M25:M29)/(COUNTIF(M25:M29,\">0\")+0.00000001)","v":0}]
[null,"a. identify clues as transitory "]
[null,"b. identify clues unique to commonly used routes"]
[null,"c. complete single turn route using clue "]
[null,"d. complete two turn route using clues"]
[null,"e. complete multi-turn route using clues"]
["4. Indoor Numbering Systems",null,null,{"$f":"SUM(C31:C35)/(COUNTIF(C31:C35,\">0\")+0.00000001)","v":0},null,{"$f":"SUM(E31:E35)/(COUNTIF(E31:E35,\">0\")+0.00000001)","v":0},null,{"$f":"SUM(G31:G35)/(COUNTIF(G31:G35,\">0\")+0.00000001)","v":0},null,{"$f":"SUM(I31:I35)/(COUNTIF(I31:I35,\">0\")+0.00000001)","v":0},null,{"$f":"SUM(K31:K35)/(COUNTIF(K31:K35,\">0\")+0.00000001)","v":0},null,{"$f":"SUM(M31:M35)/(COUNTIF(M31:M35,\">0\")+0.00000001)","v":0}]
[null,"a. identify that rooms in buildings often have numbers"]
[null,"b. identify where braille/large print sign is found on/by door"]
[null,"c. identify that indoor numbering systems vary widely"]
[null,"d. identify numbers generally get bigger/smaller heading in one direction, evens sometimes found on one side of hall"]
[null,"e. identify that initial digit can identify floor number of room"]
["5. Outdoor Numbering (Address) Systems",null,null,{"$f":"SUM(C37:C41)/(COUNTIF(C37:C41,\">0\")+0.00000001)","v":0},null,{"$f":"SUM(E37:E41)/(COUNTIF(E37:E41,\">0\")+0.00000001)","v":0},null,{"$f":"SUM(G37:G41)/(COUNTIF(G37:G41,\">0\")+0.00000001)","v":0},null,{"$f":"SUM(I37:I41)/(COUNTIF(I37:I41,\">0\")+0.00000001)","v":0},null,{"$f":"SUM(K37:K41)/(COUNTIF(K37:K41,\">0\")+0.00000001)","v":0},null,{"$f":"SUM(M37:M41)/(COUNTIF(M37:M41,\">0\")+0.00000001)","v":0}]
[null,"a. identify that houses/businesses have street addresses"]
[null,"b. identify where (print) address can be found on house"]
[null,"c. identify where (print) address can be found on business"]
[null,"d. identify that outdoor numbering systems are similar from one city to another"]
[null,"e. identify that even number addresses are on either east or west side of streets and either north or south side of streets, depending on the city"]
["6. Grid System",null,null,{"$f":"SUM(C43:C52)/(COUNTIF(C43:C52,\">0\")+0.00000001)","v":0},null,{"$f":"SUM(E43:E52)/(COUNTIF(E43:E52,\">0\")+0.00000001)","v":0},null,{"$f":"SUM(G43:G52)/(COUNTIF(G43:G52,\">0\")+0.00000001)","v":0},null,{"$f":"SUM(I43:I52)/(COUNTIF(I43:I52,\">0\")+0.00000001)","v":0},null,{"$f":"SUM(K43:K52)/(COUNTIF(K43:K52,\">0\")+0.00000001)","v":0},null,{"$f":"SUM(M43:M52)/(COUNTIF(M43:M52,\">0\")+0.00000001)","v":0}]
[null,"a. identify 'checkboard' pattern of grid system"]
[null,"b. identify names/numbers of east-west, north-south streets"]
[null,"c. complete single block straight line route"]
[null,"d. complete single block 'L' route"]
[null,"e. complete single block 'u' route"]
[null,"f. complete multi block straight line route"]
[null,"g. complete multi block 'L' route"]
[null,"h. complete multi block 'U' route"]
[null,"i. complete multi block zig-zag route"]
[null,"j. complete route and then return to starting point by a new route created by student"]
["7. Divisors And Block Numbering",null,null,{"$f":"SUM(C54:C59)/(COUNTIF(C54:C59,\">0\")+0.00000001)","v":0},null,{"$f":"SUM(E54:E59)/(COUNTIF(E54:E59,\">0\")+0.00000001)","v":0},null,{"$f":"SUM(G54:G59)/(COUNTIF(G54:G59,\">0\")+0.00000001)","v":0},null,{"$f":"SUM(I54:I59)/(COUNTIF(I54:I59,\">0\")+0.00000001)","v":0},null,{"$f":"SUM(K54:K59)/(COUNTIF(K54:K59,\">0\")+0.00000001)","v":0},null,{"$f":"SUM(M54:M59)/(COUNTIF(M54:M59,\">0\")+0.00000001)","v":0}]
[null,"a. identify divisors for town/city"]
[null,"b. identify that block numbers generally run in the 100s"]
[null,"c. identify that block numbers increase with distance from divisors and decrease as divisors are neared"]
[null,"d. use address to determine approximate number of blocks to divisor and estimate time to reach divisor "]
[null,"e. use second address to determine number of blocks to other divisor, center of town and time to reach both"]
[null,"f. use two addresses to determine location in city and determine direction and approximate distance and time to reach another address elsewhere in the town/city"]
["8. Transferability ",null,null,{"$f":"SUM(C61:C63)/(COUNTIF(C61:C63,\">0\")+0.00000001)","v":0},null,{"$f":"SUM(E61:E63)/(COUNTIF(E61:E63,\">0\")+0.00000001)","v":0},null,{"$f":"SUM(G61:G63)/(COUNTIF(G61:G63,\">0\")+0.00000001)","v":0},null,{"$f":"SUM(I61:I63)/(COUNTIF(I61:I63,\">0\")+0.00000001)","v":0},null,{"$f":"SUM(K61:K63)/(COUNTIF(K61:K63,\">0\")+0.00000001)","v":0},null,{"$f":"SUM(M61:M63)/(COUNTIF(M61:M63,\">0\")+0.00000001)","v":0}]
[null,"a. identify that divisors/block numbering system concepts are identical in virtually all cities"]
[null,"b. identify methods for determining divisors in other locations"]
[null,"c. use map of another city/town with an address to find another location in that city/town and identify divisors"]
["9. Global Positioning Systems (GPS)",null,null,{"$f":"SUM(C65:C71)/(COUNTIF(C65:C71,\">0\")+0.00000001)","v":0},null,{"$f":"SUM(E65:E71)/(COUNTIF(E65:E71,\">0\")+0.00000001)","v":0},null,{"$f":"SUM(G65:G71)/(COUNTIF(G65:G71,\">0\")+0.00000001)","v":0},null,{"$f":"SUM(I65:I71)/(COUNTIF(I65:I71,\">0\")+0.00000001)","v":0},null,{"$f":"SUM(K65:K71)/(COUNTIF(K65:K71,\">0\")+0.00000001)","v":0},null,{"$f":"SUM(M65:M71)/(COUNTIF(M65:M71,\">0\")+0.00000001)","v":0}]
[null,"a. identify purpose of GPS "]
[null,"b. identify GPS options accessible by this particular student"]
[null,"c. use GPS device to determine cardinal direction"]
[null,"d. use GPS to plot route by using Point Of Interest"]
[null,"e. use GPS to plot route by address"]
[null,"f. use GPS to browse route before walking it"]
[null,"g. identify limitations of GPS devices"]
["10. Maps",null,null,{"$f":"SUM(C73:C80)/(COUNTIF(C73:C80,\">0\")+0.00000001)","v":0},null,{"$f":"SUM(E73:E80)/(COUNTIF(E73:E80,\">0\")+0.00000001)","v":0},null,{"$f":"SUM(G73:G80)/(COUNTIF(G73:G80,\">0\")+0.00000001)","v":0},null,{"$f":"SUM(I73:I80)/(COUNTIF(I73:I80,\">0\")+0.00000001)","v":0},null,{"$f":"SUM(K73:K80)/(COUNTIF(K73:K80,\">0\")+0.00000001)","v":0},null,{"$f":"SUM(M73:M80)/(COUNTIF(M73:M80,\">0\")+0.00000001)","v":0}]
[null,"a. identify purpose of map key"]
[null,"b. scan map systematically to get overview"]
[null,"c. search map for more detailed information"]
[null,"d. locate items from key on map"]
[null,"e. describe relationships between items on the map in cardinal terms"]
[null,"f. describe relationships between items on the map and what those items represent in the real world"]
[null,"g. create simple map of familiar route"]
[null,"h. use simple map to complete route"]
[null,"raw score for section",null,{"$f":"D3+D18+D24+D30+D36+D42+D53+D60+D64+D72","v":0},null,{"$f":"F3+F18+F24+F30+F36+F42+F53+F60+F64+F72","v":0},null,{"$f":"H3+H18+H24+H30+H36+H42+H53+H60+H64+H72","v":0},null,{"$f":"J3+J18+J24+J30+J36+J42+J53+J60+J64+J72","v":0},null,{"$f":"L3+L18+L24+L30+L36+L42+L53+L60+L64+L72","v":0},null,{"$f":"N3+N18+N24+N30+N36+N42+N53+N60+N64+N72","v":0}]
[null,"average score for section",null,{"$f":"D81/(COUNTIF(D3:D72,\">0\")+0.00000001)","v":0},null,{"$f":"F81/(COUNTIF(F3:F72,\">0\")+0.00000001)","v":0},null,{"$f":"H81/(COUNTIF(H3:H72,\">0\")+0.00000001)","v":0},null,{"$f":"J81/(COUNTIF(J3:J72,\">0\")+0.00000001)","v":0},null,{"$f":"L81/(COUNTIF(L3:L72,\">0\")+0.00000001)","v":0},null,{"$f":"N81/(COUNTIF(N3:N72,\">0\")+0.00000001)","v":0}]
[null,"percentage score for section",null,{"$f":"D82/5*100","v":0},null,{"$f":"F82/5*100","v":0},null,{"$f":"H82/5*100","v":0},null,{"$f":"J82/5*100","v":0},null,{"$f":"L82/5*100","v":0},null,{"$f":"N82/5*100","v":0}]
["RATING SCALE"]
["0 = Student not capable of demonstrating skill or does not need skill"]
["1 = Student does not demonstrate skill but may/will learn skill"]
["2 = Student only demonstrates skill with verbal and/or physical prompting"]
["3 = Student sometimes demonstrates skill without verbal and/or physical prompting"]
["4 = Student demonstrates skill and verbal and/or physical prompting are rarely needed"]
["5 = Student has totally mastered skill and does not require verbal and/or physical prompting"]
["ORIENTATION SKILLS (Last 6 Columns On Front Page)",null,"Date",null,"Date",null,"Date",null,"Date",null,"Date",null,"Date",null,"notes"]
[null,null,"Input\nData","Auto\nScore","Input\nData","Auto\nScore","Input\nData","Auto\nScore","Input\nData","Auto\nScore","Input\nData","Auto\nScore","Input\nData","Auto\nScore"]
["1. Cardinality",null,null,{"$f":"SUM(C94:C107)/(COUNTIF(C94:C107,\">0\")+0.00000001)","v":0},null,{"$f":"SUM(E94:E107)/(COUNTIF(E94:E107,\">0\")+0.00000001)","v":0},null,{"$f":"SUM(G94:G107)/(COUNTIF(G94:G107,\">0\")+0.00000001)","v":0},null,{"$f":"SUM(I94:I107)/(COUNTIF(I94:I107,\">0\")+0.00000001)","v":0},null,{"$f":"SUM(K94:K107)/(COUNTIF(K94:K107,\">0\")+0.00000001)","v":0},null,{"$f":"SUM(M94:M107)/(COUNTIF(M94:M107,\">0\")+0.00000001)","v":0}]
[null,"a. identify names of cardinal directions"]
[null,"b. identify east opposite west, north opposite south"]
[null,"c. use clue (e.g. position of sun, noise from passing train) or landmark (e.g. mountains) to determine one direction"]
[null,"d. use one known direction to extrapolate other three"]
[null,"e. identify SE, SW, NE, NW"]
[null,"f. identify direction while walking indoors including turns"]
[null,"g. identify direction while walking outdoors including turns"]
[null,"h. identify direction to object or building"]
[null,"i. identify directional relationship to object or building (e.g. the building is to east, we are west of building)"]
[null,"j. identify directional relationship to parallel street"]
[null,"k, identify directional corner of intersection"]
[null,"l. complete single turn route using cardinal directions"]
[null,"m. complete two turn route using cardinal directions"]
[null,"n. complete multi-turn route using cardinal directions"]
["2. Landmarks",null,null,{"$f":"SUM(C109:C113)/(COUNTIF(C109:C113,\">0\")+0.00000001)","v":0},null,{"$f":"SUM(E109:E113)/(COUNTIF(E109:E113,\">0\")+0.00000001)","v":0},null,{"$f":"SUM(G109:G113)/(COUNTIF(G109:G113,\">0\")+0.00000001)","v":0},null,{"$f":"SUM(I109:I113)/(COUNTIF(I109:I113,\">0\")+0.00000001)","v":0},null,{"$f":"SUM(K109:K113)/(COUNTIF(K109:K113,\">0\")+0.00000001)","v":0},null,{"$f":"SUM(M109:M113)/(COUNTIF(M109:M113,\">0\")+0.00000001)","v":0}]
[null,"a. identify landmarks as permanent fixtures in environment"]
[null,"b. identify landmarks unique to commonly used routes"]
[null,"c. complete single turn using landmark "]
[null,"d. complete two turn route using landmarks"]
[null,"e. complete multi-turn route using landmarks"]
["3. Clues",null,null,{"$f":"SUM(C115:C119)/(COUNTIF(C115:C119,\">0\")+0.00000001)","v":0},null,{"$f":"SUM(E115:E119)/(COUNTIF(E115:E119,\">0\")+0.00000001)","v":0},null,{"$f":"SUM(G115:G119)/(COUNTIF(G115:G119,\">0\")+0.00000001)","v":0},null,{"$f":"SUM(I115:I119)/(COUNTIF(I115:I119,\">0\")+0.00000001)","v":0},null,{"$f":"SUM(K115:K119)/(COUNTIF(K115:K119,\">0\")+0.00000001)","v":0},null,{"$f":"SUM(M115:M119)/(COUNTIF(M115:M119,\">0\")+0.00000001)","v":0}]
[null,"a. identify clues as transitory "]
[null,"b. identify clues unique to commonly used routes"]
[null,"c. complete single turn route using clue "]
[null,"d. complete two turn route using clues"]
[null,"e. complete multi-turn route using clues"]
["4. Indoor Numbering Systems",null,null,{"$f":"SUM(C121:C125)/(COUNTIF(C121:C125,\">0\")+0.00000001)","v":0},null,{"$f":"SUM(E121:E125)/(COUNTIF(E121:E125,\">0\")+0.00000001)","v":0},null,{"$f":"SUM(G121:G125)/(COUNTIF(G121:G125,\">0\")+0.00000001)","v":0},null,{"$f":"SUM(I121:I125)/(COUNTIF(I121:I125,\">0\")+0.00000001)","v":0},null,{"$f":"SUM(K121:K125)/(COUNTIF(K121:K125,\">0\")+0.00000001)","v":0},null,{"$f":"SUM(M121:M125)/(COUNTIF(M121:M125,\">0\")+0.00000001)","v":0}]
[null,"a. identify that rooms in buildings often have numbers"]
[null,"b. identify where braille/large print sign is found on/by door"]
[null,"c. identify that indoor numbering systems vary widely"]
[null,"d. identify numbers generally get bigger/smaller heading in one direction, evens sometimes found on one side of hall"]
[null,"e. identify that initial digit can identify floor number of room"]
["5. Outdoor Numbering (Address) Systems",null,null,{"$f":"SUM(C127:C131)/(COUNTIF(C127:C131,\">0\")+0.00000001)","v":0},null,{"$f":"SUM(E127:E131)/(COUNTIF(E127:E131,\">0\")+0.00000001)","v":0},null,{"$f":"SUM(G127:G131)/(COUNTIF(G127:G131,\">0\")+0.00000001)","v":0},null,{"$f":"SUM(I127:I131)/(COUNTIF(I127:I131,\">0\")+0.00000001)","v":0},null,{"$f":"SUM(K127:K131)/(COUNTIF(K127:K131,\">0\")+0.00000001)","v":0},null,{"$f":"SUM(M127:M131)/(COUNTIF(M127:M131,\">0\")+0.00000001)","v":0}]
[null,"a. identify that houses/businesses have street addresses"]
[null,"b. identify where (print) address can be found on house"]
[null,"c. identify where (print) address can be found on business"]
[null,"d. identify that outdoor numbering systems are similar from one city to another"]
[null,"e. identify that even number addresses are on either east or west side of streets and either north or south side of streets, depending on the city"]
["6. Grid System",null,null,{"$f":"SUM(C133:C142)/(COUNTIF(C133:C142,\">0\")+0.00000001)","v":0},null,{"$f":"SUM(E133:E142)/(COUNTIF(E133:E142,\">0\")+0.00000001)","v":0},null,{"$f":"SUM(G133:G142)/(COUNTIF(G133:G142,\">0\")+0.00000001)","v":0},null,{"$f":"SUM(I133:I142)/(COUNTIF(I133:I142,\">0\")+0.00000001)","v":0},null,{"$f":"SUM(K133:K142)/(COUNTIF(K133:K142,\">0\")+0.00000001)","v":0},null,{"$f":"SUM(M133:M142)/(COUNTIF(M133:M142,\">0\")+0.00000001)","v":0}]
[null,"a. identify 'checkboard' pattern of grid system"]
[null,"b. identify names/numbers of east-west, north-south streets"]
[null,"c. complete single block straight line route"]
[null,"d. complete single block 'L' route"]
[null,"e. complete single block 'u' route"]
[null,"f. complete multi block straight line route"]
[null,"g. complete multi block 'L' route"]
[null,"h. complete multi block 'U' route"]
[null,"i. complete multi block zig-zag route"]
[null,"j. complete route and then return to starting point by a new route created by student"]
["7. Divisors And Block Numbering",null,null,{"$f":"SUM(C144:C149)/(COUNTIF(C144:C149,\">0\")+0.00000001)","v":0},null,{"$f":"SUM(E144:E149)/(COUNTIF(E144:E149,\">0\")+0.00000001)","v":0},null,{"$f":"SUM(G144:G149)/(COUNTIF(G144:G149,\">0\")+0.00000001)","v":0},null,{"$f":"SUM(I144:I149)/(COUNTIF(I144:I149,\">0\")+0.00000001)","v":0},null,{"$f":"SUM(K144:K149)/(COUNTIF(K144:K149,\">0\")+0.00000001)","v":0},null,{"$f":"SUM(M144:M149)/(COUNTIF(M144:M149,\">0\")+0.00000001)","v":0}]
[null,"a. identify divisors for town/city"]
[null,"b. identify that block numbers generally run in the 100s"]
[null,"c. identify that block numbers increase with distance from divisors and decrease as divisors are neared"]
[null,"d. use address to determine approximate number of blocks to divisor and estimate time to reach divisor "]
[null,"e. use second address to determine number of blocks to other divisor, center of town and time to reach both"]
[null,"f. use two addresses to determine location in city and determine direction and approximate distance and time to reach another address elsewhere in the town/city"]
["8. Transferability ",null,null,{"$f":"SUM(C151:C153)/(COUNTIF(C151:C153,\">0\")+0.00000001)","v":0},null,{"$f":"SUM(E151:E153)/(COUNTIF(E151:E153,\">0\")+0.00000001)","v":0},null,{"$f":"SUM(G151:G153)/(COUNTIF(G151:G153,\">0\")+0.00000001)","v":0},null,{"$f":"SUM(I151:I153)/(COUNTIF(I151:I153,\">0\")+0.00000001)","v":0},null,{"$f":"SUM(K151:K153)/(COUNTIF(K151:K153,\">0\")+0.00000001)","v":0},null,{"$f":"SUM(M151:M153)/(COUNTIF(M151:M153,\">0\")+0.00000001)","v":0}]
[null,"a. identify that divisors/block numbering system concepts are identical in virtually all cities"]
[null,"b. identify methods for determining divisors in other locations"]
[null,"c. use map of another city/town with an address to find another location in that city/town and identify divisors"]
["9. Global Positioning Systems (GPS)",null,null,{"$f":"SUM(C155:C161)/(COUNTIF(C155:C161,\">0\")+0.00000001)","v":0},null,{"$f":"SUM(E155:E161)/(COUNTIF(E155:E161,\">0\")+0.00000001)","v":0},null,{"$f":"SUM(G155:G161)/(COUNTIF(G155:G161,\">0\")+0.00000001)","v":0},null,{"$f":"SUM(I155:I161)/(COUNTIF(I155:I161,\">0\")+0.00000001)","v":0},null,{"$f":"SUM(K155:K161)/(COUNTIF(K155:K161,\">0\")+0.00000001)","v":0},null,{"$f":"SUM(M155:M161)/(COUNTIF(M155:M161,\">0\")+0.00000001)","v":0}]
[null,"a. identify purpose of GPS "]
[null,"b. identify GPS options accessible by this particular student"]
[null,"c. use GPS device to determine cardinal direction"]
[null,"d. use GPS to plot route by using Point Of Interest"]
[null,"e. use GPS to plot route by address"]
[null,"f. use GPS to browse route before walking it"]
[null,"g. identify limitations of GPS devices"]
["10. Maps",null,null,{"$f":"SUM(C163:C170)/(COUNTIF(C163:C170,\">0\")+0.00000001)","v":0},null,{"$f":"SUM(E163:E170)/(COUNTIF(E163:E170,\">0\")+0.00000001)","v":0},null,{"$f":"SUM(G163:G170)/(COUNTIF(G163:G170,\">0\")+0.00000001)","v":0},null,{"$f":"SUM(I163:I170)/(COUNTIF(I163:I170,\">0\")+0.00000001)","v":0},null,{"$f":"SUM(K163:K170)/(COUNTIF(K163:K170,\">0\")+0.00000001)","v":0},null,{"$f":"SUM(M163:M170)/(COUNTIF(M163:M170,\">0\")+0.00000001)","v":0}]
[null,"a. identify purpose of map key"]
[null,"b. scan map systematically to get overview"]
[null,"c. search map for more detailed information"]
[null,"d. locate items from key on map"]
[null,"e. describe relationships between items on the map in cardinal terms"]
[null,"f. describe relationships between items on the map and what those items represent in the real world"]
[null,"g. create simple map of familiar route"]
[null,"h. use simple map to complete route"]
[null,"raw score for section",null,{"$f":"D93+D108+D114+D120+D126+D132+D143+D150+D154+D162","v":0},null,{"$f":"F93+F108+F114+F120+F126+F132+F143+F150+F154+F162","v":0},null,{"$f":"H93+H108+H114+H120+H126+H132+H143+H150+H154+H162","v":0},null,{"$f":"J93+J108+J114+J120+J126+J132+J143+J150+J154+J162","v":0},null,{"$f":"L93+L108+L114+L120+L126+L132+L143+L150+L154+L162","v":0},null,{"$f":"N93+N108+N114+N120+N126+N132+N143+N150+N154+N162","v":0}]
[null,"average score for section",null,{"$f":"D171/(COUNTIF(D93:D162,\">0\")+0.00000001)","v":0},null,{"$f":"F171/(COUNTIF(F93:F162,\">0\")+0.00000001)","v":0},null,{"$f":"H171/(COUNTIF(H93:H162,\">0\")+0.00000001)","v":0},null,{"$f":"J171/(COUNTIF(J93:J162,\">0\")+0.00000001)","v":0},null,{"$f":"L171/(COUNTIF(L93:L162,\">0\")+0.00000001)","v":0},null,{"$f":"N171/(COUNTIF(N93:N162,\">0\")+0.00000001)","v":0}]
[null,"percentage score for section",null,{"$f":"D172/5*100","v":0},null,{"$f":"F172/5*100","v":0},null,{"$f":"H172/5*100","v":0},null,{"$f":"J172/5*100","v":0},null,{"$f":"L172/5*100","v":0},null,{"$f":"N172/5*100","v":0}]
["RATING SCALE"]
["0 = Student not capable of demonstrating skill or does not need skill"]
["1 = Student does not demonstrate skill but may/will learn skill"]
["2 = Student only demonstrates skill with verbal and/or physical prompting"]
["3 = Student sometimes demonstrates skill without verbal and/or physical prompting"]
["4 = Student demonstrates skill and verbal and/or physical prompting are rarely needed"]
["5 = Student has totally mastered skill and does not require verbal and/or physical prompting"]

{"sheet":"Public Tran","index":11,"n_rows":178,"n_cols":15,"rows_kept":178,"cut":false,"hidden":false,"merged":[]}
["PUBLIC TRANSPORTATION (First 6 Columns On Front Page)",null,"Date",null,"Date",null,"Date",null,"Date",null,"Date",null,"Date",null,"notes"]
[null,null,"Input\nData","Auto\nScore","Input\nData","Auto\nScore","Input\nData","Auto\nScore","Input\nData","Auto\nScore","Input\nData","Auto\nScore","Input\nData","Auto\nScore"]
["1. Identify Common Public Transportation Options",null,null,{"$f":"C3","v":0},null,{"$f":"E3","v":0},null,{"$f":"G3","v":0},null,{"$f":"I3","v":0},null,{"$f":"K3","v":0},null,{"$f":"M3","v":0}]
["2. Intra-City Bus Travel",null,null,{"$f":"SUM(C5:C21)/(COUNTIF(C5:C21,\">0\")+0.00000001)","v":0},null,{"$f":"SUM(E5:E21)/(COUNTIF(E5:E21,\">0\")+0.00000001)","v":0},null,{"$f":"SUM(G5:G21)/(COUNTIF(G5:G21,\">0\")+0.00000001)","v":0},null,{"$f":"SUM(I5:I21)/(COUNTIF(I5:I21,\">0\")+0.00000001)","v":0},null,{"$f":"SUM(K5:K21)/(COUNTIF(K5:K21,\">0\")+0.00000001)","v":0},null,{"$f":"SUM(M5:M21)/(COUNTIF(M5:M21,\">0\")+0.00000001)","v":0}]
[null,"a. identify positives/negatives of bus travel"]
[null,"b. obtain information about bus routes"]
[null,"c. obtain information about bus schedule"]
[null,"d. obtain information about fare/bus pass"]
[null,"e, Identify potential bus transfer points"]
[null,"f. estimate time bus route will take"]
[null,"g. locate bus stop"]
[null,"h. board bus, locate payment box/show pass"]
[null,"i.  ensure it is correct bus"]
[null,"j. ask to be informed of stop if bus doesn't have auto announcement system"]
[null,"k. locate empty seat"]
[null,"l. ask for orientation info when exiting bus (e.g. Is Main St in front of or behind the bus?)"]
[null,"m. exit bus at correct stop"]
[null,"n. re-establish orientation"]
[null,"o. wait at stop for next bus to arrive if that is transfer point"]
[null,"p. travel to transfer point stop if needed (possibly different corner of intersection or different intersection altogether)"]
[null,"q. quickly locate needed bus when several are present"]
["3. Inter-City Bus Travel",null,null,{"$f":"SUM(C23:C37)/(COUNTIF(C23:C37,\">0\")+0.00000001)","v":0},null,{"$f":"SUM(E23:E37)/(COUNTIF(E23:E37,\">0\")+0.00000001)","v":0},null,{"$f":"SUM(G23:G37)/(COUNTIF(G23:G37,\">0\")+0.00000001)","v":0},null,{"$f":"SUM(I23:I37)/(COUNTIF(I23:I37,\">0\")+0.00000001)","v":0},null,{"$f":"SUM(K23:K37)/(COUNTIF(K23:K37,\">0\")+0.00000001)","v":0},null,{"$f":"SUM(M23:M37)/(COUNTIF(M23:M37,\">0\")+0.00000001)","v":0}]
[null,"a. identify positives/negatives of bus travel"]
[null,"b. obtain information about bus routes"]
[null,"c. obtain information about bus schedule"]
[null,"d. obtain information about fare/discounts"]
[null,"e, Identify potential bus transfer points"]
[null,"f. estimate time bus route will take"]
[null,"g. locate bus stop"]
[null,"h. board bus"]
[null,"i. ensure it is correct bus"]
[null,"j. ask to be informed of stop if bus doesn't have auto announcement system"]
[null,"k. locate empty seat"]
[null,"l. ask for orientation info when exiting bus (e.g. Is Main St in front of or behind the bus?)"]
[null,"m. exit bus at correct stop"]
[null,"n. re-establish orientation"]
[null,"o. locate bus terminal/building if transferring"]
["4. Taxi Travel/Private Service (e.g. Uber)",null,null,{"$f":"SUM(C39:C44)/(COUNTIF(C39:C44,\">0\")+0.00000001)","v":0},null,{"$f":"SUM(E39:E44)/(COUNTIF(E39:E44,\">0\")+0.00000001)","v":0},null,{"$f":"SUM(G39:G44)/(COUNTIF(G39:G44,\">0\")+0.00000001)","v":0},null,{"$f":"SUM(I39:I44)/(COUNTIF(I39:I44,\">0\")+0.00000001)","v":0},null,{"$f":"SUM(K39:K44)/(COUNTIF(K39:K44,\">0\")+0.00000001)","v":0},null,{"$f":"SUM(M39:M44)/(COUNTIF(M39:M44,\">0\")+0.00000001)","v":0}]
[null,"a. identify positives/negatives of taxi travel"]
[null,"b. obtain phone numbers for available taxi companies, apps for private service"]
[null,"c. arrange pick up (call or app): state location of pick up with high degree of specificity (e.g. dress, landmarks) and get estimated time of pick up "]
[null,"d. communicate destination to driver"]
[null,"e. pay fare, tip if appropriate"]
[null,"f. ask directions from cab to door of destination"]
["5. Handi-Ride/Para Transit",null,null,{"$f":"SUM(C46:C48)/(COUNTIF(C46:C48,\">0\")+0.00000001)","v":0},null,{"$f":"SUM(E46:E48)/(COUNTIF(E46:E48,\">0\")+0.00000001)","v":0},null,{"$f":"SUM(G46:G48)/(COUNTIF(G46:G48,\">0\")+0.00000001)","v":0},null,{"$f":"SUM(I46:I48)/(COUNTIF(I46:I48,\">0\")+0.00000001)","v":0},null,{"$f":"SUM(K46:K48)/(COUNTIF(K46:K48,\">0\")+0.00000001)","v":0},null,{"$f":"SUM(M46:M48)/(COUNTIF(M46:M48,\">0\")+0.00000001)","v":0}]
[null,"a. identify positives/negatives of Handi-Ride type services"]
[null,"b. obtain eligibility information for Handi-Ride"]
[null,"c. obtain information about Handi-Ride schedule and fees"]
["6. Air Travel",null,null,{"$f":"SUM(C50:C64)/(COUNTIF(C50:C64,\">0\")+0.00000001)","v":0},null,{"$f":"SUM(E50:E64)/(COUNTIF(E50:E64,\">0\")+0.00000001)","v":0},null,{"$f":"SUM(G50:G64)/(COUNTIF(G50:G64,\">0\")+0.00000001)","v":0},null,{"$f":"SUM(I50:I64)/(COUNTIF(I50:I64,\">0\")+0.00000001)","v":0},null,{"$f":"SUM(K50:K64)/(COUNTIF(K50:K64,\">0\")+0.00000001)","v":0},null,{"$f":"SUM(M50:M64)/(COUNTIF(M50:M64,\">0\")+0.00000001)","v":0}]
[null,"a. identify positives/negatives of air travel"]
[null,"b. obtain information about flight routes"]
[null,"c. obtain information about flight schedules"]
[null,"d. obtain information about fares"]
[null,"e. identify methods for getting to airport with luggage"]
[null,"f. locate appropriate check in area at airport"]
[null,"g. check in and check any luggage"]
[null,"h. locate airport security with assistance if needed"]
[null,"i. follow procedures to clear security checkpoint"]
[null,"j. locate correct gate with assistance if needed"]
[null,"k. identify as passenger with disability to gate staff"]
[null,"l. board plane and locate seat (assigned or empty)"]
[null,"m. deplane and locate baggage claim"]
[null,"n. pick up luggage on carousel  with assistance if needed"]
[null,"o. locate transportation from airport with assistance if needed"]
["7. Subway/Light Rail",null,null,{"$f":"SUM(C66:C79)/(COUNTIF(C66:C79,\">0\")+0.00000001)","v":0},null,{"$f":"SUM(E66:E79)/(COUNTIF(E66:E79,\">0\")+0.00000001)","v":0},null,{"$f":"SUM(G66:G79)/(COUNTIF(G66:G79,\">0\")+0.00000001)","v":0},null,{"$f":"SUM(I66:I79)/(COUNTIF(I66:I79,\">0\")+0.00000001)","v":0},null,{"$f":"SUM(K66:K79)/(COUNTIF(K66:K79,\">0\")+0.00000001)","v":0},null,{"$f":"SUM(M66:M79)/(COUNTIF(M66:M79,\">0\")+0.00000001)","v":0}]
[null,"a. identify positives/negatives of subway/light rail travel"]
[null,"b. obtain information about subway/light rail routes"]
[null,"c. obtain information about subway/light rail schedule"]
[null,"d. obtain information about fare or subway/light rail pass"]
[null,"e, Identify potential subway/light rail transfer points"]
[null,"f. estimate time subway/light rail route will take"]
[null,"g. locate subway/light rail station"]
[null,"h. locate payment area/show pass/insert coins in turnstile"]
[null,"i. locate correct platform area for needed subway/light rail"]
[null,"j. board subway/light rail and find seat or hand hold"]
[null,"k. exit subway/light rail at appropriate stop"]
[null,"l. transfer to second subway/light rail to continue route if necessary"]
[null,"m. exit subway/light rail station"]
[null,"n. re-establish orientation"]
[null,"raw score for section",null,{"$f":"D3+D4+D22+D38+D45+D49+D65","v":0},null,{"$f":"F3+F4+F22+F38+F45+F49+F65","v":0},null,{"$f":"H3+H4+H22+H38+H45+H49+H65","v":0},null,{"$f":"J3+J4+J22+J38+J45+J49+J65","v":0},null,{"$f":"L3+L4+L22+L38+L45+L49+L65","v":0},null,{"$f":"N3+N4+N22+N38+N45+N49+N65","v":0}]
[null,"average score for section",null,{"$f":"D80/(COUNTIF(D3:D65,\">0\")+0.00000001)","v":0},null,{"$f":"F80/(COUNTIF(F3:F65,\">0\")+0.00000001)","v":0},null,{"$f":"H80/(COUNTIF(H3:H65,\">0\")+0.00000001)","v":0},null,{"$f":"J80/(COUNTIF(J3:J65,\">0\")+0.00000001)","v":0},null,{"$f":"L80/(COUNTIF(L3:L65,\">0\")+0.00000001)","v":0},null,{"$f":"N80/(COUNTIF(N3:N65,\">0\")+0.00000001)","v":0}]
[null,"percentage score for section",null,{"$f":"D81/5*100","v":0},null,{"$f":"F81/5*100","v":0},null,{"$f":"H81/5*100","v":0},null,{"$f":"J81/5*100","v":0},null,{"$f":"L81/5*100","v":0},null,{"$f":"N81/5*100","v":0}]
["RATING SCALE"]
["0 = Student not capable of demonstrating skill or does not need skill"]
["1 = Student does not demonstrate skill but may/will learn skill"]
["2 = Student only demonstrates skill with verbal and/or physical prompting"]
["3 = Student sometimes demonstrates skill without verbal and/or physical prompting"]
["4 = Student demonstrates skill and verbal and/or physical prompting are rarely needed"]
["5 = Student has totally mastered skill and does not require verbal and/or physical prompting"]
["PUBLIC TRANSPORTATION (Last 6 Columns On Front Page)",null,"Date",null,"Date",null,"Date",null,"Date",null,"Date",null,"Date",null,"notes"]
[null,null,"Input\nData","Auto\nScore","Input\nData","Auto\nScore","Input\nData","Auto\nScore","Input\nData","Auto\nScore","Input\nData","Auto\nScore","Input\nData","Auto\nScore"]
["1. Identify Common Public Transportation Options",null,null,{"$f":"C92","v":0},null,{"$f":"E92","v":0},null,{"$f":"G92","v":0},null,{"$f":"I92","v":0},null,{"$f":"K92","v":0},null,{"$f":"M92","v":0}]
["2. Intra-City Bus Travel",null,null,{"$f":"SUM(C94:C110)/(COUNTIF(C94:C110,\">0\")+0.00000001)","v":0},null,{"$f":"SUM(E94:E110)/(COUNTIF(E94:E110,\">0\")+0.00000001)","v":0},null,{"$f":"SUM(G94:G110)/(COUNTIF(G94:G110,\">0\")+0.00000001)","v":0},null,{"$f":"SUM(I94:I110)/(COUNTIF(I94:I110,\">0\")+0.00000001)","v":0},null,{"$f":"SUM(K94:K110)/(COUNTIF(K94:K110,\">0\")+0.00000001)","v":0},null,{"$f":"SUM(M94:M110)/(COUNTIF(M94:M110,\">0\")+0.00000001)","v":0}]
[null,"a. identify positives/negatives of bus travel"]
[null,"b. obtain information about bus routes"]
[null,"c. obtain information about bus schedule"]
[null,"d. obtain information about fare/bus pass"]
[null,"e, Identify potential bus transfer points"]
[null,"f. estimate time bus route will take"]
[null,"g. locate bus stop"]
[null,"h. board bus, locate payment box/show pass"]
[null,"i.  ensure it is correct bus"]
[null,"j. ask to be informed of stop if bus doesn't have auto announcement system"]
[null,"k. locate empty seat"]
[null,"l. ask for orientation info when exiting bus (e.g. Is Main St in front of or behind the bus?)"]
[null,"m. exit bus at correct stop"]
[null,"n. re-establish orientation"]
[null,"o. wait at stop for next bus to arrive if that is transfer point"]
[null,"p. travel to transfer point stop if needed (possibly different corner of intersection or different intersection altogether)"]
[null,"q. quickly locate needed bus when several are present"]
["3. Inter-City Bus Travel",null,null,{"$f":"SUM(C112:C126)/(COUNTIF(C112:C126,\">0\")+0.00000001)","v":0},null,{"$f":"SUM(E112:E126)/(COUNTIF(E112:E126,\">0\")+0.00000001)","v":0},null,{"$f":"SUM(G112:G126)/(COUNTIF(G112:G126,\">0\")+0.00000001)","v":0},null,{"$f":"SUM(I112:I126)/(COUNTIF(I112:I126,\">0\")+0.00000001)","v":0},null,{"$f":"SUM(K112:K126)/(COUNTIF(K112:K126,\">0\")+0.00000001)","v":0},null,{"$f":"SUM(M112:M126)/(COUNTIF(M112:M126,\">0\")+0.00000001)","v":0}]
[null,"a. identify positives/negatives of bus travel"]
[null,"b. obtain information about bus routes"]
[null,"c. obtain information about bus schedule"]
[null,"d. obtain information about fare/discounts"]
[null,"e, Identify potential bus transfer points"]
[null,"f. estimate time bus route will take"]
[null,"g. locate bus stop"]
[null,"h. board bus"]
[null,"i. ensure it is correct bus"]
[null,"j. ask to be informed of stop if bus doesn't have auto announcement system"]
[null,"k. locate empty seat"]
[null,"l. ask for orientation info when exiting bus (e.g. Is Main St in front of or behind the bus?)"]
[null,"m. exit bus at correct stop"]
[null,"n. re-establish orientation"]
[null,"o. locate bus terminal/building if transferring"]
["4. Taxi Travel/Private Service (e.g. Uber)",null,null,{"$f":"SUM(C128:C133)/(COUNTIF(C128:C133,\">0\")+0.00000001)","v":0},null,{"$f":"SUM(E128:E133)/(COUNTIF(E128:E133,\">0\")+0.00000001)","v":0},null,{"$f":"SUM(G128:G133)/(COUNTIF(G128:G133,\">0\")+0.00000001)","v":0},null,{"$f":"SUM(I128:I133)/(COUNTIF(I128:I133,\">0\")+0.00000001)","v":0},null,{"$f":"SUM(K128:K133)/(COUNTIF(K128:K133,\">0\")+0.00000001)","v":0},null,{"$f":"SUM(M128:M133)/(COUNTIF(M128:M133,\">0\")+0.00000001)","v":0}]
[null,"a. identify positives/negatives of taxi travel"]
[null,"b. obtain phone numbers for available taxi companies, apps for private service"]
[null,"c. arrange pick up (call or app): state location of pick up with high degree of specificity (e.g. dress, landmarks) and get estimated time of pick up "]
[null,"d. communicate destination to driver"]
[null,"e. pay fare, tip if appropriate"]
[null,"f. ask directions from cab to door of destination"]
["5. Handi-Ride/Para Transit",null,null,{"$f":"SUM(C135:C137)/(COUNTIF(C135:C137,\">0\")+0.00000001)","v":0},null,{"$f":"SUM(E135:E137)/(COUNTIF(E135:E137,\">0\")+0.00000001)","v":0},null,{"$f":"SUM(G135:G137)/(COUNTIF(G135:G137,\">0\")+0.00000001)","v":0},null,{"$f":"SUM(I135:I137)/(COUNTIF(I135:I137,\">0\")+0.00000001)","v":0},null,{"$f":"SUM(K135:K137)/(COUNTIF(K135:K137,\">0\")+0.00000001)","v":0},null,{"$f":"SUM(M135:M137)/(COUNTIF(M135:M137,\">0\")+0.00000001)","v":0}]
[null,"a. identify positives/negatives of Handi-Ride type services"]
[null,"b. obtain eligibility information for Handi-Ride"]
[null,"c. obtain information about Handi-Ride schedule and fees"]
["6. Air Travel",null,null,{"$f":"SUM(C139:C153)/(COUNTIF(C139:C153,\">0\")+0.00000001)","v":0},null,{"$f":"SUM(E139:E153)/(COUNTIF(E139:E153,\">0\")+0.00000001)","v":0},null,{"$f":"SUM(G139:G153)/(COUNTIF(G139:G153,\">0\")+0.00000001)","v":0},null,{"$f":"SUM(I139:I153)/(COUNTIF(I139:I153,\">0\")+0.00000001)","v":0},null,{"$f":"SUM(K139:K153)/(COUNTIF(K139:K153,\">0\")+0.00000001)","v":0},null,{"$f":"SUM(M139:M153)/(COUNTIF(M139:M153,\">0\")+0.00000001)","v":0}]
[null,"a. identify positives/negatives of air travel"]
[null,"b. obtain information about flight routes"]
[null,"c. obtain information about flight schedules"]
[null,"d. obtain information about fares"]
[null,"e. identify methods for getting to airport with luggage"]
[null,"f. locate appropriate check in area at airport"]
[null,"g. check in and check any luggage"]
[null,"h. locate airport security with assistance if needed"]
[null,"i. follow procedures to clear security checkpoint"]
[null,"j. locate correct gate with assistance if needed"]
[null,"k. identify as passenger with disability to gate staff"]
[null,"l. board plane and locate seat (assigned or empty)"]
[null,"m. deplane and locate baggage claim"]
[null,"n. pick up luggage on carousel  with assistance if needed"]
[null,"o. locate transportation from airport with assistance if needed"]
["7. Subway/Light Rail",null,null,{"$f":"SUM(C155:C168)/(COUNTIF(C155:C168,\">0\")+0.00000001)","v":0},null,{"$f":"SUM(E155:E168)/(COUNTIF(E155:E168,\">0\")+0.00000001)","v":0},null,{"$f":"SUM(G155:G168)/(COUNTIF(G155:G168,\">0\")+0.00000001)","v":0},null,{"$f":"SUM(I155:I168)/(COUNTIF(I155:I168,\">0\")+0.00000001)","v":0},null,{"$f":"SUM(K155:K168)/(COUNTIF(K155:K168,\">0\")+0.00000001)","v":0},null,{"$f":"SUM(M155:M168)/(COUNTIF(M155:M168,\">0\")+0.00000001)","v":0}]
[null,"a. identify positives/negatives of subway/light rail travel"]
[null,"b. obtain information about subway/light rail routes"]
[null,"c. obtain information about subway/light rail schedule"]
[null,"d. obtain information about fare or subway/light rail pass"]
[null,"e, Identify potential subway/light rail transfer points"]
[null,"f. estimate time subway/light rail route will take"]
[null,"g. locate subway/light rail station"]
[null,"h. locate payment area/show pass/insert coins in turnstile"]
[null,"i. locate correct platform area for needed subway/light rail"]
[null,"j. board subway/light rail and find seat or hand hold"]
[null,"k. exit subway/light rail at appropriate stop"]
[null,"l. transfer to second subway/light rail to continue route if necessary"]
[null,"m. exit subway/light rail station"]
[null,"n. re-establish orientation"]
[null,"raw score for section",null,{"$f":"D92+D93+D111+D127+D134+D138+D154","v":0},null,{"$f":"F92+F93+F111+F127+F134+F138+F154","v":0},null,{"$f":"H92+H93+H111+H127+H134+H138+H154","v":0},null,{"$f":"J92+J93+J111+J127+J134+J138+J154","v":0},null,{"$f":"L92+L93+L111+L127+L134+L138+L154","v":0},null,{"$f":"N92+N93+N111+N127+N134+N138+N154","v":0}]
[null,"average score for section",null,{"$f":"D169/(COUNTIF(D92:D154,\">0\")+0.00000001)","v":0},null,{"$f":"F169/(COUNTIF(F92:F154,\">0\")+0.00000001)","v":0},null,{"$f":"H169/(COUNTIF(H92:H154,\">0\")+0.00000001)","v":0},null,{"$f":"J169/(COUNTIF(J92:J154,\">0\")+0.00000001)","v":0},null,{"$f":"L169/(COUNTIF(L92:L154,\">0\")+0.00000001)","v":0},null,{"$f":"N169/(COUNTIF(N92:N154,\">0\")+0.00000001)","v":0}]
[null,"percentage score for section",null,{"$f":"D170/5*100","v":0},null,{"$f":"F170/5*100","v":0},null,{"$f":"H170/5*100","v":0},null,{"$f":"J170/5*100","v":0},null,{"$f":"L170/5*100","v":0},null,{"$f":"N170/5*100","v":0}]
["RATING SCALE"]
["0 = Student not capable of demonstrating skill or does not need skill"]
["1 = Student does not demonstrate skill but may/will learn skill"]
["2 = Student only demonstrates skill with verbal and/or physical prompting"]
["3 = Student sometimes demonstrates skill without verbal and/or physical prompting"]
["4 = Student demonstrates skill and verbal and/or physical prompting are rarely needed"]
["5 = Student has totally mastered skill and does not require verbal and/or physical prompting"]

{"sheet":"Atypical","index":12,"n_rows":98,"n_cols":16,"rows_kept":98,"cut":false,"hidden":false,"merged":[]}
["ATYPICAL O&M (1st Data Set--First 6 Columns On Front Page)",null,"Date",null,"Date",null,"Date",null,"Date",null,"Date",null,"Date",null,"notes","notes"]
[null,null,"Input\nData","Auto\nScore","Input\nData","Auto\nScore","Input\nData","Auto\nScore","Input\nData","Auto\nScore","Input\nData","Auto\nScore","Input\nData","Auto\nScore"]
["1. Fences",null,null,{"$f":"SUM(C4:C6)/(COUNTIF(C4:C6,\">0\")+0.00000001)","v":0},null,{"$f":"SUM(E4:E6)/(COUNTIF(E4:E6,\">0\")+0.00000001)","v":0},null,{"$f":"SUM(G4:G6)/(COUNTIF(G4:G6,\">0\")+0.00000001)","v":0},null,{"$f":"SUM(I4:I6)/(COUNTIF(I4:I6,\">0\")+0.00000001)","v":0},null,{"$f":"SUM(K4:K6)/(COUNTIF(K4:K6,\">0\")+0.00000001)","v":0},null,{"$f":"SUM(M4:M6)/(COUNTIF(M4:M6,\">0\")+0.00000001)","v":0}]
[null,"a. go around fence obstructing path"]
[null,"b. climb over short fence if too long to walk around"]
[null,"c. return to previous line of travel (L.O.T.)"]
["2. Fields (in urban settings)",null,null,{"$f":"SUM(C8:C10)/(COUNTIF(C8:C10,\">0\")+0.00000001)","v":0},null,{"$f":"SUM(E8:E10)/(COUNTIF(E8:E10,\">0\")+0.00000001)","v":0},null,{"$f":"SUM(G8:G10)/(COUNTIF(G8:G10,\">0\")+0.00000001)","v":0},null,{"$f":"SUM(I8:I10)/(COUNTIF(I8:I10,\">0\")+0.00000001)","v":0},null,{"$f":"SUM(K8:K10)/(COUNTIF(K8:K10,\">0\")+0.00000001)","v":0},null,{"$f":"SUM(M8:M10)/(COUNTIF(M8:M10,\">0\")+0.00000001)","v":0}]
[null,"a. detect lack of sidewalk along line of travel"]
[null,"b. identify (sound) clues that will assist in maintaining line of travel (e.g. distant traffic)"]
[null,"c. cross field while maintaining line of travel"]
[null,"d. use cane/protective techniques that allow safe passage through field"]
[null,"e. resume route after completing crossing of field"]
["3. Parks/Playgrounds",null,null,{"$f":"SUM(C14:C16)/(COUNTIF(C14:C16,\">0\")+0.00000001)","v":0},null,{"$f":"SUM(E14:E16)/(COUNTIF(E14:E16,\">0\")+0.00000001)","v":0},null,{"$f":"SUM(G14:G16)/(COUNTIF(G14:G16,\">0\")+0.00000001)","v":0},null,{"$f":"SUM(I14:I16)/(COUNTIF(I14:I16,\">0\")+0.00000001)","v":0},null,{"$f":"SUM(K14:K16)/(COUNTIF(K14:K16,\">0\")+0.00000001)","v":0},null,{"$f":"SUM(M14:M16)/(COUNTIF(M14:M16,\">0\")+0.00000001)","v":0}]
[null,"a. locate entrance to park/playground"]
[null,"b. define basic parameters of park/playground (walk perimeter, apply grid system, etc)"]
[null,"c. establish Point Of Reference (P.O.R.)"]
[null,"d. locate prominent features of park/playground (e.g. playground equipment, BBQ area)"]
[null,"e. use cane/protective techniques that allow safe passage through park/playground"]
[null,"f. maintain general overall orientation"]
[null,"g. locate exit to park/playground"]
["4. Ditches/Gullies/Arroyos/Embankments/Steep Park Trail (urban areas)",null,null,{"$f":"SUM(C22:C24)/(COUNTIF(C22:C24,\">0\")+0.00000001)","v":0},null,{"$f":"SUM(E22:E24)/(COUNTIF(E22:E24,\">0\")+0.00000001)","v":0},null,{"$f":"SUM(G22:G24)/(COUNTIF(G22:G24,\">0\")+0.00000001)","v":0},null,{"$f":"SUM(I22:I24)/(COUNTIF(I22:I24,\">0\")+0.00000001)","v":0},null,{"$f":"SUM(K22:K24)/(COUNTIF(K22:K24,\">0\")+0.00000001)","v":0},null,{"$f":"SUM(M22:M24)/(COUNTIF(M22:M24,\">0\")+0.00000001)","v":0}]
[null,"a. identify purpose of many ditches/gullies/arroyos in urban areas is for water run off; dangerous to cross due to flash flood possibility "]
[null,"b. maintain balance while descending embankment with slight backward lean; fall/sit back on butt if slip"]
[null,"c. maintain balance while ascending embankment with slight forward lean; fall forward if slip"]
[null,"d. identify potential dangerous objects common to ditches/gullies (e.g. broken bottles, thorny plants)"]
[null,"e. use improved crossing point if anywhere near line of travel"]
["5. Amusement Parks/Zoos",null,null,{"$f":"SUM(C28:C30)/(COUNTIF(C28:C30,\">0\")+0.00000001)","v":0},null,{"$f":"SUM(E28:E30)/(COUNTIF(E28:E30,\">0\")+0.00000001)","v":0},null,{"$f":"SUM(G28:G30)/(COUNTIF(G28:G30,\">0\")+0.00000001)","v":0},null,{"$f":"SUM(I28:I30)/(COUNTIF(I28:I30,\">0\")+0.00000001)","v":0},null,{"$f":"SUM(K28:K30)/(COUNTIF(K28:K30,\">0\")+0.00000001)","v":0},null,{"$f":"SUM(M28:M30)/(COUNTIF(M28:M30,\">0\")+0.00000001)","v":0}]
[null,"a. obtain information online about Park/Zoo  (e.g. cost, map, general layout, features)"]
[null,"b. locate entrance/booth to pay for tickets"]
[null,"c. establish Point Of Reference (P.O.R.)"]
[null,"d. maintain general orientation while in Park/Zoo"]
[null,"e. solicit assistance from friend or staff to help locate points of interest in the Park/Zoo"]
["6. Inclement Weather",null,null,{"$f":"SUM(C34:C36)/(COUNTIF(C34:C36,\">0\")+0.00000001)","v":0},null,{"$f":"SUM(E34:E36)/(COUNTIF(E34:E36,\">0\")+0.00000001)","v":0},null,{"$f":"SUM(G34:G36)/(COUNTIF(G34:G36,\">0\")+0.00000001)","v":0},null,{"$f":"SUM(I34:I36)/(COUNTIF(I34:I36,\">0\")+0.00000001)","v":0},null,{"$f":"SUM(K34:K36)/(COUNTIF(K34:K36,\">0\")+0.00000001)","v":0},null,{"$f":"SUM(M34:M36)/(COUNTIF(M34:M36,\">0\")+0.00000001)","v":0}]
[null,"a. identify effect rain has on ability to hear traffic accurately and that umbrellas can further hinder ability to hear environmental cues"]
[null,"b. locate puddles at intersections, reposition to cross if possible, traverse through puddle if not possible to reposition at intersection"]
[null,"c. identify effect snow/ice has on drivers' ability to control vehicles and increase time allowances for street crossings"]
[null,"d. locate sidewalks, curbs and obstacles through snow/ice on sidewalks, trail curbs along streets in absence of sidewalk"]
[null,"e. identify effect high wind has on ability to hear traffic accurately"]
[null,"f. maintain body alignment at street crossings even if facing into high wind (which could contain abrasive sand or even small rocks)"]
[null,"raw score for section",null,{"$f":"D3+D7+D13+D21+D27+D33","v":0},null,{"$f":"F3+F7+F13+F21+F27+F33","v":0},null,{"$f":"H3+H7+H13+H21+H27+H33","v":0},null,{"$f":"J3+J7+J13+J21+J27+J33","v":0},null,{"$f":"L3+L7+L13+L21+L27+L33","v":0},null,{"$f":"N3+N7+N13+N21+N27+N33","v":0}]
[null,"average score for section",null,{"$f":"D40/(COUNTIF(D2:D39,\">0\")+0.00000001)","v":0},null,{"$f":"F40/(COUNTIF(F2:F39,\">0\")+0.00000001)","v":0},null,{"$f":"H40/(COUNTIF(H2:H39,\">0\")+0.00000001)","v":0},null,{"$f":"J40/(COUNTIF(J2:J39,\">0\")+0.00000001)","v":0},null,{"$f":"L40/(COUNTIF(L2:L39,\">0\")+0.00000001)","v":0},null,{"$f":"N40/(COUNTIF(N2:N39,\">0\")+0.00000001)","v":0}]
[null,"percentage score for section",null,{"$f":"D41/5*100","v":0},null,{"$f":"F41/5*100","v":0},null,{"$f":"H41/5*100","v":0},null,{"$f":"J41/5*100","v":0},null,{"$f":"L41/5*100","v":0},null,{"$f":"N41/5*100","v":0}]
["RATING SCALE"]
["0 = Student not capable of demonstrating skill or does not need skill"]
["1 = Student does not demonstrate skill but may/will learn skill"]
["2 = Student only demonstrates skill with verbal and/or physical prompting"]
["3 = Student sometimes demonstrates skill without verbal and/or physical prompting"]
["4 = Student demonstrates skill and verbal and/or physical prompting are rarely needed"]
["5 = Student has totally mastered skill and does not require verbal and/or physical prompting"]
["ATYPICAL O&M (2nd Data Set--Last 6 Columns On Front Page)",null,"Date",null,"Date",null,"Date",null,"Date",null,"Date",null,"Date",null,"notes"]
[null,null,"Input\nData","Auto\nScore","Input\nData","Auto\nScore","Input\nData","Auto\nScore","Input\nData","Auto\nScore","Input\nData","Auto\nScore","Input\nData","Auto\nScore"]
["1. Fences",null,null,{"$f":"SUM(C53:C55)/(COUNTIF(C53:C55,\">0\")+0.00000001)","v":0},null,{"$f":"SUM(E53:E55)/(COUNTIF(E53:E55,\">0\")+0.00000001)","v":0},null,{"$f":"SUM(G53:G55)/(COUNTIF(G53:G55,\">0\")+0.00000001)","v":0},null,{"$f":"SUM(I53:I55)/(COUNTIF(I53:I55,\">0\")+0.00000001)","v":0},null,{"$f":"SUM(K53:K55)/(COUNTIF(K53:K55,\">0\")+0.00000001)","v":0},null,{"$f":"SUM(M53:M55)/(COUNTIF(M53:M55,\">0\")+0.00000001)","v":0}]
[null,"a. go around fence obstructing path"]
[null,"b. climb over short fence if too long to walk around"]
[null,"c. return to previous line of travel (L.O.T.)"]
["2. Fields (in urban settings)",null,null,{"$f":"SUM(C57:C59)/(COUNTIF(C57:C59,\">0\")+0.00000001)","v":0},null,{"$f":"SUM(E57:E59)/(COUNTIF(E57:E59,\">0\")+0.00000001)","v":0},null,{"$f":"SUM(G57:G59)/(COUNTIF(G57:G59,\">0\")+0.00000001)","v":0},null,{"$f":"SUM(I57:I59)/(COUNTIF(I57:I59,\">0\")+0.00000001)","v":0},null,{"$f":"SUM(K57:K59)/(COUNTIF(K57:K59,\">0\")+0.00000001)","v":0},null,{"$f":"SUM(M57:M59)/(COUNTIF(M57:M59,\">0\")+0.00000001)","v":0}]
[null,"a. detect lack of sidewalk along line of travel"]
[null,"b. identify (sound) clues that will assist in maintaining line of travel (e.g. distant traffic)"]
[null,"c. cross field while maintaining line of travel"]
[null,"d. use cane/protective techniques that allow safe passage through field"]
[null,"e. resume route after completing crossing of field"]
["3. Parks/Playgrounds",null,null,{"$f":"SUM(C63:C65)/(COUNTIF(C63:C65,\">0\")+0.00000001)","v":0},null,{"$f":"SUM(E63:E65)/(COUNTIF(E63:E65,\">0\")+0.00000001)","v":0},null,{"$f":"SUM(G63:G65)/(COUNTIF(G63:G65,\">0\")+0.00000001)","v":0},null,{"$f":"SUM(I63:I65)/(COUNTIF(I63:I65,\">0\")+0.00000001)","v":0},null,{"$f":"SUM(K63:K65)/(COUNTIF(K63:K65,\">0\")+0.00000001)","v":0},null,{"$f":"SUM(M63:M65)/(COUNTIF(M63:M65,\">0\")+0.00000001)","v":0}]
[null,"a. locate entrance to park/playground"]
[null,"b. define basic parameters of park/playground (walk perimeter, apply grid system, etc)"]
[null,"c. establish Point Of Reference (P.O.R.)"]
[null,"d. locate prominent features of park/playground (e.g. playground equipment, BBQ area)"]
[null,"e. use cane/protective techniques that allow safe passage through park/playground"]
[null,"f. maintain general overall orientation"]
[null,"g. locate exit to park/playground"]
["4. Ditches/Gullies/Arroyos/Embankments/Steep Park Trail (urban areas)",null,null,{"$f":"SUM(C71:C73)/(COUNTIF(C71:C73,\">0\")+0.00000001)","v":0},null,{"$f":"SUM(E71:E73)/(COUNTIF(E71:E73,\">0\")+0.00000001)","v":0},null,{"$f":"SUM(G71:G73)/(COUNTIF(G71:G73,\">0\")+0.00000001)","v":0},null,{"$f":"SUM(I71:I73)/(COUNTIF(I71:I73,\">0\")+0.00000001)","v":0},null,{"$f":"SUM(K71:K73)/(COUNTIF(K71:K73,\">0\")+0.00000001)","v":0},null,{"$f":"SUM(M71:M73)/(COUNTIF(M71:M73,\">0\")+0.00000001)","v":0}]
[null,"a. identify purpose of many ditches/gullies/arroyos in urban areas is for water run off; dangerous to cross due to flash flood possibility "]
[null,"b. maintain balance while descending embankment with slight backward lean; fall/sit back on butt if slip"]
[null,"c. maintain balance while ascending embankment with slight forward lean; fall forward if slip"]
[null,"d. identify potential dangerous objects common to ditches/gullies (e.g. broken bottles, thorny plants)"]
[null,"e. use improved crossing point if anywhere near line of travel"]
["5. Amusement Parks/Zoos",null,null,{"$f":"SUM(C77:C79)/(COUNTIF(C77:C79,\">0\")+0.00000001)","v":0},null,{"$f":"SUM(E77:E79)/(COUNTIF(E77:E79,\">0\")+0.00000001)","v":0},null,{"$f":"SUM(G77:G79)/(COUNTIF(G77:G79,\">0\")+0.00000001)","v":0},null,{"$f":"SUM(I77:I79)/(COUNTIF(I77:I79,\">0\")+0.00000001)","v":0},null,{"$f":"SUM(K77:K79)/(COUNTIF(K77:K79,\">0\")+0.00000001)","v":0},null,{"$f":"SUM(M77:M79)/(COUNTIF(M77:M79,\">0\")+0.00000001)","v":0}]
[null,"a. obtain information online about Park/Zoo  (e.g. cost, map, general layout, features)"]
[null,"b. locate entrance/booth to pay for tickets"]
[null,"c. establish Point Of Reference (P.O.R.)"]
[null,"d. maintain general orientation while in Park/Zoo"]
[null,"e. solicit assistance from friend or staff to help locate points of interest in the Park/Zoo"]
["6. Inclement Weather",null,null,{"$f":"SUM(C83:C85)/(COUNTIF(C83:C85,\">0\")+0.00000001)","v":0},null,{"$f":"SUM(E83:E85)/(COUNTIF(E83:E85,\">0\")+0.00000001)","v":0},null,{"$f":"SUM(G83:G85)/(COUNTIF(G83:G85,\">0\")+0.00000001)","v":0},null,{"$f":"SUM(I83:I85)/(COUNTIF(I83:I85,\">0\")+0.00000001)","v":0},null,{"$f":"SUM(K83:K85)/(COUNTIF(K83:K85,\">0\")+0.00000001)","v":0},null,{"$f":"SUM(M83:M85)/(COUNTIF(M83:M85,\">0\")+0.00000001)","v":0}]
[null,"a. identify effect rain has on ability to hear traffic accurately and that umbrellas can further hinder ability to hear environmental cues"]
[null,"b. locate puddles at intersections, reposition to cross if possible, traverse through puddle if not possible to reposition at intersection"]
[null,"c. identify effect snow/ice has on drivers' ability to control vehicles and increase time allowances for street crossings"]
[null,"d. locate sidewalks, curbs and obstacles through snow/ice on sidewalks, trail curbs along streets in absence of sidewalk"]
[null,"e. identify effect high wind has on ability to hear traffic accurately"]
[null,"f. maintain body alignment at street crossings even if facing into high wind (which could contain abrasive sand or even small rocks)"]
[null,"raw score for section",null,{"$f":"D52+D56+D62+D70+D76+D82","v":0},null,{"$f":"F52+F56+F62+F70+F76+F82","v":0},null,{"$f":"H52+H56+H62+H70+H76+H82","v":0},null,{"$f":"J52+J56+J62+J70+J76+J82","v":0},null,{"$f":"L52+L56+L62+L70+L76+L82","v":0},null,{"$f":"N52+N56+N62+N70+N76+N82","v":0}]
[null,"average score for section",null,{"$f":"D89/(COUNTIF(D51:D88,\">0\")+0.00000001)","v":0},null,{"$f":"F89/(COUNTIF(F51:F88,\">0\")+0.00000001)","v":0},null,{"$f":"H89/(COUNTIF(H51:H88,\">0\")+0.00000001)","v":0},null,{"$f":"J89/(COUNTIF(J51:J88,\">0\")+0.00000001)","v":0},null,{"$f":"L89/(COUNTIF(L51:L88,\">0\")+0.00000001)","v":0},null,{"$f":"N89/(COUNTIF(N51:N88,\">0\")+0.00000001)","v":0}]
[null,"percentage score for section",null,{"$f":"D90/5*100","v":0},null,{"$f":"F90/5*100","v":0},null,{"$f":"H90/5*100","v":0},null,{"$f":"J90/5*100","v":0},null,{"$f":"L90/5*100","v":0},null,{"$f":"N90/5*100","v":0}]
["RATING SCALE"]
["0 = Student not capable of demonstrating skill or does not need skill"]
["1 = Student does not demonstrate skill but may/will learn skill"]
["2 = Student only demonstrates skill with verbal and/or physical prompting"]
["3 = Student sometimes demonstrates skill without verbal and/or physical prompting"]
["4 = Student demonstrates skill and verbal and/or physical prompting are rarely needed"]
["5 = Student has totally mastered skill and does not require verbal and/or physical prompting"]

{"sheet":"Rural","index":13,"n_rows":86,"n_cols":14,"rows_kept":86,"cut":false,"hidden":false,"merged":[]}
["RURAL O&M (1st Data Set--First 6 Columns On Front Page)",null,"Date",null,"Date",null,"Date",null,"Date",null,"Date",null,"Date"]
[null,null,"Input\nData","Auto\nScore","Input\nData","Auto\nScore","Input\nData","Auto\nScore","Input\nData","Auto\nScore","Input\nData","Auto\nScore","Input\nData","Auto\nScore"]
["1. Understand Unique Dangers Related To Rural Travel",null,null,{"$f":"SUM(C4:C8)/(COUNTIF(C4:C8,\">0\")+0.00000001)","v":0},null,{"$f":"SUM(E4:E8)/(COUNTIF(E4:E8,\">0\")+0.00000001)","v":0},null,{"$f":"SUM(G4:G8)/(COUNTIF(G4:G8,\">0\")+0.00000001)","v":0},null,{"$f":"SUM(I4:I8)/(COUNTIF(I4:I8,\">0\")+0.00000001)","v":0},null,{"$f":"SUM(K4:K8)/(COUNTIF(K4:K8,\">0\")+0.00000001)","v":0},null,{"$f":"SUM(M4:M8)/(COUNTIF(M4:M8,\">0\")+0.00000001)","v":0}]
[null,"a. understand that drivers on rural roads often exceed speed limits and that drivers don't anticipate pedestrians in road"]
[null,"b. understand that rock/gravel can be sent airborne by vehicle prevalent in rural areas"]
[null,"c. understand that wildlife (e.g. snakes, wild dogs) is more"]
[null,"d. understand that fences often have rusted and have sharp projections"]
[null,"e. understand that ditches, gullies, and arroyos could indicate water run off and not be traversable in all weather conditions"]
["2. Walk along rural road",null,null,{"$f":"SUM(C10:C14)/(COUNTIF(C10:C14,\">0\")+0.00000001)","v":0},null,{"$f":"SUM(E10:E14)/(COUNTIF(E10:E14,\">0\")+0.00000001)","v":0},null,{"$f":"SUM(G10:G14)/(COUNTIF(G10:G14,\">0\")+0.00000001)","v":0},null,{"$f":"SUM(I10:I14)/(COUNTIF(I10:I14,\">0\")+0.00000001)","v":0},null,{"$f":"SUM(K10:K14)/(COUNTIF(K10:K14,\">0\")+0.00000001)","v":0},null,{"$f":"SUM(M10:M14)/(COUNTIF(M10:M14,\">0\")+0.00000001)","v":0}]
[null,"a. identify surface of road (paved, gravel, dirt), condition of the side of road (flat/rutted) and presence/absence of grass (mowed, tall) then choose where to walk (road/side of road)"]
[null,"b. keep to the edge of the road (in road or on side of road)"]
[null,"c. move as far off the road as safely possible when vehicle approaches"]
[null,"d. identify driveways and intersections"]
[null,"e. maintain orientation while on rural roads"]
["3. Ditches/Gullies/Arroyos/Embankments (rural areas)",null,null,{"$f":"SUM(C16:C21)/(COUNTIF(C16:C21,\">0\")+0.00000001)","v":0},null,{"$f":"SUM(E16:E21)/(COUNTIF(E16:E21,\">0\")+0.00000001)","v":0},null,{"$f":"SUM(G16:G21)/(COUNTIF(G16:G21,\">0\")+0.00000001)","v":0},null,{"$f":"SUM(I16:I21)/(COUNTIF(I16:I21,\">0\")+0.00000001)","v":0},null,{"$f":"SUM(K16:K21)/(COUNTIF(K16:K21,\">0\")+0.00000001)","v":0},null,{"$f":"SUM(M16:M21)/(COUNTIF(M16:M21,\">0\")+0.00000001)","v":0}]
[null,"a. identify purpose of many ditches/gullies/arroyos in rural areas is for water run off; dangerous to cross due to flash flood possibility "]
[null,"b. maintain balance while descending embankment with slight backward lean; fall/sit back on butt if slip"]
[null,"c. maintain balance while ascending embankment with slight forward lean; fall forward if slip"]
[null,"d. identify potential dangerous objects common to ditches/gullies (e.g. broken bottles, thorny plants)"]
[null,"e. use improved crossing point if anywhere near line of travel"]
[null,"f. understand no one can see a person in a deep ditch/gully/arroyo--can't flag someone down for assistance--and other pedestrians in many rural areas are extremely rare"]
["4. Identify, Traverse And/Or Go Around Items Found In Rural Areas",null,null,{"$f":"SUM(C23:C27)/(COUNTIF(C23:C27,\">0\")+0.00000001)","v":0},null,{"$f":"SUM(E23:E27)/(COUNTIF(E23:E27,\">0\")+0.00000001)","v":0},null,{"$f":"SUM(G23:G27)/(COUNTIF(G23:G27,\">0\")+0.00000001)","v":0},null,{"$f":"SUM(I23:I27)/(COUNTIF(I23:I27,\">0\")+0.00000001)","v":0},null,{"$f":"SUM(K23:K27)/(COUNTIF(K23:K27,\">0\")+0.00000001)","v":0},null,{"$f":"SUM(M23:M27)/(COUNTIF(M23:M27,\">0\")+0.00000001)","v":0}]
[null,"a. identify and traverse cattle guard"]
[null,"b. identify different types of fencing (wood, metal tube, wire)"]
[null,"c. Go around or over fencing as appropriate, using gate whenever possible"]
[null,"d. detect and go around rural road hardware like mailboxes"]
[null,"e. detect and go around vehicles/trailers parked on side of road, using protective technique if appropriate to shield face from tools overhanging edge of truck/trailer bed"]
["5. Rural Street Crossings",null,null,{"$f":"SUM(C29:C33)/(COUNTIF(C29:C33,\">0\")+0.00000001)","v":0},null,{"$f":"SUM(E29:E33)/(COUNTIF(E29:E33,\">0\")+0.00000001)","v":0},null,{"$f":"SUM(G29:G33)/(COUNTIF(G29:G33,\">0\")+0.00000001)","v":0},null,{"$f":"SUM(I29:I33)/(COUNTIF(I29:I33,\">0\")+0.00000001)","v":0},null,{"$f":"SUM(K29:K33)/(COUNTIF(K29:K33,\">0\")+0.00000001)","v":0},null,{"$f":"SUM(M29:M33)/(COUNTIF(M29:M33,\">0\")+0.00000001)","v":0}]
[null,"a. understand that most rural crossings will offer lulls"]
[null,"b. understand that rural traffic tends to move quickly"]
[null,"c. use clues unique to rural areas (e.g. openness, speed of vehicles, loud road surfaces) to assist in choosing crossing time"]
[null,"d. cross with a lull whenever possible"]
[null,"e. cross intersections as per 'Street Crossing' section based on intersection type when there is no lull  "]
[null,"raw score for section",null,{"$f":"D3+D9+D15+D22+D28","v":0},null,{"$f":"F3+F9+F15+F22+F28","v":0},null,{"$f":"H3+H9+H15+H22+H28","v":0},null,{"$f":"J3+J9+J15+J22+J28","v":0},null,{"$f":"L3+L9+L15+L22+L28","v":0},null,{"$f":"N3+N9+N15+N22+N28","v":0}]
[null,"average score for section",null,{"$f":"D34/(COUNTIF(D3:D28,\">0\")+0.00000001)","v":0},null,{"$f":"F34/(COUNTIF(F3:F28,\">0\")+0.00000001)","v":0},null,{"$f":"H34/(COUNTIF(H3:H28,\">0\")+0.00000001)","v":0},null,{"$f":"J34/(COUNTIF(J3:J28,\">0\")+0.00000001)","v":0},null,{"$f":"L34/(COUNTIF(L3:L28,\">0\")+0.00000001)","v":0},null,{"$f":"N34/(COUNTIF(N3:N28,\">0\")+0.00000001)","v":0}]
[null,"percentage score for section",null,{"$f":"D35/5*100","v":0},null,{"$f":"F35/5*100","v":0},null,{"$f":"H35/5*100","v":0},null,{"$f":"J35/5*100","v":0},null,{"$f":"L35/5*100","v":0},null,{"$f":"N35/5*100","v":0}]
["RATING SCALE"]
["0 = Student not capable of demonstrating skill or does not need skill"]
["1 = Student does not demonstrate skill but may/will learn skill"]
["2 = Student only demonstrates skill with verbal and/or physical prompting"]
["3 = Student sometimes demonstrates skill without verbal and/or physical prompting"]
["4 = Student demonstrates skill and verbal and/or physical prompting are rarely needed"]
["5 = Student has totally mastered skill and does not require verbal and/or physical prompting"]
["RURAL O&M (2nd Data Set--Last 6 Columns On Front Page)",null,"Date",null,"Date",null,"Date",null,"Date",null,"Date",null,"Date"]
[null,null,"Input\nData","Auto\nScore","Input\nData","Auto\nScore","Input\nData","Auto\nScore","Input\nData","Auto\nScore","Input\nData","Auto\nScore","Input\nData","Auto\nScore"]
["1. Understand Unique Dangers Related To Rural Travel",null,null,{"$f":"SUM(C47:C51)/(COUNTIF(C47:C51,\">0\")+0.00000001)","v":0},null,{"$f":"SUM(E47:E51)/(COUNTIF(E47:E51,\">0\")+0.00000001)","v":0},null,{"$f":"SUM(G47:G51)/(COUNTIF(G47:G51,\">0\")+0.00000001)","v":0},null,{"$f":"SUM(I47:I51)/(COUNTIF(I47:I51,\">0\")+0.00000001)","v":0},null,{"$f":"SUM(K47:K51)/(COUNTIF(K47:K51,\">0\")+0.00000001)","v":0},null,{"$f":"SUM(M47:M51)/(COUNTIF(M47:M51,\">0\")+0.00000001)","v":0}]
[null,"a. understand that drivers on rural roads often exceed speed limits and that drivers don't anticipate pedestrians in road"]
[null,"b. understand that rock/gravel can be sent airborne by vehicle prevalent in rural areas"]
[null,"c. understand that wildlife (e.g. snakes, wild dogs) is more"]
[null,"d. understand that fences often have rusted and have sharp projections"]
[null,"e. understand that ditches, gullies, and arroyos could indicate water run off and not be traversable in all weather conditions"]
["2. Walk along rural road",null,null,{"$f":"SUM(C53:C57)/(COUNTIF(C53:C57,\">0\")+0.00000001)","v":0},null,{"$f":"SUM(E53:E57)/(COUNTIF(E53:E57,\">0\")+0.00000001)","v":0},null,{"$f":"SUM(G53:G57)/(COUNTIF(G53:G57,\">0\")+0.00000001)","v":0},null,{"$f":"SUM(I53:I57)/(COUNTIF(I53:I57,\">0\")+0.00000001)","v":0},null,{"$f":"SUM(K53:K57)/(COUNTIF(K53:K57,\">0\")+0.00000001)","v":0},null,{"$f":"SUM(M53:M57)/(COUNTIF(M53:M57,\">0\")+0.00000001)","v":0}]
[null,"a. identify surface of road (paved, gravel, dirt), condition of the side of road (flat/rutted) and presence/absence of grass (mowed, tall) then choose where to walk (road/side of road)"]
[null,"b. keep to the edge of the road (in road or on side of road)"]
[null,"c. move as far off the road as safely possible when vehicle approaches"]
[null,"d. identify driveways and intersections"]
[null,"e. maintain orientation while on rural roads"]
["3. Ditches/Gullies/Arroyos/Embankments (rural areas)",null,null,{"$f":"SUM(C59:C64)/(COUNTIF(C59:C64,\">0\")+0.00000001)","v":0},null,{"$f":"SUM(E59:E64)/(COUNTIF(E59:E64,\">0\")+0.00000001)","v":0},null,{"$f":"SUM(G59:G64)/(COUNTIF(G59:G64,\">0\")+0.00000001)","v":0},null,{"$f":"SUM(I59:I64)/(COUNTIF(I59:I64,\">0\")+0.00000001)","v":0},null,{"$f":"SUM(K59:K64)/(COUNTIF(K59:K64,\">0\")+0.00000001)","v":0},null,{"$f":"SUM(M59:M64)/(COUNTIF(M59:M64,\">0\")+0.00000001)","v":0}]
[null,"a. identify purpose of many ditches/gullies/arroyos in rural areas is for water run off; dangerous to cross due to flash flood possibility "]
[null,"b. maintain balance while descending embankment with slight backward lean; fall/sit back on butt if slip"]
[null,"c. maintain balance while ascending embankment with slight forward lean; fall forward if slip"]
[null,"d. identify potential dangerous objects common to ditches/gullies (e.g. broken bottles, thorny plants)"]
[null,"e. use improved crossing point if anywhere near line of travel"]
[null,"f. understand no one can see a person in a deep ditch/gully/arroyo--can't flag someone down for assistance--and other pedestrians in many rural areas are extremely rare"]
["4. Identify, Traverse And/Or Go Around Items Found In Rural Areas",null,null,{"$f":"SUM(C66:C70)/(COUNTIF(C66:C70,\">0\")+0.00000001)","v":0},null,{"$f":"SUM(E66:E70)/(COUNTIF(E66:E70,\">0\")+0.00000001)","v":0},null,{"$f":"SUM(G66:G70)/(COUNTIF(G66:G70,\">0\")+0.00000001)","v":0},null,{"$f":"SUM(I66:I70)/(COUNTIF(I66:I70,\">0\")+0.00000001)","v":0},null,{"$f":"SUM(K66:K70)/(COUNTIF(K66:K70,\">0\")+0.00000001)","v":0},null,{"$f":"SUM(M66:M70)/(COUNTIF(M66:M70,\">0\")+0.00000001)","v":0}]
[null,"a. identify and traverse cattle guard"]
[null,"b. identify different types of fencing (wood, metal tube, wire)"]
[null,"c. Go around or over fencing as appropriate, using gate whenever possible"]
[null,"d. detect and go around rural road hardware like mailboxes"]
[null,"e. detect and go around vehicles/trailers parked on side of road, using protective technique if appropriate to shield face from tools overhanging edge of truck/trailer bed"]
["5. Rural Street Crossings",null,null,{"$f":"SUM(C72:C76)/(COUNTIF(C72:C76,\">0\")+0.00000001)","v":0},null,{"$f":"SUM(E72:E76)/(COUNTIF(E72:E76,\">0\")+0.00000001)","v":0},null,{"$f":"SUM(G72:G76)/(COUNTIF(G72:G76,\">0\")+0.00000001)","v":0},null,{"$f":"SUM(I72:I76)/(COUNTIF(I72:I76,\">0\")+0.00000001)","v":0},null,{"$f":"SUM(K72:K76)/(COUNTIF(K72:K76,\">0\")+0.00000001)","v":0},null,{"$f":"SUM(M72:M76)/(COUNTIF(M72:M76,\">0\")+0.00000001)","v":0}]
[null,"a. understand that most rural crossings will offer lulls"]
[null,"b. understand that rural traffic tends to move quickly"]
[null,"c. use clues unique to rural areas (e.g. openness, speed of vehicles, loud road surfaces) to assist in choosing crossing time"]
[null,"d. cross with a lull whenever possible"]
[null,"e. cross intersections as per 'Street Crossing' section based on intersection type when there is no lull  "]
[null,"raw score for section",null,{"$f":"D46+D52+D58+D65+D71","v":0},null,{"$f":"F46+F52+F58+F65+F71","v":0},null,{"$f":"H46+H52+H58+H65+H71","v":0},null,{"$f":"J46+J52+J58+J65+J71","v":0},null,{"$f":"L46+L52+L58+L65+L71","v":0},null,{"$f":"N46+N52+N58+N65+N71","v":0}]
[null,"average score for section",null,{"$f":"D77/(COUNTIF(D46:D71,\">0\")+0.00000001)","v":0},null,{"$f":"F77/(COUNTIF(F46:F71,\">0\")+0.00000001)","v":0},null,{"$f":"H77/(COUNTIF(H46:H71,\">0\")+0.00000001)","v":0},null,{"$f":"J77/(COUNTIF(J46:J71,\">0\")+0.00000001)","v":0},null,{"$f":"L77/(COUNTIF(L46:L71,\">0\")+0.00000001)","v":0},null,{"$f":"N77/(COUNTIF(N46:N71,\">0\")+0.00000001)","v":0}]
[null,"percentage score for section",null,{"$f":"D78/5*100","v":0},null,{"$f":"F78/5*100","v":0},null,{"$f":"H78/5*100","v":0},null,{"$f":"J78/5*100","v":0},null,{"$f":"L78/5*100","v":0},null,{"$f":"N78/5*100","v":0}]
["RATING SCALE"]
["0 = Student not capable of demonstrating skill or does not need skill"]
["1 = Student does not demonstrate skill but may/will learn skill"]
["2 = Student only demonstrates skill with verbal and/or physical prompting"]
["3 = Student sometimes demonstrates skill without verbal and/or physical prompting"]
["4 = Student demonstrates skill and verbal and/or physical prompting are rarely needed"]
["5 = Student has totally mastered skill and does not require verbal and/or physical prompting"]

{"sheet":"Vis Spec","index":14,"n_rows":90,"n_cols":15,"rows_kept":90,"cut":false,"hidden":false,"merged":[]}
["VISION SPECIFIC SKILLS (First 6 Columns On Front Page)",null,"Date",null,"Date",null,"Date",null,"Date",null,"Date",null,"Date",null,"notes"]
[null,null,"Input\nData","Auto\nScore","Input\nData","Auto\nScore","Input\nData","Auto\nScore","Input\nData","Auto\nScore","Input\nData","Auto\nScore","Input\nData","Auto\nScore"]
["1. Scanning Materials",null,null,{"$f":"SUM(C4:C9)/(COUNTIF(C4:C9,\">0\")+0.00000001)","v":0},null,{"$f":"SUM(E4:E9)/(COUNTIF(E4:E9,\">0\")+0.00000001)","v":0},null,{"$f":"SUM(G4:G9)/(COUNTIF(G4:G9,\">0\")+0.00000001)","v":0},null,{"$f":"SUM(I4:I9)/(COUNTIF(I4:I9,\">0\")+0.00000001)","v":0},null,{"$f":"SUM(K4:K9)/(COUNTIF(K4:K9,\">0\")+0.00000001)","v":0},null,{"$f":"SUM(M4:M9)/(COUNTIF(M4:M9,\">0\")+0.00000001)","v":0}]
[null,"a. scan uncluttered picture for specific item(s)"]
[null,"b. scan cluttered picture for specific item(s)"]
[null,"c. scan uncluttered map for specific street/item"]
[null,"d. scan cluttered map for specific street/item"]
[null,"e. use standard city map to locate streets/areas of interest"]
[null,"f. use internet map to locate streets/areas of interest"]
["2. Scanning Environment",null,null,{"$f":"SUM(C11:C16)/(COUNTIF(C11:C16,\">0\")+0.00000001)","v":0},null,{"$f":"SUM(E11:E16)/(COUNTIF(E11:E16,\">0\")+0.00000001)","v":0},null,{"$f":"SUM(G11:G16)/(COUNTIF(G11:G16,\">0\")+0.00000001)","v":0},null,{"$f":"SUM(I11:I16)/(COUNTIF(I11:I16,\">0\")+0.00000001)","v":0},null,{"$f":"SUM(K11:K16)/(COUNTIF(K11:K16,\">0\")+0.00000001)","v":0},null,{"$f":"SUM(M11:M16)/(COUNTIF(M11:M16,\">0\")+0.00000001)","v":0}]
[null,"a. scan area to be traveled for obstacles on ground"]
[null,"b. scan area to be traveled for low hanging obstacles"]
[null,"c. scan house/building/mailbox/curb for address"]
[null,"d. scan intersection for traffic control/street signs"]
[null,"e. scan streets at intersection for approaching vehicles"]
[null,"f. scan business names for places of interest"]
["3. Hand Held Magnifiers, Screen Enlargers, CCTVs",null,null,{"$f":"SUM(C18:C20)/(COUNTIF(C18:C20,\">0\")+0.00000001)","v":0},null,{"$f":"SUM(E18:E20)/(COUNTIF(E18:E20,\">0\")+0.00000001)","v":0},null,{"$f":"SUM(G18:G20)/(COUNTIF(G18:G20,\">0\")+0.00000001)","v":0},null,{"$f":"SUM(I18:I20)/(COUNTIF(I18:I20,\">0\")+0.00000001)","v":0},null,{"$f":"SUM(K18:K20)/(COUNTIF(K18:K20,\">0\")+0.00000001)","v":0},null,{"$f":"SUM(M18:M20)/(COUNTIF(M18:M20,\">0\")+0.00000001)","v":0}]
[null,"a. use hand held magnifier to locate specific street on standard city map"]
[null,"b. use CCTV to locate specific street on standard city map"]
[null,"c. use screen enlargement software to locate streets on internet map and print copy of map when appropriate"]
["4. Monoculars",null,null,{"$f":"SUM(C22:C26)/(COUNTIF(C22:C26,\">0\")+0.00000001)","v":0},null,{"$f":"SUM(E22:E26)/(COUNTIF(E22:E26,\">0\")+0.00000001)","v":0},null,{"$f":"SUM(G22:G26)/(COUNTIF(G22:G26,\">0\")+0.00000001)","v":0},null,{"$f":"SUM(I22:I26)/(COUNTIF(I22:I26,\">0\")+0.00000001)","v":0},null,{"$f":"SUM(K22:K26)/(COUNTIF(K22:K26,\">0\")+0.00000001)","v":0},null,{"$f":"SUM(M22:M26)/(COUNTIF(M22:M26,\">0\")+0.00000001)","v":0}]
[null,"a. hold monocular steady, using cane as monopod if needed"]
[null,"b. focus monocular to bring item into focus"]
[null,"c. scan building for address/name with monocular"]
[null,"d. use monocular to read street signs/signs in stores"]
[null,"e. use monocular to spot pedestrian signal at intersection"]
["5. Visual Traveler",null,null,{"$f":"SUM(C28:C35)/(COUNTIF(C28:C35,\">0\")+0.00000001)","v":0},null,{"$f":"SUM(E28:E35)/(COUNTIF(E28:E35,\">0\")+0.00000001)","v":0},null,{"$f":"SUM(G28:G35)/(COUNTIF(G28:G35,\">0\")+0.00000001)","v":0},null,{"$f":"SUM(I28:I35)/(COUNTIF(I28:I35,\">0\")+0.00000001)","v":0},null,{"$f":"SUM(K28:K35)/(COUNTIF(K28:K35,\">0\")+0.00000001)","v":0},null,{"$f":"SUM(M28:M35)/(COUNTIF(M28:M35,\">0\")+0.00000001)","v":0}]
[null,"a. visually detect all changes in terrain in all lighting conditions"]
[null,"b. visually detect all curbs/drop offs in all lighting conditions"]
[null,"c. visually detect all obstacles in L.O.T. in all lighting conditions"]
[null,"d. visually detect all hanging obstacles in all lighting conditions"]
[null,"e. visually detect all ramps/blended curbs in all lighting conditions"]
[null,"f. visually detect and interpret all traffic control signals"]
[null,"g. visually detect all vehicles approaching intersection far enough away to allow for safe crossing in all lighting conditions"]
[null,"h. cross without veering in all lighting conditions"]
[null,"raw score for section",null,{"$f":"D3+D10+D17+D21+D27","v":0},null,{"$f":"F3+F10+F17+F21+F27","v":0},null,{"$f":"H3+H10+H17+H21+H27","v":0},null,{"$f":"J3+J10+J17+J21+J27","v":0},null,{"$f":"L3+L10+L17+L21+L27","v":0},null,{"$f":"N3+N10+N17+N21+N27","v":0}]
[null,"average score for section",null,{"$f":"D36/(COUNTIF(D3:D27,\">0\")+0.00000001)","v":0},null,{"$f":"F36/(COUNTIF(F3:F27,\">0\")+0.00000001)","v":0},null,{"$f":"H36/(COUNTIF(H3:H27,\">0\")+0.00000001)","v":0},null,{"$f":"J36/(COUNTIF(J3:J27,\">0\")+0.00000001)","v":0},null,{"$f":"L36/(COUNTIF(L3:L27,\">0\")+0.00000001)","v":0},null,{"$f":"N36/(COUNTIF(N3:N27,\">0\")+0.00000001)","v":0}]
[null,"percentage score for section",null,{"$f":"D37/5*100","v":0},null,{"$f":"F37/5*100","v":0},null,{"$f":"H37/5*100","v":0},null,{"$f":"J37/5*100","v":0},null,{"$f":"L37/5*100","v":0},null,{"$f":"N37/5*100","v":0}]
["RATING SCALE"]
["0 = Student not capable of demonstrating skill or does not need skill"]
["1 = Student does not demonstrate skill but may/will learn skill"]
["2 = Student only demonstrates skill with verbal and/or physical prompting"]
["3 = Student sometimes demonstrates skill without verbal and/or physical prompting"]
["4 = Student demonstrates skill and verbal and/or physical prompting are rarely needed"]
["5 = Student has totally mastered skill and does not require verbal and/or physical prompting"]
["VISION SPECIFIC SKILLS (Last 6 Columns On Front Page)",null,"Date",null,"Date",null,"Date",null,"Date",null,"Date",null,"Date",null,"notes"]
[null,null,"Input\nData","Auto\nScore","Input\nData","Auto\nScore","Input\nData","Auto\nScore","Input\nData","Auto\nScore","Input\nData","Auto\nScore","Input\nData","Auto\nScore"]
["1. Scanning Materials",null,null,{"$f":"SUM(C49:C54)/(COUNTIF(C49:C54,\">0\")+0.00000001)","v":0},null,{"$f":"SUM(E49:E54)/(COUNTIF(E49:E54,\">0\")+0.00000001)","v":0},null,{"$f":"SUM(G49:G54)/(COUNTIF(G49:G54,\">0\")+0.00000001)","v":0},null,{"$f":"SUM(I49:I54)/(COUNTIF(I49:I54,\">0\")+0.00000001)","v":0},null,{"$f":"SUM(K49:K54)/(COUNTIF(K49:K54,\">0\")+0.00000001)","v":0},null,{"$f":"SUM(M49:M54)/(COUNTIF(M49:M54,\">0\")+0.00000001)","v":0}]
[null,"a. scan uncluttered picture for specific item(s)"]
[null,"b. scan cluttered picture for specific item(s)"]
[null,"c. scan uncluttered map for specific street/item"]
[null,"d. scan cluttered map for specific street/item"]
[null,"e. use standard city map to locate streets/areas of interest"]
[null,"f. use internet map to locate streets/areas of interest"]
["2. Scanning Environment",null,null,{"$f":"SUM(C56:C61)/(COUNTIF(C56:C61,\">0\")+0.00000001)","v":0},null,{"$f":"SUM(E56:E61)/(COUNTIF(E56:E61,\">0\")+0.00000001)","v":0},null,{"$f":"SUM(G56:G61)/(COUNTIF(G56:G61,\">0\")+0.00000001)","v":0},null,{"$f":"SUM(I56:I61)/(COUNTIF(I56:I61,\">0\")+0.00000001)","v":0},null,{"$f":"SUM(K56:K61)/(COUNTIF(K56:K61,\">0\")+0.00000001)","v":0},null,{"$f":"SUM(M56:M61)/(COUNTIF(M56:M61,\">0\")+0.00000001)","v":0}]
[null,"a. scan area to be traveled for obstacles on ground"]
[null,"b. scan area to be traveled for low hanging obstacles"]
[null,"c. scan house/building/mailbox/curb for address"]
[null,"d. scan intersection for traffic control/street signs"]
[null,"e. scan streets at intersection for approaching vehicles"]
[null,"f. scan business names for places of interest"]
["3. Hand Held Magnifiers, Screen Enlargers, CCTVs",null,null,{"$f":"SUM(C63:C65)/(COUNTIF(C63:C65,\">0\")+0.00000001)","v":0},null,{"$f":"SUM(E63:E65)/(COUNTIF(E63:E65,\">0\")+0.00000001)","v":0},null,{"$f":"SUM(G63:G65)/(COUNTIF(G63:G65,\">0\")+0.00000001)","v":0},null,{"$f":"SUM(I63:I65)/(COUNTIF(I63:I65,\">0\")+0.00000001)","v":0},null,{"$f":"SUM(K63:K65)/(COUNTIF(K63:K65,\">0\")+0.00000001)","v":0},null,{"$f":"SUM(M63:M65)/(COUNTIF(M63:M65,\">0\")+0.00000001)","v":0}]
[null,"a. use hand held magnifier to locate specific street on standard city map"]
[null,"b. use CCTV to locate specific street on standard city map"]
[null,"c. use screen enlargement software to locate streets on internet map and print copy of map when appropriate"]
["4. Monoculars",null,null,{"$f":"SUM(C67:C71)/(COUNTIF(C67:C71,\">0\")+0.00000001)","v":0},null,{"$f":"SUM(E67:E71)/(COUNTIF(E67:E71,\">0\")+0.00000001)","v":0},null,{"$f":"SUM(G67:G71)/(COUNTIF(G67:G71,\">0\")+0.00000001)","v":0},null,{"$f":"SUM(I67:I71)/(COUNTIF(I67:I71,\">0\")+0.00000001)","v":0},null,{"$f":"SUM(K67:K71)/(COUNTIF(K67:K71,\">0\")+0.00000001)","v":0},null,{"$f":"SUM(M67:M71)/(COUNTIF(M67:M71,\">0\")+0.00000001)","v":0}]
[null,"a. hold monocular steady, using cane as monopod if needed"]
[null,"b. focus monocular to bring item into focus"]
[null,"c. scan building for address/name with monocular"]
[null,"d. use monocular to read street signs/signs in stores"]
[null,"e. use monocular to spot pedestrian signal at intersection"]
["5. Visual Traveler",null,null,{"$f":"SUM(C73:C80)/(COUNTIF(C73:C80,\">0\")+0.00000001)","v":0},null,{"$f":"SUM(E73:E80)/(COUNTIF(E73:E80,\">0\")+0.00000001)","v":0},null,{"$f":"SUM(G73:G80)/(COUNTIF(G73:G80,\">0\")+0.00000001)","v":0},null,{"$f":"SUM(I73:I80)/(COUNTIF(I73:I80,\">0\")+0.00000001)","v":0},null,{"$f":"SUM(K73:K80)/(COUNTIF(K73:K80,\">0\")+0.00000001)","v":0},null,{"$f":"SUM(M73:M80)/(COUNTIF(M73:M80,\">0\")+0.00000001)","v":0}]
[null,"a. visually detect all changes in terrain in all lighting conditions"]
[null,"b. visually detect all curbs/drop offs in all lighting conditions"]
[null,"c. visually detect all obstacles in L.O.T. in all lighting conditions"]
[null,"d. visually detect all hanging obstacles in all lighting conditions"]
[null,"e. visually detect all ramps/blended curbs in all lighting conditions"]
[null,"f. visually detect and interpret all traffic control signals"]
[null,"g. visually detect all vehicles approaching intersection far enough away to allow for safe crossing in all lighting conditions"]
[null,"h. cross without veering in all lighting conditions"]
[null,"raw score for section",null,{"$f":"D48+D55+D62+D66+D72","v":0},null,{"$f":"F48+F55+F62+F66+F72","v":0},null,{"$f":"H48+H55+H62+H66+H72","v":0},null,{"$f":"J48+J55+J62+J66+J72","v":0},null,{"$f":"L48+L55+L62+L66+L72","v":0},null,{"$f":"N48+N55+N62+N66+N72","v":0}]
[null,"average score for section",null,{"$f":"D81/(COUNTIF(D48:D72,\">0\")+0.00000001)","v":0},null,{"$f":"F81/(COUNTIF(F48:F72,\">0\")+0.00000001)","v":0},null,{"$f":"H81/(COUNTIF(H48:H72,\">0\")+0.00000001)","v":0},null,{"$f":"J81/(COUNTIF(J48:J72,\">0\")+0.00000001)","v":0},null,{"$f":"L81/(COUNTIF(L48:L72,\">0\")+0.00000001)","v":0},null,{"$f":"N81/(COUNTIF(N48:N72,\">0\")+0.00000001)","v":0}]
[null,"percentage score for section",null,{"$f":"D82/5*100","v":0},null,{"$f":"F82/5*100","v":0},null,{"$f":"H82/5*100","v":0},null,{"$f":"J82/5*100","v":0},null,{"$f":"L82/5*100","v":0},null,{"$f":"N82/5*100","v":0}]
["RATING SCALE"]
["0 = Student not capable of demonstrating skill or does not need skill"]
["1 = Student does not demonstrate skill but may/will learn skill"]
["2 = Student only demonstrates skill with verbal and/or physical prompting"]
["3 = Student sometimes demonstrates skill without verbal and/or physical prompting"]
["4 = Student demonstrates skill and verbal and/or physical prompting are rarely needed"]
["5 = Student has totally mastered skill and does not require verbal and/or physical prompting"]

{"sheet":"Commun","index":15,"n_rows":112,"n_cols":15,"rows_kept":112,"cut":false,"hidden":false,"merged":[]}
["COMMUNITY SKILLS (1st Data Set--First 6 Columns On Front Page)",null,"Date",null,"Date",null,"Date",null,"Date",null,"Date",null,"Date",null,"notes"]
[null,null,"Input\nData","Auto\nScore","Input\nData","Auto\nScore","Input\nData","Auto\nScore","Input\nData","Auto\nScore","Input\nData","Auto\nScore","Input\nData","Auto\nScore"]
["1. Comparison Shopping From Home",null,null,{"$f":"SUM(C4:C6)/(COUNTIF(C4:C6,\">0\")+0.00000001)","v":0},null,{"$f":"SUM(E4:E6)/(COUNTIF(E4:E6,\">0\")+0.00000001)","v":0},null,{"$f":"SUM(G4:G6)/(COUNTIF(G4:G6,\">0\")+0.00000001)","v":0},null,{"$f":"SUM(I4:I6)/(COUNTIF(I4:I6,\">0\")+0.00000001)","v":0},null,{"$f":"SUM(K4:K6)/(COUNTIF(K4:K6,\">0\")+0.00000001)","v":0},null,{"$f":"SUM(M4:M6)/(COUNTIF(M4:M6,\">0\")+0.00000001)","v":0}]
[null,"a. identify retailers with item of interest"]
[null,"b. call local retailers to get info/prices, availability"]
[null,"c. check online retailers to get info/prices/shipping costs"]
["2. Stores",null,null,{"$f":"SUM(C8:C18)/(COUNTIF(C8:C18,\">0\")+0.00000001)","v":0},null,{"$f":"SUM(E8:E18)/(COUNTIF(E8:E18,\">0\")+0.00000001)","v":0},null,{"$f":"SUM(G8:G18)/(COUNTIF(G8:G18,\">0\")+0.00000001)","v":0},null,{"$f":"SUM(I8:I18)/(COUNTIF(I8:I18,\">0\")+0.00000001)","v":0},null,{"$f":"SUM(K8:K18)/(COUNTIF(K8:K18,\">0\")+0.00000001)","v":0},null,{"$f":"SUM(M8:M18)/(COUNTIF(M8:M18,\">0\")+0.00000001)","v":0}]
[null,"a. identify way to get to store and way to get back with needs of merchandise in mind (e.g. can't bring couch home in taxi, ice cream will melt on the bus)"]
[null,"b. locate entrance to store"]
[null,"c. locate store employee if assistance is needed to find items"]
[null,"d. if needed, hold onto back of cart to keep from being run into display stands or other customers by store employee"]
[null,"e. ensure all items are those that are sought--check packages"]
[null,"f. get pricing information when selecting items"]
[null,"g. place items on counter/conveyor "]
[null,"h. pay for items (cash, credit, debit)"]
[null,"i. locate exit (with employee assistance if needed)"]
[null,"j. locate transportation (e.g. bus stop, taxi, friend's car)"]
[null,"k. navigate parking lot by staying close to line of parked cars"]
["3. Fast Food Restaurants",null,null,{"$f":"SUM(C20:C29)/(COUNTIF(C20:C29,\">0\")+0.00000001)","v":0},null,{"$f":"SUM(E20:E29)/(COUNTIF(E20:E29,\">0\")+0.00000001)","v":0},null,{"$f":"SUM(G20:G29)/(COUNTIF(G20:G29,\">0\")+0.00000001)","v":0},null,{"$f":"SUM(I20:I29)/(COUNTIF(I20:I29,\">0\")+0.00000001)","v":0},null,{"$f":"SUM(K20:K29)/(COUNTIF(K20:K29,\">0\")+0.00000001)","v":0},null,{"$f":"SUM(M20:M29)/(COUNTIF(M20:M29,\">0\")+0.00000001)","v":0}]
[null,"a. locate entrance"]
[null,"b. locate counter area, use as Point Of Reference (P.O.R.)"]
[null,"c. find the back of the line"]
[null,"d. move up in line when appropriate "]
[null,"e. access menu (with low vision device or solicit assistance)"]
[null,"f. order and pay for meal"]
[null,"g. move to side to await meal (usually by order number)"]
[null,"h. take tray and keep it level, locate unoccupied table"]
[null,"i. locate trash, empty tray (most restaurants)"]
[null,"j. locate exit"]
["4. Cafeteria Restaurants",null,null,{"$f":"SUM(C31:C40)/(COUNTIF(C31:C40,\">0\")+0.00000001)","v":0},null,{"$f":"SUM(E31:E40)/(COUNTIF(E31:E40,\">0\")+0.00000001)","v":0},null,{"$f":"SUM(G31:G40)/(COUNTIF(G31:G40,\">0\")+0.00000001)","v":0},null,{"$f":"SUM(I31:I40)/(COUNTIF(I31:I40,\">0\")+0.00000001)","v":0},null,{"$f":"SUM(K31:K40)/(COUNTIF(K31:K40,\">0\")+0.00000001)","v":0},null,{"$f":"SUM(M31:M40)/(COUNTIF(M31:M40,\">0\")+0.00000001)","v":0}]
[null,"a. locate entrance"]
[null,"b. locate counter area"]
[null,"c. pay for meal"]
[null,"d. navigate maze to reach buffet area"]
[null,"e. locate table with assistance of wait staff (many buffets)"]
[null,"f. locate buffet, use as Point Of Reference"]
[null,"g. locate items on buffet with assistance of wait staff or friend"]
[null,"h. keep plate level and return to table"]
[null,"i. eat meal, leave dishes and tip"]
[null,"j. locate exit"]
["5. Sit Down Restaurants",null,null,{"$f":"SUM(C42:C46)/(COUNTIF(C42:C46,\">0\")+0.00000001)","v":0},null,{"$f":"SUM(E42:E46)/(COUNTIF(E42:E46,\">0\")+0.00000001)","v":0},null,{"$f":"SUM(G42:G46)/(COUNTIF(G42:G46,\">0\")+0.00000001)","v":0},null,{"$f":"SUM(I42:I46)/(COUNTIF(I42:I46,\">0\")+0.00000001)","v":0},null,{"$f":"SUM(K42:K46)/(COUNTIF(K42:K46,\">0\")+0.00000001)","v":0},null,{"$f":"SUM(M42:M46)/(COUNTIF(M42:M46,\">0\")+0.00000001)","v":0}]
[null,"a. locate entrance"]
[null,"b. follow wait staff to table, use as P.O.R."]
[null,"c. access menu (with low vision device or solicit assistance)"]
[null,"d. pay check at table or counter at exit"]
[null,"e. locate exit"]
[null,"raw score for section",null,{"$f":"D3+D7+D19+D30+D41","v":0},null,{"$f":"F3+F7+F19+F30+F41","v":0},null,{"$f":"H3+H7+H19+H30+H41","v":0},null,{"$f":"J3+J7+J19+J30+J41","v":0},null,{"$f":"L3+L7+L19+L30+L41","v":0},null,{"$f":"N3+N7+N19+N30+N41","v":0}]
[null,"average score for section",null,{"$f":"D47/(COUNTIF(D3:D42,\">0\")+0.00000001)","v":0},null,{"$f":"F47/(COUNTIF(F3:F42,\">0\")+0.00000001)","v":0},null,{"$f":"H47/(COUNTIF(H3:H42,\">0\")+0.00000001)","v":0},null,{"$f":"J47/(COUNTIF(J3:J42,\">0\")+0.00000001)","v":0},null,{"$f":"L47/(COUNTIF(L3:L42,\">0\")+0.00000001)","v":0},null,{"$f":"N47/(COUNTIF(N3:N42,\">0\")+0.00000001)","v":0}]
[null,"percentage score for section",null,{"$f":"D48/5*100","v":0},null,{"$f":"F48/5*100","v":0},null,{"$f":"H48/5*100","v":0},null,{"$f":"J48/5*100","v":0},null,{"$f":"L48/5*100","v":0},null,{"$f":"N48/5*100","v":0}]
["RATING SCALE"]
["0 = Student not capable of demonstrating skill or does not need skill"]
["1 = Student does not demonstrate skill but may/will learn skill"]
["2 = Student only demonstrates skill with verbal and/or physical prompting"]
["3 = Student sometimes demonstrates skill without verbal and/or physical prompting"]
["4 = Student demonstrates skill and verbal and/or physical prompting are rarely needed"]
["5 = Student has totally mastered skill and does not require verbal and/or physical prompting"]
["COMMUNITY SKILLS (2nd Data Set--Last 6 Columns On Front Page)",null,"Date",null,"Date",null,"Date",null,"Date",null,"Date",null,"Date",null,"notes"]
[null,null,"Input\nData","Auto\nScore","Input\nData","Auto\nScore","Input\nData","Auto\nScore","Input\nData","Auto\nScore","Input\nData","Auto\nScore","Input\nData","Auto\nScore"]
["1. Comparison Shopping From Home",null,null,{"$f":"SUM(C60:C62)/(COUNTIF(C60:C62,\">0\")+0.00000001)","v":0},null,{"$f":"SUM(E60:E62)/(COUNTIF(E60:E62,\">0\")+0.00000001)","v":0},null,{"$f":"SUM(G60:G62)/(COUNTIF(G60:G62,\">0\")+0.00000001)","v":0},null,{"$f":"SUM(I60:I62)/(COUNTIF(I60:I62,\">0\")+0.00000001)","v":0},null,{"$f":"SUM(K60:K62)/(COUNTIF(K60:K62,\">0\")+0.00000001)","v":0},null,{"$f":"SUM(M60:M62)/(COUNTIF(M60:M62,\">0\")+0.00000001)","v":0}]
[null,"a. identify retailers with item of interest"]
[null,"b. call local retailers to get info/prices, availability"]
[null,"c. check online retailers to get info/prices/shipping costs"]
["2. Stores",null,null,{"$f":"SUM(C64:C74)/(COUNTIF(C64:C74,\">0\")+0.00000001)","v":0},null,{"$f":"SUM(E64:E74)/(COUNTIF(E64:E74,\">0\")+0.00000001)","v":0},null,{"$f":"SUM(G64:G74)/(COUNTIF(G64:G74,\">0\")+0.00000001)","v":0},null,{"$f":"SUM(I64:I74)/(COUNTIF(I64:I74,\">0\")+0.00000001)","v":0},null,{"$f":"SUM(K64:K74)/(COUNTIF(K64:K74,\">0\")+0.00000001)","v":0},null,{"$f":"SUM(M64:M74)/(COUNTIF(M64:M74,\">0\")+0.00000001)","v":0}]
[null,"a. identify way to get to store and way to get back with needs of merchandise in mind (e.g. can't bring couch home in taxi, ice cream will melt on the bus)"]
[null,"b. locate entrance to store"]
[null,"c. locate store employee if assistance is needed to find items"]
[null,"d. if needed, hold onto back of cart to keep from being run into display stands or other customers by store employee"]
[null,"e. ensure all items are those that are sought--check packages"]
[null,"f. get pricing information when selecting items"]
[null,"g. place items on counter/conveyor "]
[null,"h. pay for items (cash, credit, debit)"]
[null,"i. locate exit (with employee assistance if needed)"]
[null,"j. locate transportation (e.g. bus stop, taxi, friend's car)"]
[null,"k. navigate parking lot by staying close to line of parked cars"]
["3. Fast Food Restaurants",null,null,{"$f":"SUM(C76:C85)/(COUNTIF(C76:C85,\">0\")+0.00000001)","v":0},null,{"$f":"SUM(E76:E85)/(COUNTIF(E76:E85,\">0\")+0.00000001)","v":0},null,{"$f":"SUM(G76:G85)/(COUNTIF(G76:G85,\">0\")+0.00000001)","v":0},null,{"$f":"SUM(I76:I85)/(COUNTIF(I76:I85,\">0\")+0.00000001)","v":0},null,{"$f":"SUM(K76:K85)/(COUNTIF(K76:K85,\">0\")+0.00000001)","v":0},null,{"$f":"SUM(M76:M85)/(COUNTIF(M76:M85,\">0\")+0.00000001)","v":0}]
[null,"a. locate entrance"]
[null,"b. locate counter area, use as Point Of Reference (P.O.R.)"]
[null,"c. find the back of the line"]
[null,"d. move up in line when appropriate "]
[null,"e. access menu (with low vision device or solicit assistance)"]
[null,"f. order and pay for meal"]
[null,"g. move to side to await meal (usually by order number)"]
[null,"h. take tray and keep it level, locate unoccupied table"]
[null,"i. locate trash, empty tray (most restaurants)"]
[null,"j. locate exit"]
["4. Cafeteria Restaurants",null,null,{"$f":"SUM(C87:C96)/(COUNTIF(C87:C96,\">0\")+0.00000001)","v":0},null,{"$f":"SUM(E87:E96)/(COUNTIF(E87:E96,\">0\")+0.00000001)","v":0},null,{"$f":"SUM(G87:G96)/(COUNTIF(G87:G96,\">0\")+0.00000001)","v":0},null,{"$f":"SUM(I87:I96)/(COUNTIF(I87:I96,\">0\")+0.00000001)","v":0},null,{"$f":"SUM(K87:K96)/(COUNTIF(K87:K96,\">0\")+0.00000001)","v":0},null,{"$f":"SUM(M87:M96)/(COUNTIF(M87:M96,\">0\")+0.00000001)","v":0}]
[null,"a. locate entrance"]
[null,"b. locate counter area"]
[null,"c. pay for meal"]
[null,"d. navigate maze to reach buffet area"]
[null,"e. locate table with assistance of wait staff (many buffets)"]
[null,"f. locate buffet, use as Point Of Reference"]
[null,"g. locate items on buffet with assistance of wait staff or friend"]
[null,"h. keep plate level and return to table"]
[null,"i. eat meal, leave dishes and tip"]
[null,"j. locate exit"]
["5. Sit Down Restaurants",null,null,{"$f":"SUM(C98:C102)/(COUNTIF(C98:C102,\">0\")+0.00000001)","v":0},null,{"$f":"SUM(E98:E102)/(COUNTIF(E98:E102,\">0\")+0.00000001)","v":0},null,{"$f":"SUM(G98:G102)/(COUNTIF(G98:G102,\">0\")+0.00000001)","v":0},null,{"$f":"SUM(I98:I102)/(COUNTIF(I98:I102,\">0\")+0.00000001)","v":0},null,{"$f":"SUM(K98:K102)/(COUNTIF(K98:K102,\">0\")+0.00000001)","v":0},null,{"$f":"SUM(M98:M102)/(COUNTIF(M98:M102,\">0\")+0.00000001)","v":0}]
[null,"a. locate entrance"]
[null,"b. follow wait staff to table, use as P.O.R."]
[null,"c. access menu (with low vision device or solicit assistance)"]
[null,"d. pay check at table or counter at exit"]
[null,"e. locate exit"]
[null,"raw score for section",null,{"$f":"D59+D63+D75+D86+D97","v":0},null,{"$f":"F59+F63+F75+F86+F97","v":0},null,{"$f":"H59+H63+H75+H86+H97","v":0},null,{"$f":"J59+J63+J75+J86+J97","v":0},null,{"$f":"L59+L63+L75+L86+L97","v":0},null,{"$f":"N59+N63+N75+N86+N97","v":0}]
[null,"average score for section",null,{"$f":"D103/(COUNTIF(D59:D98,\">0\")+0.00000001)","v":0},null,{"$f":"F103/(COUNTIF(F59:F98,\">0\")+0.00000001)","v":0},null,{"$f":"H103/(COUNTIF(H59:H98,\">0\")+0.00000001)","v":0},null,{"$f":"J103/(COUNTIF(J59:J98,\">0\")+0.00000001)","v":0},null,{"$f":"L103/(COUNTIF(L59:L98,\">0\")+0.00000001)","v":0},null,{"$f":"N103/(COUNTIF(N59:N98,\">0\")+0.00000001)","v":0}]
[null,"percentage score for section",null,{"$f":"D104/5*100","v":0},null,{"$f":"F104/5*100","v":0},null,{"$f":"H104/5*100","v":0},null,{"$f":"J104/5*100","v":0},null,{"$f":"L104/5*100","v":0},null,{"$f":"N104/5*100","v":0}]
["RATING SCALE"]
["0 = Student not capable of demonstrating skill or does not need skill"]
["1 = Student does not demonstrate skill but may/will learn skill"]
["2 = Student only demonstrates skill with verbal and/or physical prompting"]
["3 = Student sometimes demonstrates skill without verbal and/or physical prompting"]
["4 = Student demonstrates skill and verbal and/or physical prompting are rarely needed"]
["5 = Student has totally mastered skill and does not require verbal and/or physical prompting"]